Workbook

Sheet Copia (hidden)
B1: Empresa | C1: NIT | D1: Fecha corte reporte información | E1: Mercado Relevante | F1: Resolución Aprobación Cargos | G1: Tecnología | H1: Código DANE | I1: Departamento | J1: Municipio | K1: Nuevo/Existente | L1: Catastro Población | M1: Total Residenciales Anillados | N1: E1 | O1: E2 | P1: E3 | Q1: E4 | R1: E5 | S1: E6 | T1: Total Comercial Conectados | U1: Total Industrial Conectados | V1: Total Usuarios Conectados | W1: Cobertura Residencial Potencial | X1: Cobertura Residencial Efectiva | Y1: Observación
B2: ALCANOS DE COLOMBIA S.A. E.S.P. | C2: 891101577-4 | D2: 2016-12-31 | E2: CENTRO TOLIMA | F2: 81846 del 24/07/97 Min Minas | G2: GN | H2: 73001 | I2: TOLIMA | J2: IBAGUE | K2: Existente | L2: 146002 | M2: 144190 | N2: 24569 | O2: 64968 | P2: 37703 | Q2: 12116 | R2: 2050 | S2: 355 | T2: 1717 | U2: 49 | V2: 143527 | W2: 0.9875892111 | X2: 0.9709524527
B3: ALCANOS DE COLOMBIA S.A. E.S.P. | C3: 891101577-4 | D3: 2016-12-31 | E3: CENTRO TOLIMA | F3: 81846 del 24/07/97 Min Minas | G3: GN | H3: 15572 | I3: BOYACA | J3: PUERTO BOYACA | K3: Existente | L3: 9952 | M3: 9852 | N3: 2252 | O3: 5828 | P3: 1331 | Q3: 94 | R3: 0 | S3: 0 | T3: 97 | U3: 0 | V3: 9602 | W3: 0.9899517685 | X3: 0.9550844051
B4: ALCANOS DE COLOMBIA S.A. E.S.P. | C4: 891101577-4 | D4: 2016-12-31 | E4: CENTRO TOLIMA | F4: 81846 del 24/07/97 Min Minas | G4: GN | H4: 73268 | I4: TOLIMA | J4: ESPINAL | K4: Existente | L4: 21214 | M4: 20597 | N4: 4327 | O4: 10048 | P4: 3269 | Q4: 565 | R4: 1 | S4: 1 | T4: 172 | U4: 14 | V4: 18397 | W4: 0.9709154332 | X4: 0.8584425379 | Y4: Incluye a Chicoral
B5: ALCANOS DE COLOMBIA S.A. E.S.P. | C5: 891101577-4 | D5: 2016-12-31 | E5: CENTRO TOLIMA | F5: 81846 del 24/07/97 Min Minas | G5: GN | H5: 17380 | I5: CALDAS | J5: LA DORADA | K5: Existente | L5: 17983 | M5: 17834 | N5: 3849 | O5: 10102 | P5: 2619 | Q5: 128 | R5: 8 | S5: 0 | T5: 141 | U5: 2 | V5: 16849 | W5: 0.9917143969 | X5: 0.9289884891
B6: ALCANOS DE COLOMBIA S.A. E.S.P. | C6: 891101577-4 | D6: 2016-12-31 | E6: CENTRO TOLIMA | F6: 81846 del 24/07/97 Min Minas | G6: GN | H6: 73678 | I6: TOLIMA | J6: SAN LUIS | K6: Existente | L6: 2702 | M6: 2685 | N6: 1182 | O6: 1419 | P6: 6 | Q6: 0 | R6: 2 | S6: 0 | T6: 16 | U6: 0 | V6: 2625 | W6: 0.9937083642 | X6: 0.9655810511
B7: ALCANOS DE COLOMBIA S.A. E.S.P. | C7: 891101577-4 | D7: 2016-12-31 | E7: CENTRO TOLIMA | F7: 81846 del 24/07/97 Min Minas | G7: GN | H7: 73030 | I7: TOLIMA | J7: AMBALEMA | K7: Existente | L7: 2227 | M7: 2101 | N7: 1092 | O7: 630 | P7: 75 | Q7: 0 | R7: 0 | S7: 0 | T7: 7 | U7: 0 | V7: 1804 | W7: 0.9434216435 | X7: 0.8069151325
B8: ALCANOS DE COLOMBIA S.A. E.S.P. | C8: 891101577-4 | D8: 2016-12-31 | E8: CENTRO TOLIMA | F8: 81846 del 24/07/97 Min Minas | G8: GN | H8: 73861 | I8: TOLIMA | J8: VENADILLO | K8: Existente | L8: 2595 | M8: 2567 | N8: 1216 | O8: 1229 | P8: 6 | Q8: 0 | R8: 0 | S8: 0 | T8: 26 | U8: 0 | V8: 2477 | W8: 0.9892100193 | X8: 0.9445086705
B9: ALCANOS DE COLOMBIA S.A. E.S.P. | C9: 891101577-4 | D9: 2016-12-31 | E9: CENTRO TOLIMA | F9: 81846 del 24/07/97 Min Minas | G9: GN | H9: 73547 | I9: TOLIMA | J9: PIEDRAS | K9: Existente | L9: 1469 | M9: 1461 | N9: 761 | O9: 594 | P9: 0 | Q9: 0 | R9: 0 | S9: 0 | T9: 6 | U9: 0 | V9: 1361 | W9: 0.9945541184 | X9: 0.9223961879 | Y9: Inluye a Doima
B10: ALCANOS DE COLOMBIA S.A. E.S.P. | C10: 891101577-4 | D10: 2016-12-31 | E10: CENTRO TOLIMA | F10: 81846 del 24/07/97 Min Minas | G10: GN | H10: 73026 | I10: TOLIMA | J10: ALVARADO | K10: Existente | L10: 1301 | M10: 1290 | N10: 296 | O10: 805 | P10: 5 | Q10: 0 | R10: 0 | S10: 0 | T10: 8 | U10: 1 | V10: 1115 | W10: 0.9915449654 | X10: 0.8501152959
B11: ALCANOS DE COLOMBIA S.A. E.S.P. | C11: 891101577-4 | D11: 2016-12-31 | E11: CENTRO TOLIMA | F11: 81846 del 24/07/97 Min Minas | G11: GN | H11: 73055 | I11: TOLIMA | J11: ARMERO | K11: Existente | L11: 3616 | M11: 3567 | N11: 1661 | O11: 1501 | P11: 12 | Q11: 0 | R11: 0 | S11: 0 | T11: 22 | U11: 0 | V11: 3196 | W11: 0.986449115 | X11: 0.8777654867
B12: ALCANOS DE COLOMBIA S.A. E.S.P. | C12: 891101577-4 | D12: 2016-12-31 | E12: CENTRO TOLIMA | F12: 81846 del 24/07/97 Min Minas | G12: GN | H12: 73408 | I12: TOLIMA | J12: LERIDA | K12: Existente | L12: 5681 | M12: 5647 | N12: 1665 | O12: 3597 | P12: 112 | Q12: 0 | R12: 0 | S12: 0 | T12: 32 | U12: 1 | V12: 5407 | W12: 0.9940151382 | X12: 0.9459602183 | Y12: Incluye La Sierra
B13: ALCANOS DE COLOMBIA S.A. E.S.P. | C13: 891101577-4 | D13: 2016-12-31 | E13: CENTRO TOLIMA | F13: 81846 del 24/07/97 Min Minas | G13: GN | H13: 25572 | I13: CUNDINAMARCA | J13: PUERTO SALGAR | K13: Existente | L13: 3842 | M13: 3783 | N13: 2150 | O13: 729 | P13: 192 | Q13: 0 | R13: 0 | S13: 0 | T13: 23 | U13: 0 | V13: 3094 | W13: 0.9846434149 | X13: 0.7993232691
B14: ALCANOS DE COLOMBIA S.A. E.S.P. | C14: 891101577-4 | D14: 2016-12-31 | E14: CENTRO TOLIMA | F14: 81846 del 24/07/97 Min Minas | G14: GN | H14: 73347 | I14: TOLIMA | J14: HERVEO | K14: Existente | L14: 1624 | M14: 1602 | N14: 405 | O14: 991 | P14: 8 | Q14: 0 | R14: 0 | S14: 0 | T14: 11 | U14: 0 | V14: 1415 | W14: 0.986453202 | X14: 0.8645320197
B15: ALCANOS DE COLOMBIA S.A. E.S.P. | C15: 891101577-4 | D15: 2016-12-31 | E15: CENTRO TOLIMA | F15: 81846 del 24/07/97 Min Minas | G15: GN | H15: 73283 | I15: TOLIMA | J15: FRESNO | K15: Existente | L15: 5074 | M15: 5019 | N15: 1346 | O15: 2637 | P15: 902 | Q15: 1 | R15: 0 | S15: 0 | T15: 53 | U15: 0 | V15: 4939 | W15: 0.9891604257 | X15: 0.9629483642
B16: ALCANOS DE COLOMBIA S.A. E.S.P. | C16: 891101577-4 | D16: 2016-12-31 | E16: CENTRO TOLIMA | F16: 81846 del 24/07/97 Min Minas | G16: GN | H16: 17433 | I16: CALDAS | J16: MANZANARES | K16: Existente | L16: 2606 | M16: 2576 | N16: 624 | O16: 1533 | P16: 326 | Q16: 12 | R16: 0 | S16: 0 | T16: 29 | U16: 0 | V16: 2524 | W16: 0.9884881044 | X16: 0.9574059862
B17: ALCANOS DE COLOMBIA S.A. E.S.P. | C17: 891101577-4 | D17: 2016-12-31 | E17: CENTRO TOLIMA | F17: 81846 del 24/07/97 Min Minas | G17: GN | H17: 73443 | I17: TOLIMA | J17: MARIQUITA | K17: Existente | L17: 9401 | M17: 9315 | N17: 4191 | O17: 4108 | P17: 535 | Q17: 44 | R17: 1 | S17: 0 | T17: 82 | U17: 2 | V17: 8963 | W17: 0.990852037 | X17: 0.9444739921
B18: ALCANOS DE COLOMBIA S.A. E.S.P. | C18: 891101577-4 | D18: 2016-12-31 | E18: CENTRO TOLIMA | F18: 81846 del 24/07/97 Min Minas | G18: GN | H18: 73275 | I18: TOLIMA | J18: FLANDES | K18: Existente | L18: 14273 | M18: 12135 | N18: 221 | O18: 3877 | P18: 3604 | Q18: 3 | R18: 0 | S18: 0 | T18: 52 | U18: 1 | V18: 7758 | W18: 0.8502066839 | X18: 0.5398304491
B19: ALCANOS DE COLOMBIA S.A. E.S.P. | C19: 891101577-4 | D19: 2016-12-31 | E19: CENTRO TOLIMA | F19: 81846 del 24/07/97 Min Minas | G19: GN | H19: 17867 | I19: CALDAS | J19: VICTORIA | K19: Existente | L19: 1369 | M19: 1362 | N19: 602 | O19: 509 | P19: 202 | Q19: 1 | R19: 0 | S19: 0 | T19: 6 | U19: 0 | V19: 1320 | W19: 0.9948867787 | X19: 0.9598246896
B20: ALCANOS DE COLOMBIA S.A. E.S.P. | C20: 891101577-4 | D20: 2016-12-31 | E20: CENTRO TOLIMA | F20: 81846 del 24/07/97 Min Minas | G20: GN | H20: 73411 | I20: TOLIMA | J20: LIBANO | K20: Existente | L20: 7704 | M20: 7609 | N20: 1002 | O20: 4265 | P20: 1843 | Q20: 290 | R20: 0 | S20: 2 | T20: 93 | U20: 1 | V20: 7496 | W20: 0.9876687435 | X20: 0.9607995846 | Y20: Incluye Tierradentro
B21: ALCANOS DE COLOMBIA S.A. E.S.P. | C21: 891101577-4 | D21: 2016-12-31 | E21: CENTRO TOLIMA | F21: 81846 del 24/07/97 Min Minas | G21: GN | H21: 25307 | I21: CUNDINAMARCA | J21: GIRARDOT | K21: Existente | L21: 30695 | M21: 30230 | N21: 4110 | O21: 10421 | P21: 7408 | Q21: 1503 | R21: 188 | S21: 0 | T21: 386 | U21: 4 | V21: 24020 | W21: 0.9848509529 | X21: 0.7698322202
B22: ALCANOS DE COLOMBIA S.A. E.S.P. | C22: 891101577-4 | D22: 2016-12-31 | E22: CENTRO TOLIMA | F22: 81846 del 24/07/97 Min Minas | G22: GN | H22: 73349 | I22: TOLIMA | J22: HONDA | K22: Existente | L22: 8129 | M22: 7268 | N22: 1952 | O22: 3868 | P22: 612 | Q22: 124 | R22: 1 | S22: 0 | T22: 75 | U22: 1 | V22: 6633 | W22: 0.894082913 | X22: 0.8066182802
B23: ALCANOS DE COLOMBIA S.A. E.S.P. | C23: 891101577-4 | D23: 2016-12-31 | E23: CENTRO TOLIMA | F23: 81846 del 24/07/97 Min Minas | G23: GN | H23: 25612 | I23: CUNDINAMARCA | J23: RICAURTE | K23: Existente | L23: 7536 | M23: 7196 | N23: 761 | O23: 296 | P23: 658 | Q23: 1676 | R23: 328 | S23: 0 | T23: 33 | U23: 1 | V23: 3753 | W23: 0.9548832272 | X23: 0.4934978769
B24: ALCANOS DE COLOMBIA S.A. E.S.P. | C24: 891101577-4 | D24: 2016-12-31 | E24: HUILA TOLIMA CUNDINAMARCA | F24: 042 del 01/06/2004 | G24: GN | H24: 41001 | I24: HUILA | J24: NEIVA | K24: Existente | L24: 125818 | M24: 124369 | N24: 28251 | O24: 56456 | P24: 13267 | Q24: 7654 | R24: 1720 | S24: 112 | T24: 1362 | U24: 26 | V24: 108848 | W24: 0.9884833649 | X24: 0.8540908296 | Y24: Incluye Fortalecillas, San Francisco, Guacirco y El Caguán
B25: ALCANOS DE COLOMBIA S.A. E.S.P. | C25: 891101577-4 | D25: 2016-12-31 | E25: HUILA TOLIMA CUNDINAMARCA | F25: 042 del 01/06/2004 | G25: GN | H25: 41016 | I25: HUILA | J25: AIPE | K25: Existente | L25: 4052 | M25: 3868 | N25: 1181 | O25: 2166 | P25: 128 | Q25: 2 | R25: 0 | S25: 0 | T25: 22 | U25: 0 | V25: 3499 | W25: 0.9545903258 | X25: 0.858094768
B26: ALCANOS DE COLOMBIA S.A. E.S.P. | C26: 891101577-4 | D26: 2016-12-31 | E26: HUILA TOLIMA CUNDINAMARCA | F26: 042 del 01/06/2004 | G26: GNC | H26: 41885 | I26: HUILA | J26: YAGUARA | K26: Existente | L26: 2196 | M26: 2145 | N26: 474 | O26: 1308 | P26: 169 | Q26: 0 | R26: 0 | S26: 0 | T26: 28 | U26: 0 | V26: 1979 | W26: 0.9767759563 | X26: 0.8884335155
B27: ALCANOS DE COLOMBIA S.A. E.S.P. | C27: 891101577-4 | D27: 2016-12-31 | E27: HUILA TOLIMA CUNDINAMARCA | F27: 042 del 01/06/2004 | G27: GN | H27: 41524 | I27: HUILA | J27: PALERMO | K27: Existente | L27: 5629 | M27: 5479 | N27: 1724 | O27: 2686 | P27: 476 | Q27: 4 | R27: 0 | S27: 0 | T27: 61 | U27: 1 | V27: 4952 | W27: 0.9733522828 | X27: 0.86871558 | Y27: Incluye El Juncal, Betania
B28: ALCANOS DE COLOMBIA S.A. E.S.P. | C28: 891101577-4 | D28: 2016-12-31 | E28: HUILA TOLIMA CUNDINAMARCA | F28: 042 del 01/06/2004 | G28: GN | H28: 41615 | I28: HUILA | J28: RIVERA | K28: Existente | L28: 6491 | M28: 6404 | N28: 1648 | O28: 3674 | P28: 452 | Q28: 114 | R28: 1 | S28: 1 | T28: 83 | U28: 1 | V28: 5974 | W28: 0.9865968264 | X28: 0.9074102604
B29: ALCANOS DE COLOMBIA S.A. E.S.P. | C29: 891101577-4 | D29: 2016-12-31 | E29: HUILA TOLIMA CUNDINAMARCA | F29: 042 del 01/06/2004 | G29: GN | H29: 41799 | I29: HUILA | J29: TELLO | K29: Existente | L29: 2389 | M29: 2382 | N29: 1542 | O29: 594 | P29: 74 | Q29: 0 | R29: 0 | S29: 0 | T29: 6 | U29: 0 | V29: 2216 | W29: 0.9970699037 | X29: 0.9250732524
B30: ALCANOS DE COLOMBIA S.A. E.S.P. | C30: 891101577-4 | D30: 2016-12-31 | E30: HUILA TOLIMA CUNDINAMARCA | F30: 042 del 01/06/2004 | G30: GN | H30: 41078 | I30: HUILA | J30: BARAYA | K30: Existente | L30: 1238 | M30: 1229 | N30: 746 | O30: 286 | P30: 45 | Q30: 0 | R30: 0 | S30: 0 | T30: 9 | U30: 0 | V30: 1086 | W30: 0.99273021 | X30: 0.8699515347
B31: ALCANOS DE COLOMBIA S.A. E.S.P. | C31: 891101577-4 | D31: 2016-12-31 | E31: HUILA TOLIMA CUNDINAMARCA | F31: 042 del 01/06/2004 | G31: GN | H31: 41132 | I31: HUILA | J31: CAMPOALEGRE | K31: Existente | L31: 8441 | M31: 8393 | N31: 4056 | O31: 3196 | P31: 495 | Q31: 0 | R31: 0 | S31: 0 | T31: 38 | U31: 2 | V31: 7787 | W31: 0.99431347 | X31: 0.9177822533
B32: ALCANOS DE COLOMBIA S.A. E.S.P. | C32: 891101577-4 | D32: 2016-12-31 | E32: HUILA TOLIMA CUNDINAMARCA | F32: 042 del 01/06/2004 | G32: GN | H32: 41801 | I32: HUILA | J32: TERUEL | K32: Existente | L32: 1531 | M32: 1515 | N32: 389 | O32: 803 | P32: 111 | Q32: 0 | R32: 0 | S32: 0 | T32: 11 | U32: 0 | V32: 1314 | W32: 0.9895493142 | X32: 0.851077727
B33: ALCANOS DE COLOMBIA S.A. E.S.P. | C33: 891101577-4 | D33: 2016-12-31 | E33: HUILA TOLIMA CUNDINAMARCA | F33: 042 del 01/06/2004 | G33: GNC | H33: 41518 | I33: HUILA | J33: PAICOL | K33: Existente | L33: 1056 | M33: 1044 | N33: 196 | O33: 609 | P33: 102 | Q33: 0 | R33: 0 | S33: 0 | T33: 12 | U33: 0 | V33: 919 | W33: 0.9886363636 | X33: 0.8589015152
B34: ALCANOS DE COLOMBIA S.A. E.S.P. | C34: 891101577-4 | D34: 2016-12-31 | E34: HUILA TOLIMA CUNDINAMARCA | F34: 042 del 01/06/2004 | G34: GN | H34: 41349 | I34: HUILA | J34: HOBO | K34: Existente | L34: 2272 | M34: 2262 | N34: 956 | O34: 762 | P34: 2 | Q34: 0 | R34: 0 | S34: 0 | T34: 8 | U34: 0 | V34: 1728 | W34: 0.9955985915 | X34: 0.7570422535
B35: ALCANOS DE COLOMBIA S.A. E.S.P. | C35: 891101577-4 | D35: 2016-12-31 | E35: HUILA TOLIMA CUNDINAMARCA | F35: 042 del 01/06/2004 | G35: GNC | H35: 41797 | I35: HUILA | J35: TESALIA | K35: Existente | L35: 2783 | M35: 2757 | N35: 1866 | O35: 620 | P35: 34 | Q35: 1 | R35: 0 | S35: 0 | T35: 25 | U35: 0 | V35: 2546 | W35: 0.9906575638 | X35: 0.9058569889 | Y35: Incluye Pacarní
B36: ALCANOS DE COLOMBIA S.A. E.S.P. | C36: 891101577-4 | D36: 2016-12-31 | E36: HUILA TOLIMA CUNDINAMARCA | F36: 042 del 01/06/2004 | G36: GN | H36: 41872 | I36: HUILA | J36: VILLAVIEJA | K36: Existente | L36: 2119 | M36: 2097 | N36: 1263 | O36: 650 | P36: 1 | Q36: 0 | R36: 0 | S36: 0 | T36: 12 | U36: 0 | V36: 1926 | W36: 0.9896177442 | X36: 0.9032562529
B37: ALCANOS DE COLOMBIA S.A. E.S.P. | C37: 891101577-4 | D37: 2016-12-31 | E37: HUILA TOLIMA CUNDINAMARCA | F37: 042 del 01/06/2004 | G37: GNC | H37: 73200 | I37: TOLIMA | J37: COELLO | K37: Existente | L37: 1488 | M37: 1475 | N37: 436 | O37: 738 | P37: 35 | Q37: 3 | R37: 0 | S37: 0 | T37: 5 | U37: 0 | V37: 1217 | W37: 0.9912634409 | X37: 0.814516129 | Y37: Incluye Gualanday
B38: ALCANOS DE COLOMBIA S.A. E.S.P. | C38: 891101577-4 | D38: 2016-12-31 | E38: HUILA TOLIMA CUNDINAMARCA | F38: 042 del 01/06/2004 | G38: GNC | H38: 41306 | I38: HUILA | J38: GIGANTE | K38: Existente | L38: 6322 | M38: 6289 | N38: 2230 | O38: 3487 | P38: 117 | Q38: 2 | R38: 0 | S38: 0 | T38: 31 | U38: 0 | V38: 5867 | W38: 0.9947801329 | X38: 0.9231255932
B39: ALCANOS DE COLOMBIA S.A. E.S.P. | C39: 891101577-4 | D39: 2016-12-31 | E39: HUILA TOLIMA CUNDINAMARCA | F39: 042 del 01/06/2004 | G39: GN | H39: 73483 | I39: TOLIMA | J39: NATAGAIMA | K39: Existente | L39: 2971 | M39: 2843 | N39: 901 | O39: 1276 | P39: 216 | Q39: 0 | R39: 0 | S39: 0 | T39: 6 | U39: 1 | V39: 2400 | W39: 0.956916863 | X39: 0.8054527095
B40: ALCANOS DE COLOMBIA S.A. E.S.P. | C40: 891101577-4 | D40: 2016-12-31 | E40: HUILA TOLIMA CUNDINAMARCA | F40: 042 del 01/06/2004 | G40: GNC | H40: 41396 | I40: HUILA | J40: LA PLATA | K40: Existente | L40: 8963 | M40: 8865 | N40: 2550 | O40: 4300 | P40: 1092 | Q40: 5 | R40: 0 | S40: 0 | T40: 95 | U40: 0 | V40: 8042 | W40: 0.9890661609 | X40: 0.8866450965
B41: ALCANOS DE COLOMBIA S.A. E.S.P. | C41: 891101577-4 | D41: 2016-12-31 | E41: HUILA TOLIMA CUNDINAMARCA | F41: 042 del 01/06/2004 | G41: GNC | H41: 73168 | I41: TOLIMA | J41: CHAPARRAL | K41: Existente | L41: 8553 | M41: 8466 | N41: 3213 | O41: 3084 | P41: 937 | Q41: 3 | R41: 0 | S41: 0 | T41: 65 | U41: 1 | V41: 7303 | W41: 0.9898281305 | X41: 0.8461358588
B42: ALCANOS DE COLOMBIA S.A. E.S.P. | C42: 891101577-4 | D42: 2016-12-31 | E42: HUILA TOLIMA CUNDINAMARCA | F42: 042 del 01/06/2004 | G42: GN | H42: 41020 | I42: HUILA | J42: ALGECIRAS | K42: Existente | L42: 4452 | M42: 4430 | N42: 1775 | O42: 1769 | P42: 77 | Q42: 0 | R42: 0 | S42: 0 | T42: 22 | U42: 0 | V42: 3643 | W42: 0.9950584007 | X42: 0.8133423181
B43: ALCANOS DE COLOMBIA S.A. E.S.P. | C43: 891101577-4 | D43: 2016-12-31 | E43: HUILA TOLIMA CUNDINAMARCA | F43: 042 del 01/06/2004 | G43: GNC | H43: 41298 | I43: HUILA | J43: GARZON | K43: Existente | L43: 14089 | M43: 14004 | N43: 3952 | O43: 7170 | P43: 1908 | Q43: 235 | R43: 1 | S43: 1 | T43: 80 | U43: 0 | V43: 13347 | W43: 0.9939669246 | X43: 0.9416566115
B44: ALCANOS DE COLOMBIA S.A. E.S.P. | C44: 891101577-4 | D44: 2016-12-31 | E44: HUILA TOLIMA CUNDINAMARCA | F44: 042 del 01/06/2004 | G44: GN | H44: 73671 | I44: TOLIMA | J44: SALDAÑA | K44: Existente | L44: 3587 | M44: 3550 | N44: 1206 | O44: 1731 | P44: 135 | Q44: 5 | R44: 0 | S44: 0 | T44: 22 | U44: 0 | V44: 3099 | W44: 0.9896849735 | X44: 0.8578199052
B45: ALCANOS DE COLOMBIA S.A. E.S.P. | C45: 891101577-4 | D45: 2016-12-31 | E45: HUILA TOLIMA CUNDINAMARCA | F45: 042 del 01/06/2004 | G45: GN | H45: 73319 | I45: TOLIMA | J45: GUAMO | K45: Existente | L45: 7726 | M45: 7677 | N45: 2795 | O45: 3763 | P45: 231 | Q45: 10 | R45: 0 | S45: 0 | T45: 45 | U45: 1 | V45: 6845 | W45: 0.9936577789 | X45: 0.880015532
B46: ALCANOS DE COLOMBIA S.A. E.S.P. | C46: 891101577-4 | D46: 2016-12-31 | E46: HUILA TOLIMA CUNDINAMARCA | F46: 042 del 01/06/2004 | G46: GN | H46: 73585 | I46: TOLIMA | J46: PURIFICACION | K46: Existente | L46: 6102 | M46: 6070 | N46: 3220 | O46: 2150 | P46: 139 | Q46: 0 | R46: 0 | S46: 0 | T46: 30 | U46: 0 | V46: 5539 | W46: 0.9947558178 | X46: 0.902818748
B47: ALCANOS DE COLOMBIA S.A. E.S.P. | C47: 891101577-4 | D47: 2016-12-31 | E47: HUILA TOLIMA CUNDINAMARCA | F47: 042 del 01/06/2004 | G47: GNC | H47: 41791 | I47: HUILA | J47: TARQUI | K47: Existente | L47: 3905 | M47: 3875 | N47: 2659 | O47: 712 | P47: 8 | Q47: 1 | R47: 0 | S47: 0 | T47: 4 | U47: 0 | V47: 3384 | W47: 0.9923175416 | X47: 0.8655569782
B48: ALCANOS DE COLOMBIA S.A. E.S.P. | C48: 891101577-4 | D48: 2016-12-31 | E48: HUILA TOLIMA CUNDINAMARCA | F48: 042 del 01/06/2004 | G48: GN | H48: 25290 | I48: CUNDINAMARCA | J48: FUSAGASUGA | K48: Existente | L48: 41544 | M48: 41196 | N48: 932 | O48: 10817 | P48: 14186 | Q48: 10554 | R48: 2013 | S48: 423 | T48: 326 | U48: 0 | V48: 39251 | W48: 0.9916233391 | X48: 0.9369584055
B49: ALCANOS DE COLOMBIA S.A. E.S.P. | C49: 891101577-4 | D49: 2016-12-31 | E49: HUILA TOLIMA CUNDINAMARCA | F49: 042 del 01/06/2004 | G49: GNC | H49: 73504 | I49: TOLIMA | J49: ORTEGA | K49: Existente | L49: 2672 | M49: 2619 | N49: 526 | O49: 1234 | P49: 212 | Q49: 0 | R49: 0 | S49: 0 | T49: 10 | U49: 0 | V49: 1982 | W49: 0.9801646707 | X49: 0.7380239521
B50: ALCANOS DE COLOMBIA S.A. E.S.P. | C50: 891101577-4 | D50: 2016-12-31 | E50: HUILA TOLIMA CUNDINAMARCA | F50: 042 del 01/06/2004 | G50: GN | H50: 25743 | I50: CUNDINAMARCA | J50: SILVANIA | K50: Existente | L50: 3071 | M50: 3026 | N50: 110 | O50: 1180 | P50: 711 | Q50: 105 | R50: 0 | S50: 0 | T50: 32 | U50: 1 | V50: 2139 | W50: 0.9853467926 | X50: 0.6857701075
B51: ALCANOS DE COLOMBIA S.A. E.S.P. | C51: 891101577-4 | D51: 2016-12-31 | E51: CARMEN DE APICALA | F51: 064 del 24/05/2005 | G51: GN | H51: 73148 | I51: TOLIMA | J51: CARMEN DE APICALA | K51: Existente | L51: 3609 | M51: 3557 | N51: 476 | O51: 1966 | P51: 463 | Q51: 66 | R51: 32 | S51: 0 | T51: 51 | U51: 1 | V51: 3055 | W51: 0.9855915766 | X51: 0.8320864505
B52: ALCANOS DE COLOMBIA S.A. E.S.P. | C52: 891101577-4 | D52: 2016-12-31 | E52: ICONONZO Y ARBELAEZ | F52: 051 del 14/06/2007 | G52: GN | H52: 73352 | I52: TOLIMA | J52: ICONONZO | K52: Existente | L52: 1394 | M52: 1329 | N52: 402 | O52: 778 | P52: 9 | Q52: 0 | R52: 0 | S52: 0 | T52: 19 | U52: 0 | V52: 1208 | W52: 0.9533715925 | X52: 0.8529411765
B53: ALCANOS DE COLOMBIA S.A. E.S.P. | C53: 891101577-4 | D53: 2016-12-31 | E53: ICONONZO Y ARBELAEZ | F53: 051 del 14/06/2007 | G53: GN | H53: 25053 | I53: CUNDINAMARCA | J53: ARBELAEZ | K53: Existente | L53: 2230 | M53: 2202 | N53: 21 | O53: 1326 | P53: 375 | Q53: 90 | R53: 4 | S53: 0 | T53: 25 | U53: 0 | V53: 1841 | W53: 0.9874439462 | X53: 0.8143497758
B54: ALCANOS DE COLOMBIA S.A. E.S.P. | C54: 891101577-4 | D54: 2016-12-31 | E54: CUNDINAMARCA SUR | F54: 053 del 07/05/2009 | G54: GNC | H54: 25001 | I54: CUNDINAMARCA | J54: AGUA DE DIOS | K54: Existente | L54: 4284 | M54: 4057 | N54: 728 | O54: 2386 | P54: 141 | Q54: 1 | R54: 0 | S54: 0 | T54: 28 | U54: 0 | V54: 3284 | W54: 0.9470121382 | X54: 0.7600373483
B55: ALCANOS DE COLOMBIA S.A. E.S.P. | C55: 891101577-4 | D55: 2016-12-31 | E55: CUNDINAMARCA SUR | F55: 053 del 07/05/2009 | G55: GNC | H55: 25599 | I55: CUNDINAMARCA | J55: APULO | K55: Existente | L55: 1832 | M55: 1788 | N55: 452 | O55: 759 | P55: 206 | Q55: 0 | R55: 0 | S55: 0 | T55: 9 | U55: 0 | V55: 1426 | W55: 0.9759825328 | X55: 0.7734716157
B56: ALCANOS DE COLOMBIA S.A. E.S.P. | C56: 891101577-4 | D56: 2016-12-31 | E56: CUNDINAMARCA SUR | F56: 053 del 07/05/2009 | G56: GNC | H56: 25815 | I56: CUNDINAMARCA | J56: TOCAIMA | K56: Existente | L56: 4473 | M56: 4362 | N56: 940 | O56: 1907 | P56: 700 | Q56: 2 | R56: 0 | S56: 0 | T56: 57 | U56: 0 | V56: 3606 | W56: 0.97518444 | X56: 0.79342723
B57: ALCANOS DE COLOMBIA S.A. E.S.P. | C57: 891101577-4 | D57: 2016-12-31 | E57: ANTIOQUIA SUR ORIENTE | F57: 052 del 14/06/2007 | G57: GN | H57: 05615 | I57: ANTIOQUIA | J57: RIONEGRO | K57: Existente | L57: 30018 | M57: 29633 | N57: 476 | O57: 4361 | P57: 7899 | Q57: 4290 | R57: 920 | S57: 63 | T57: 353 | U57: 6 | V57: 18368 | W57: 0.987174362 | X57: 0.599940036
B58: ALCANOS DE COLOMBIA S.A. E.S.P. | C58: 891101577-4 | D58: 2016-12-31 | E58: ANTIOQUIA SUR ORIENTE | F58: 052 del 14/06/2007 | G58: GN | H58: 05318 | I58: ANTIOQUIA | J58: GUARNE | K58: Existente | L58: 5011 | M58: 4948 | N58: 78 | O58: 1222 | P58: 1911 | Q58: 43 | R58: 0 | S58: 0 | T58: 58 | U58: 0 | V58: 3312 | W58: 0.9874276591 | X58: 0.649371383
B59: ALCANOS DE COLOMBIA S.A. E.S.P. | C59: 891101577-4 | D59: 2016-12-31 | E59: ANTIOQUIA SUR ORIENTE | F59: 052 del 14/06/2007 | G59: GN | H59: 05440 | I59: ANTIOQUIA | J59: MARINILLA | K59: Existente | L59: 12148 | M59: 12027 | N59: 368 | O59: 2516 | P59: 4701 | Q59: 219 | R59: 9 | S59: 0 | T59: 115 | U59: 1 | V59: 7929 | W59: 0.9900395127 | X59: 0.643151136
B60: ALCANOS DE COLOMBIA S.A. E.S.P. | C60: 891101577-4 | D60: 2016-12-31 | E60: ANTIOQUIA SUR ORIENTE | F60: 052 del 14/06/2007 | G60: GN | H60: 05697 | I60: ANTIOQUIA | J60: EL SANTUARIO | K60: Existente | L60: 7712 | M60: 7620 | N60: 1031 | O60: 3825 | P60: 1171 | Q60: 1 | R60: 0 | S60: 0 | T60: 53 | U60: 0 | V60: 6081 | W60: 0.9880705394 | X60: 0.7816390041
B61: ALCANOS DE COLOMBIA S.A. E.S.P. | C61: 891101577-4 | D61: 2016-12-31 | E61: POPAYAN - PIENDAMO | F61: 007 del 31/01/2008 | G61: GN | H61: 19001 | I61: CAUCA | J61: POPAYAN | K61: Existente | L61: 76805 | M61: 76380 | N61: 10995 | O61: 19382 | P61: 14094 | Q61: 7248 | R61: 2094 | S61: 345 | T61: 383 | U61: 7 | V61: 54548 | W61: 0.9944665061 | X61: 0.7051363843
B62: ALCANOS DE COLOMBIA S.A. E.S.P. | C62: 891101577-4 | D62: 2016-12-31 | E62: POPAYAN - PIENDAMO | F62: 007 del 31/01/2008 | G62: GN | H62: 19548 | I62: CAUCA | J62: PIENDAMO | K62: Existente | L62: 6332 | M62: 5167 | N62: 1369 | O62: 1649 | P62: 363 | Q62: 0 | R62: 0 | S62: 0 | T62: 25 | U62: 1 | V62: 3407 | W62: 0.8160138977 | X62: 0.5339545167
B63: ALCANOS DE COLOMBIA S.A. E.S.P. | C63: 891101577-4 | D63: 2016-12-31 | E63: FLORENCIA | F63: 125 del 28/10/2008 | G63: GNC | H63: 18001 | I63: CAQUETA | J63: FLORENCIA | K63: Existente | L63: 44697 | M63: 44491 | N63: 26159 | O63: 9516 | P63: 1484 | Q63: 327 | R63: 0 | S63: 0 | T63: 99 | U63: 1 | V63: 37586 | W63: 0.9953911896 | X63: 0.8386692619
B64: ALCANOS DE COLOMBIA S.A. E.S.P. | C64: 891101577-4 | D64: 2016-12-31 | E64: CARMEN DE VIBORAL | F64: 124 del 28/10/2008 | G64: GN | H64: 05148 | I64: ANTIOQUIA | J64: EL CARMEN DE VIBORAL | K64: Existente | L64: 9095 | M64: 8971 | N64: 242 | O64: 2670 | P64: 2521 | Q64: 0 | R64: 0 | S64: 0 | T64: 91 | U64: 3 | V64: 5527 | W64: 0.9863661352 | X64: 0.5973611875
B65: ALCANOS DE COLOMBIA S.A. E.S.P. | C65: 891101577-4 | D65: 2016-12-31 | E65: GUADUAS | F65: 069 del 09/06/2011 | G65: GN | H65: 25320 | I65: CUNDINAMARCA | J65: GUADUAS | K65: Existente | L65: 5985 | M65: 5919 | N65: 1272 | O65: 3435 | P65: 180 | Q65: 162 | R65: 0 | S65: 0 | T65: 30 | U65: 1 | V65: 5080 | W65: 0.9889724311 | X65: 0.8436090226 | Y65: Incluye Puerto Bogotá
B66: ALCANOS DE COLOMBIA S.A. E.S.P. | C66: 891101577-4 | D66: 2016-12-31 | E66: GUADUAS | F66: 069 del 09/06/2011 | G66: GNC | H66: 25875 | I66: CUNDINAMARCA | J66: VILLETA | K66: Existente | L66: 5815 | M66: 5708 | N66: 828 | O66: 3076 | P66: 967 | Q66: 69 | R66: 1 | S66: 0 | T66: 60 | U66: 0 | V66: 5001 | W66: 0.9815993121 | X66: 0.8496990542
B67: ALCANOS DE COLOMBIA S.A. E.S.P. | C67: 891101577-4 | D67: 2016-12-31 | E67: GUADUAS | F67: 069 del 09/06/2011 | G67: GNC | H67: 25402 | I67: CUNDINAMARCA | J67: LA VEGA | K67: Existente | L67: 2370 | M67: 2330 | N67: 2 | O67: 764 | P67: 722 | Q67: 312 | R67: 0 | S67: 0 | T67: 32 | U67: 0 | V67: 1832 | W67: 0.9831223629 | X67: 0.7594936709
B68: ALCANOS DE COLOMBIA S.A. E.S.P. | C68: 891101577-4 | D68: 2016-12-31 | E68: TIMBIO | F68: 087 del 01/08/2012 | G68: GNC | H68: 19532 | I68: CAUCA | J68: PATIA | K68: Existente | L68: 5096 | M68: 4886 | N68: 1135 | O68: 852 | P68: 17 | Q68: 0 | R68: 0 | S68: 0 | T68: 10 | U68: 0 | V68: 2014 | W68: 0.9587912088 | X68: 0.3932496075
B69: ALCANOS DE COLOMBIA S.A. E.S.P. | C69: 891101577-4 | D69: 2016-12-31 | E69: TIMBIO | F69: 087 del 01/08/2012 | G69: GNC | H69: 19807 | I69: CAUCA | J69: TIMBIO | K69: Existente | L69: 4770 | M69: 4740 | N69: 1849 | O69: 1065 | P69: 4 | Q69: 0 | R69: 0 | S69: 0 | T69: 26 | U69: 0 | V69: 2944 | W69: 0.9937106918 | X69: 0.6117400419
B70: ALCANOS DE COLOMBIA S.A. E.S.P. | C70: 891101577-4 | D70: 2016-12-31 | E70: TIMBIO | F70: 087 del 01/08/2012 | G70: GNC | H70: 19473 | I70: CAUCA | J70: MORALES | K70: Existente | L70: 1163 | M70: 1090 | N70: 394 | O70: 228 | P70: 6 | Q70: 0 | R70: 0 | S70: 0 | T70: 3 | U70: 0 | V70: 631 | W70: 0.9372312984 | X70: 0.5399828031
B71: ALCANOS DE COLOMBIA S.A. E.S.P. | C71: 891101577-4 | D71: 2016-12-31 | E71: TIMBIO | F71: 087 del 01/08/2012 | G71: GNC | H71: 19256 | I71: CAUCA | J71: EL TAMBO | K71: Existente | L71: 1687 | M71: 1671 | N71: 804 | O71: 339 | P71: 7 | Q71: 0 | R71: 0 | S71: 0 | T71: 6 | U71: 0 | V71: 1156 | W71: 0.9905157084 | X71: 0.6816834618
B72: ALCANOS DE COLOMBIA S.A. E.S.P. | C72: 891101577-4 | D72: 2016-12-31 | E72: TIMBIO | F72: 087 del 01/08/2012 | G72: GNC | H72: 19743 | I72: CAUCA | J72: SILVIA | K72: Existente | L72: 2368 | M72: 1836 | N72: 444 | O72: 450 | P72: 177 | Q72: 4 | R72: 1 | S72: 0 | T72: 12 | U72: 0 | V72: 1088 | W72: 0.7753378378 | X72: 0.4543918919
B73: ALCANOS DE COLOMBIA S.A. E.S.P. | C73: 891101577-4 | D73: 2016-12-31 | E73: TIMBIO | F73: 087 del 01/08/2012 | G73: GNC | H73: 19622 | I73: CAUCA | J73: ROSAS | K73: Existente | L73: 683 | M73: 625 | N73: 210 | O73: 138 | P73: 4 | Q73: 0 | R73: 0 | S73: 0 | T73: 2 | U73: 0 | V73: 354 | W73: 0.9150805271 | X73: 0.5153733529
B74: ALCANOS DE COLOMBIA S.A. E.S.P. | C74: 891101577-4 | D74: 2016-12-31 | E74: TIMBIO | F74: 087 del 01/08/2012 | G74: GNC | H74: 19824 | I74: CAUCA | J74: TOTORO | K74: Existente | L74: 410 | M74: 325 | N74: 155 | O74: 46 | P74: 0 | Q74: 0 | R74: 0 | S74: 0 | T74: 5 | U74: 0 | V74: 206 | W74: 0.7926829268 | X74: 0.4902439024
B75: ALCANOS DE COLOMBIA S.A. E.S.P. | C75: 891101577-4 | D75: 2016-12-31 | E75: TIMBIO | F75: 087 del 01/08/2012 | G75: GNC | H75: 19130 | I75: CAUCA | J75: CAJIBIO | K75: Existente | L75: 1079 | M75: 1006 | N75: 376 | O75: 244 | P75: 0 | Q75: 0 | R75: 0 | S75: 0 | T75: 4 | U75: 0 | V75: 624 | W75: 0.9323447637 | X75: 0.5746061168
B76: ALCANOS DE COLOMBIA S.A. E.S.P. | C76: 891101577-4 | D76: 2016-12-31 | E76: SAN JUAN DE PASTO | F76: 087 del 01/06/2010 | G76: GNC | H76: 52001 | I76: NARIÑO | J76: PASTO | K76: Existente | L76: 104398 | M76: 43150 | N76: 6601 | O76: 8769 | P76: 1349 | Q76: 1 | R76: 0 | S76: 0 | T76: 27 | U76: 0 | V76: 16747 | W76: 0.4133220943 | X76: 0.1601563248
B77: ALCANOS DE COLOMBIA S.A. E.S.P. | C77: 891101577-4 | D77: 2016-12-31 | E77: QUIPILE | F77: 096 del 21/05/13 | G77: GNC | H77: 25596 | I77: CUNDINAMARCA | J77: QUIPILE | K77: Existente | L77: 330 | M77: 314 | N77: 21 | O77: 133 | P77: 60 | Q77: 0 | R77: 0 | S77: 0 | T77: 1 | U77: 0 | V77: 215 | W77: 0.9515151515 | X77: 0.6484848485
B78: ALCANOS DE COLOMBIA S.A. E.S.P. | C78: 891101577-4 | D78: 2016-12-31 | E78: QUIPILE | F78: 096 del 21/05/13 | G78: GNC | H78: 25398 | I78: CUNDINAMARCA | J78: LA PEÑA | K78: Existente | L78: 404 | M78: 371 | N78: 64 | O78: 221 | P78: 4 | Q78: 0 | R78: 0 | S78: 0 | T78: 2 | U78: 0 | V78: 291 | W78: 0.9183168317 | X78: 0.7153465347
B79: ALCANOS DE COLOMBIA S.A. E.S.P. | C79: 891101577-4 | D79: 2016-12-31 | E79: QUIPILE | F79: 096 del 21/05/13 | G79: GNC | H79: 25851 | I79: CUNDINAMARCA | J79: UTICA | K79: Existente | L79: 1287 | M79: 966 | N79: 309 | O79: 399 | P79: 0 | Q79: 0 | R79: 0 | S79: 0 | T79: 4 | U79: 0 | V79: 712 | W79: 0.7505827506 | X79: 0.5501165501
B80: ALCANOS DE COLOMBIA S.A. E.S.P. | C80: 891101577-4 | D80: 2016-12-31 | E80: QUIPILE | F80: 096 del 21/05/13 | G80: GNC | H80: 25592 | I80: CUNDINAMARCA | J80: QUEBRADANEGRA | K80: Existente | L80: 231 | M80: 230 | N80: 19 | O80: 123 | P80: 9 | Q80: 0 | R80: 0 | S80: 0 | T80: 1 | U80: 0 | V80: 152 | W80: 0.9956709957 | X80: 0.6536796537
B81: ALCANOS DE COLOMBIA S.A. E.S.P. | C81: 891101577-4 | D81: 2016-12-31 | E81: QUIPILE | F81: 096 del 21/05/13 | G81: GNC | H81: 25019 | I81: CUNDINAMARCA | J81: ALBAN | K81: Existente | L81: 741 | M81: 541 | N81: 30 | O81: 325 | P81: 26 | Q81: 0 | R81: 0 | S81: 0 | T81: 0 | U81: 0 | V81: 381 | W81: 0.7300944669 | X81: 0.5141700405
B82: ALCANOS DE COLOMBIA S.A. E.S.P. | C82: 891101577-4 | D82: 2016-12-31 | E82: QUIPILE | F82: 096 del 21/05/13 | G82: GNC | H82: 25718 | I82: CUNDINAMARCA | J82: SASAIMA | K82: Existente | L82: 1169 | M82: 936 | N82: 22 | O82: 475 | P82: 181 | Q82: 1 | R82: 0 | S82: 0 | T82: 3 | U82: 0 | V82: 682 | W82: 0.8006843456 | X82: 0.5808383234
B83: ALCANOS DE COLOMBIA S.A. E.S.P. | C83: 891101577-4 | D83: 2016-12-31 | E83: QUIPILE | F83: 096 del 21/05/13 | G83: GNC | H83: 25777 | I83: CUNDINAMARCA | J83: SUPATA | K83: Existente | L83: 964 | M83: 846 | N83: 7 | O83: 326 | P83: 177 | Q83: 1 | R83: 0 | S83: 0 | T83: 3 | U83: 0 | V83: 514 | W83: 0.877593361 | X83: 0.5300829876
B84: ALCANOS DE COLOMBIA S.A. E.S.P. | C84: 891101577-4 | D84: 2016-12-31 | E84: QUIPILE | F84: 096 del 21/05/13 | G84: GNC | H84: 25658 | I84: CUNDINAMARCA | J84: SAN FRANCISCO | K84: Existente | L84: 1747 | M84: 1742 | N84: 10 | O84: 785 | P84: 475 | Q84: 1 | R84: 0 | S84: 0 | T84: 3 | U84: 0 | V84: 1274 | W84: 0.9971379508 | X84: 0.7275329136
B85: ALCANOS DE COLOMBIA S.A. E.S.P. | C85: 891101577-4 | D85: 2016-12-31 | E85: QUIPILE | F85: 096 del 21/05/13 | G85: GNC | H85: 25862 | I85: CUNDINAMARCA | J85: VERGARA | K85: Existente | L85: 642 | M85: 630 | N85: 114 | O85: 357 | P85: 2 | Q85: 0 | R85: 0 | S85: 0 | T85: 1 | U85: 0 | V85: 474 | W85: 0.9813084112 | X85: 0.7367601246
B86: ALCANOS DE COLOMBIA S.A. E.S.P. | C86: 891101577-4 | D86: 2016-12-31 | E86: QUIPILE | F86: 096 del 21/05/13 | G86: GNC | H86: 25489 | I86: CUNDINAMARCA | J86: NIMAIMA | K86: Existente | L86: 499 | M86: 425 | N86: 45 | O86: 238 | P86: 1 | Q86: 0 | R86: 0 | S86: 0 | T86: 2 | U86: 0 | V86: 286 | W86: 0.8517034068 | X86: 0.5691382766
B87: ALCANOS DE COLOMBIA S.A. E.S.P. | C87: 891101577-4 | D87: 2016-12-31 | E87: QUIPILE | F87: 096 del 21/05/13 | G87: GNC | H87: 25491 | I87: CUNDINAMARCA | J87: NOCAIMA | K87: Existente | L87: 739 | M87: 731 | N87: 19 | O87: 366 | P87: 149 | Q87: 0 | R87: 0 | S87: 0 | T87: 5 | U87: 0 | V87: 539 | W87: 0.9891745602 | X87: 0.7225981055
B88: ALCANOS DE COLOMBIA S.A. E.S.P. | C88: 891101577-4 | D88: 2016-12-31 | E88: QUIPILE | F88: 096 del 21/05/13 | G88: GNC | H88: 25328 | I88: CUNDINAMARCA | J88: GUAYABAL DE SIQUIMA | K88: Existente | L88: 657 | M88: 419 | N88: 21 | O88: 303 | P88: 49 | Q88: 0 | R88: 0 | S88: 0 | T88: 2 | U88: 0 | V88: 375 | W88: 0.6377473364 | X88: 0.5677321157
B89: ALCANOS DE COLOMBIA S.A. E.S.P. | C89: 891101577-4 | D89: 2016-12-31 | E89: QUIPILE | F89: 096 del 21/05/13 | G89: GNC | H89: 25095 | I89: CUNDINAMARCA | J89: BITUIMA | K89: Existente | L89: 326 | M89: 286 | N89: 18 | O89: 114 | P89: 22 | Q89: 0 | R89: 0 | S89: 0 | T89: 2 | U89: 0 | V89: 156 | W89: 0.8773006135 | X89: 0.472392638
B90: ALCANOS DE COLOMBIA S.A. E.S.P. | C90: 891101577-4 | D90: 2016-12-31 | E90: QUIPILE | F90: 096 del 21/05/13 | G90: GNC | H90: 25867 | I90: CUNDINAMARCA | J90: VIANI | K90: Existente | L90: 601 | M90: 582 | N90: 140 | O90: 319 | P90: 12 | Q90: 0 | R90: 0 | S90: 0 | T90: 2 | U90: 0 | V90: 473 | W90: 0.9683860233 | X90: 0.7836938436
B91: ALCANOS DE COLOMBIA S.A. E.S.P. | C91: 891101577-4 | D91: 2016-12-31 | E91: QUIPILE | F91: 096 del 21/05/13 | G91: GNC | H91: 25662 | I91: CUNDINAMARCA | J91: SAN JUAN DE RIO SECO | K91: Existente | L91: 2133 | M91: 1928 | N91: 121 | O91: 1014 | P91: 259 | Q91: 1 | R91: 0 | S91: 0 | T91: 5 | U91: 0 | V91: 1400 | W91: 0.903891233 | X91: 0.6540084388 | Y91: Incluye Cambao (Nuevo)
B92: ALCANOS DE COLOMBIA S.A. E.S.P. | C92: 891101577-4 | D92: 2016-12-31 | E92: QUIPILE | F92: 096 del 21/05/13 | G92: GNC | H92: 25168 | I92: CUNDINAMARCA | J92: CHAGUANI | K92: Existente | L92: 448 | M92: 435 | N92: 26 | O92: 307 | P92: 3 | Q92: 0 | R92: 0 | S92: 0 | T92: 1 | U92: 0 | V92: 337 | W92: 0.9709821429 | X92: 0.75
B93: ALCANOS DE COLOMBIA S.A. E.S.P. | C93: 891101577-4 | D93: 2016-12-31 | E93: SUAREZ | F93: 162 del 19/11/13 | G93: GNC | H93: 73770 | I93: TOLIMA | J93: SUAREZ | K93: Existente | L93: 607 | M93: 597 | N93: 181 | O93: 299 | P93: 0 | Q93: 0 | R93: 0 | S93: 0 | T93: 2 | U93: 0 | V93: 482 | W93: 0.9835255354 | X93: 0.7907742998
B94: ALCANOS DE COLOMBIA S.A. E.S.P. | C94: 891101577-4 | D94: 2016-12-31 | E94: SUAREZ | F94: 162 del 19/11/13 | G94: GNC | H94: 73226 | I94: TOLIMA | J94: CUNDAY | K94: Existente | L94: 1416 | M94: 1083 | N94: 266 | O94: 457 | P94: 8 | Q94: 0 | R94: 0 | S94: 0 | T94: 7 | U94: 0 | V94: 738 | W94: 0.7648305085 | X94: 0.5162429379
B95: ALCANOS DE COLOMBIA S.A. E.S.P. | C95: 891101577-4 | D95: 2016-12-31 | E95: SUAREZ | F95: 162 del 19/11/13 | G95: GNC | H95: 73873 | I95: TOLIMA | J95: VILLARRICA | K95: Existente | L95: 854 | M95: 633 | N95: 161 | O95: 133 | P95: 1 | Q95: 0 | R95: 0 | S95: 0 | T95: 3 | U95: 0 | V95: 298 | W95: 0.7412177986 | X95: 0.3454332553
B96: ALCANOS DE COLOMBIA S.A. E.S.P. | C96: 891101577-4 | D96: 2016-12-31 | E96: SUAREZ | F96: 162 del 19/11/13 | G96: GNC | H96: 73686 | I96: TOLIMA | J96: SANTA ISABEL | K96: Existente | L96: 873 | M96: 813 | N96: 348 | O96: 298 | P96: 1 | Q96: 0 | R96: 0 | S96: 0 | T96: 6 | U96: 0 | V96: 653 | W96: 0.9312714777 | X96: 0.7411225659
B97: ALCANOS DE COLOMBIA S.A. E.S.P. | C97: 891101577-4 | D97: 2016-12-31 | E97: SUAREZ | F97: 162 del 19/11/13 | G97: GNC | H97: 73461 | I97: TOLIMA | J97: MURILLO | K97: Existente | L97: 795 | M97: 628 | N97: 191 | O97: 199 | P97: 12 | Q97: 0 | R97: 0 | S97: 0 | T97: 7 | U97: 0 | V97: 409 | W97: 0.7899371069 | X97: 0.5056603774
B98: ALCANOS DE COLOMBIA S.A. E.S.P. | C98: 891101577-4 | D98: 2016-12-31 | E98: SUAREZ | F98: 162 del 19/11/13 | G98: GNC | H98: 25488 | I98: CUNDINAMARCA | J98: NILO | K98: Existente | L98: 1346 | M98: 839 | N98: 80 | O98: 602 | P98: 15 | Q98: 4 | R98: 0 | S98: 0 | T98: 5 | U98: 0 | V98: 706 | W98: 0.6233283804 | X98: 0.5208023774
B99: ALCANOS DE COLOMBIA S.A. E.S.P. | C99: 891101577-4 | D99: 2016-12-31 | E99: SUAREZ | F99: 162 del 19/11/13 | G99: GNC | H99: 25483 | I99: CUNDINAMARCA | J99: NARIÑO | K99: Existente | L99: 1234 | M99: 643 | N99: 243 | O99: 269 | P99: 3 | Q99: 0 | R99: 0 | S99: 0 | T99: 3 | U99: 0 | V99: 518 | W99: 0.5210696921 | X99: 0.4173419773
B100: ALCANOS DE COLOMBIA S.A. E.S.P. | C100: 891101577-4 | D100: 2016-12-31 | E100: SUAREZ | F100: 162 del 19/11/13 | G100: GNC | H100: 25368 | I100: CUNDINAMARCA | J100: JERUSALEN | K100: Existente | L100: 358 | M100: 338 | N100: 79 | O100: 163 | P100: 1 | Q100: 0 | R100: 0 | S100: 0 | T100: 1 | U100: 0 | V100: 244 | W100: 0.9441340782 | X100: 0.6787709497
B101: ALCANOS DE COLOMBIA S.A. E.S.P. | C101: 891101577-4 | D101: 2016-12-31 | E101: SUAREZ | F101: 162 del 19/11/13 | G101: GNC | H101: 25324 | I101: CUNDINAMARCA | J101: GUATAQUI | K101: Existente | L101: 733 | M101: 522 | N101: 262 | O101: 59 | P101: 2 | Q101: 0 | R101: 0 | S101: 0 | T101: 1 | U101: 0 | V101: 324 | W101: 0.7121418827 | X101: 0.4406548431
B102: ALCANOS DE COLOMBIA S.A. E.S.P. | C102: 891101577-4 | D102: 2016-12-31 | E102: SUAREZ | F102: 162 del 19/11/13 | G102: GNC | H102: 25086 | I102: CUNDINAMARCA | J102: BELTRAN | K102: Existente | L102: 182 | M102: 169 | N102: 85 | O102: 38 | P102: 0 | Q102: 0 | R102: 0 | S102: 0 | T102: 0 | U102: 0 | V102: 123 | W102: 0.9285714286 | X102: 0.6758241758
B103: ALCANOS DE COLOMBIA S.A. E.S.P. | C103: 891101577-4 | D103: 2016-12-31 | E103: SUAREZ | F103: 162 del 19/11/13 | G103: GNC | H103: 25506 | I103: CUNDINAMARCA | J103: VENECIA | K103: Existente | L103: 615 | M103: 596 | N103: 20 | O103: 398 | P103: 22 | Q103: 0 | R103: 0 | S103: 0 | T103: 3 | U103: 0 | V103: 443 | W103: 0.9691056911 | X103: 0.7154471545
B104: ALCANOS DE COLOMBIA S.A. E.S.P. | C104: 891101577-4 | D104: 2016-12-31 | E104: SUAREZ | F104: 162 del 19/11/13 | G104: GNC | H104: 25120 | I104: CUNDINAMARCA | J104: CABRERA | K104: Existente | L104: 402 | M104: 381 | N104: 23 | O104: 291 | P104: 0 | Q104: 0 | R104: 0 | S104: 0 | T104: 7 | U104: 0 | V104: 321 | W104: 0.947761194 | X104: 0.7810945274
B105: ALCANOS DE COLOMBIA S.A. E.S.P. | C105: 891101577-4 | D105: 2016-12-31 | E105: SUAREZ | F105: 162 del 19/11/13 | G105: GNC | H105: 25524 | I105: CUNDINAMARCA | J105: PANDI | K105: Existente | L105: 758 | M105: 661 | N105: 13 | O105: 471 | P105: 3 | Q105: 0 | R105: 0 | S105: 0 | T105: 2 | U105: 0 | V105: 489 | W105: 0.8720316623 | X105: 0.6424802111
B106: ALCANOS DE COLOMBIA S.A. E.S.P. | C106: 891101577-4 | D106: 2016-12-31 | E106: SUAREZ | F106: 162 del 19/11/13 | G106: GNC | H106: 25649 | I106: CUNDINAMARCA | J106: SAN BERNARDO | K106: Existente | L106: 1878 | M106: 1241 | N106: 114 | O106: 674 | P106: 117 | Q106: 1 | R106: 0 | S106: 0 | T106: 5 | U106: 0 | V106: 911 | W106: 0.6608093717 | X106: 0.482428115
B107: ALCANOS DE COLOMBIA S.A. E.S.P. | C107: 891101577-4 | D107: 2016-12-31 | E107: SUAREZ | F107: 162 del 19/11/13 | G107: GNC | H107: 25805 | I107: CUNDINAMARCA | J107: TIBACUY | K107: Existente | L107: 528 | M107: 524 | N107: 15 | O107: 376 | P107: 3 | Q107: 0 | R107: 0 | S107: 0 | T107: 4 | U107: 0 | V107: 398 | W107: 0.9924242424 | X107: 0.7462121212
B108: ALCANOS DE COLOMBIA S.A. E.S.P. | C108: 891101577-4 | D108: 2016-12-31 | E108: SUAREZ | F108: 162 del 19/11/13 | G108: GN | H108: 25535 | I108: CUNDINAMARCA | J108: PASCA | K108: Existente | L108: 926 | M108: 834 | N108: 109 | O108: 458 | P108: 153 | Q108: 0 | R108: 0 | S108: 0 | T108: 11 | U108: 0 | V108: 731 | W108: 0.9006479482 | X108: 0.777537797
B109: ALCANOS DE COLOMBIA S.A. E.S.P. | C109: 891101577-4 | D109: 2016-12-31 | E109: SUAREZ | F109: 162 del 19/11/13 | G109: GNC | H109: 25580 | I109: CUNDINAMARCA | J109: PULI | K109: Existente | L109: 373 | M109: 370 | N109: 158 | O109: 103 | P109: 0 | Q109: 0 | R109: 0 | S109: 0 | T109: 0 | U109: 0 | V109: 261 | W109: 0.9919571046 | X109: 0.6997319035
B110: ALCANOS DE COLOMBIA S.A. E.S.P. | C110: 891101577-4 | D110: 2016-12-31 | E110: CAJAMARCA | F110: 163 del 19/11/13 | G110: GNC | H110: 73124 | I110: TOLIMA | J110: CAJAMARCA | K110: Existente | L110: 3237 | M110: 3124 | N110: 352 | O110: 1714 | P110: 572 | Q110: 0 | R110: 0 | S110: 0 | T110: 37 | U110: 0 | V110: 2675 | W110: 0.9650911338 | X110: 0.8149521162
B111: ALCANOS DE COLOMBIA S.A. E.S.P. | C111: 891101577-4 | D111: 2016-12-31 | E111: DOLORES | F111: 164 del 19/11/13 | G111: GNC | H111: 73236 | I111: TOLIMA | J111: DOLORES | K111: Existente | L111: 1688 | M111: 1263 | N111: 262 | O111: 337 | P111: 23 | Q111: 0 | R111: 0 | S111: 0 | T111: 4 | U111: 0 | V111: 626 | W111: 0.7482227488 | X111: 0.3684834123
B112: ALCANOS DE COLOMBIA S.A. E.S.P. | C112: 891101577-4 | D112: 2016-12-31 | E112: PUERTO TRIUNFO Y NORCASIA | F112: 171 del 26/11/13 | G112: GNC | H112: 05591 | I112: ANTIOQUIA | J112: PUERTO TRIUNFO | K112: Existente | L112: 3107 | M112: 3048 | N112: 238 | O112: 1526 | P112: 12 | Q112: 1 | R112: 0 | S112: 0 | T112: 8 | U112: 0 | V112: 1785 | W112: 0.9810106212 | X112: 0.5719343418
B113: ALCANOS DE COLOMBIA S.A. E.S.P. | C113: 891101577-4 | D113: 2016-12-31 | E113: PUERTO TRIUNFO Y NORCASIA | F113: 171 del 26/11/13 | G113: GNC | H113: 17495 | I113: CALDAS | J113: NORCASIA | K113: Existente | L113: 1624 | M113: 1467 | N113: 368 | O113: 596 | P113: 36 | Q113: 0 | R113: 0 | S113: 0 | T113: 2 | U113: 0 | V113: 1002 | W113: 0.9033251232 | X113: 0.6157635468
B114: ALCANOS DE COLOMBIA S.A. E.S.P. | C114: 891101577-4 | D114: 2016-12-31 | E114: SAN ANTONIO | F114: 172 del 26/11/13 | G114: GNC | H114: 73675 | I114: TOLIMA | J114: SAN ANTONIO | K114: Existente | L114: 1581 | M114: 1503 | N114: 507 | O114: 601 | P114: 95 | Q114: 0 | R114: 0 | S114: 0 | T114: 6 | U114: 0 | V114: 1209 | W114: 0.9506641366 | X114: 0.7609108159
B115: ALCANOS DE COLOMBIA S.A. E.S.P. | C115: 891101577-4 | D115: 2016-12-31 | E115: MELGAR | F115: 046 del 01/06/2004 | G115: GN | H115: 73449 | I115: TOLIMA | J115: MELGAR | K115: Existente | L115: 9961 | M115: 9670 | N115: 1691 | O115: 4146 | P115: 2615 | Q115: 238 | R115: 190 | S115: 5 | T115: 213 | U115: 0 | V115: 9098 | W115: 0.9707860657 | X115: 0.891978717
B116: ALCANOS DE COLOMBIA S.A. E.S.P. | C116: 891101577-4 | D116: 2016-12-31 | E116: VALLE DE SAN JUAN | F116: 066 del 12/06/2008 | G116: GN | H116: 73854 | I116: TOLIMA | J116: VALLE DE SAN JUAN | K116: Existente | L116: 1221 | M116: 1207 | N116: 516 | O116: 565 | P116: 0 | Q116: 0 | R116: 0 | S116: 0 | T116: 7 | U116: 0 | V116: 1088 | W116: 0.9885339885 | X116: 0.8853398853
B117: GASES DEL CUSIANA S.A. E.S.P | C117: 800218682-2 | D117: 2016-12-31 | E117: YOPAL | F117: CREG 024 DE 2004 | G117: GN | H117: 85001 | I117: CASANARE | J117: YOPAL | K117: Existente | L117: 32500 | M117: 32250 | N117: 7110 | O117: 14088 | P117: 7384 | Q117: 1783 | R117: 17 | T117: 1694 | U117: 7 | V117: 32083 | W117: 0.9923076923 | X117: 0.9348307692
B118: GASES DEL CUSIANA S.A. E.S.P | C118: 800218682-2 | D118: 2016-12-31 | E118: CASANARE SUR | F118: CREG 020 DE 2004 | G118: GN | H118: 85010 | I118: CASANARE | J118: AGUAZUL | K118: Existente | L118: 7530 | M118: 7495 | N118: 1440 | O118: 4568 | P118: 484 | Q118: 4 | T118: 298 | U118: 2 | V118: 6796 | W118: 0.9953519256 | X118: 0.8626826029
B119: GASES DEL CUSIANA S.A. E.S.P | C119: 800218682-2 | D119: 2016-12-31 | E119: CASANARE SUR | F119: CREG 020 DE 2004 | G119: GN | H119: 85162 | I119: CASANARE | J119: MONTERREY | K119: Existente | L119: 3550 | M119: 3495 | N119: 2098 | O119: 1387 | P119: 8 | T119: 167 | U119: 0 | V119: 3660 | W119: 0.9845070423 | X119: 0.983943662
B120: GASES DEL CUSIANA S.A. E.S.P | C120: 800218682-2 | D120: 2016-12-31 | E120: CASANARE SUR | F120: CREG 020 DE 2004 | G120: GN | H120: 85440 | I120: CASANARE | J120: VILLANUEVA | K120: Existente | L120: 5610 | M120: 5585 | N120: 1795 | O120: 2769 | P120: 788 | Q120: 17 | T120: 250 | U120: 1 | V120: 5620 | W120: 0.995543672 | X120: 0.9570409982
B121: GASES DEL CUSIANA S.A. E.S.P | C121: 800218682-2 | D121: 2016-12-31 | E121: TAURAMENA | F121: CREG 025 DE 2004 | G121: GN | H121: 85410 | I121: CASANARE | J121: TAURAMENA | K121: Existente | L121: 5200 | M121: 5140 | N121: 2554 | O121: 1690 | P121: 508 | Q121: 9 | R121: 11 | S121: 4 | T121: 240 | U121: 1 | V121: 5017 | W121: 0.9884615385 | X121: 0.9184615385
B122: EDALGAS S.A. E.S.P. | C122: 809011710-3 | D122: 2016-12-31 | E122: ROVIRA | F122: resolución aprobación Cargos GREG 028 DE 2012 | G122: GNC | H122: 73624 | I122: TOLIMA | J122: ROVIRA | K122: Existente | L122: 2771 | M122: 2650 | N122: 1626 | O122: 686 | P122: 87 | Q122: 0 | R122: 0 | S122: 0 | T122: 7 | U122: 0 | V122: 2406 | W122: 0.9563334536 | X122: 0.8657524359
B123: EDALGAS S.A. E.S.P. | C123: 809011710-3 | D123: 2016-12-31 | E123: ATACO | F123: resolución aprobación Cargos GREG 196 DE 2013 | G123: GLP Red | H123: 73067 | I123: TOLIMA | J123: ATACO | K123: Existente | L123: 1244 | M123: 1244 | N123: 554 | O123: 584 | P123: 1 | Q123: 0 | R123: 0 | S123: 0 | T123: 1 | U123: 0 | V123: 1140 | W123: 1 | X123: 0.9155948553
B124: EDALGAS S.A. E.S.P. | C124: 809011710-3 | D124: 2016-12-31 | E124: ANZOATEGUI | F124: resolución aprobación Cargos GREG 062 DE 2014 | G124: GNC | H124: 73043 | I124: TOLIMA | J124: ANZOATEGUI | K124: Existente | L124: 651 | M124: 651 | N124: 269 | O124: 264 | P124: 2 | Q124: 0 | R124: 0 | S124: 0 | T124: 0 | U124: 0 | V124: 535 | W124: 1 | X124: 0.821812596 | Y124: el Censo que tiene la empresa EDALGAS S.A y la Alcaldia Municipal de Anzoategui del castrato poblacional es de 651, diferente al reporte del DANE que es de 481
B125: EDALGAS S.A. E.S.P. | C125: 809011710-3 | D125: 2016-12-31 | E125: PLANADAS | F125: resolución aprobación Cargos GREG 196 DE 2013 | G125: GLP Red | H125: 73555 | I125: TOLIMA | J125: PLANADAS | K125: Existente | L125: 1652 | M125: 1652 | N125: 487 | O125: 740 | P125: 41 | Q125: 0 | R125: 0 | S125: 0 | T125: 0 | U125: 0 | V125: 1268 | W125: 1 | X125: 0.7675544794 | Y125: el Censo que tiene la empresa EDALGAS S.A, las Empresas de Servicio Publico y la Alcaldia Municipal de Planadas del castrato poblacional es de 1652 , diferente al reporte del DANE que es de 1774
B126: EDALGAS S.A. E.S.P. | C126: 809011710-3 | D126: 2016-12-31 | E126: SAN JOSE DE FRAGUA | F126: resolución aprobación Cargos GREG 066 DE 2014 | G126: GLP Red | H126: 18610 | I126: CAQUETA | J126: SAN JOSE DEL FRAGUA | K126: Existente | L126: 2299 | M126: 2299 | N126: 1058 | O126: 376 | P126: 0 | Q126: 0 | R126: 0 | S126: 0 | T126: 0 | U126: 0 | V126: 1434 | W126: 1 | X126: 0.6237494563 | Y126: el Censo que tiene la empresa EDALGAS S.A, las Empresas de Servicio Publico y la Alcaldia Municipal de Planadas del castrato poblacional es de 1652 , diferente al reporte del DANE que es de 1774
B127: EDALGAS S.A. E.S.P. | C127: 809011710-3 | D127: 2016-12-31 | E127: EL PAUJIL | F127: resolución aprobación Cargos GREG 066 DE 2014 | G127: GLP Red | H127: 18256 | I127: CAQUETA | J127: EL PAUJIL | K127: Existente | L127: 1649 | M127: 1649 | N127: 764 | O127: 584 | P127: 39 | Q127: 0 | R127: 0 | S127: 0 | T127: 0 | U127: 0 | V127: 1387 | W127: 1 | X127: 0.8411158278 | Y127: el Censo que tiene la empresa EDALGAS S.A, las Empresas de Servicio Publico y la Alcaldia Municipal de Planadas del castrato poblacional es de 1652 , diferente al reporte del DANE que es de 1774
B128: EDALGAS S.A. E.S.P. | C128: 809011710-3 | D128: 2016-12-31 | E128: SAN TIAGO PEREZ | F128: resolución aprobación Cargos GREG 196 DE 2013 | G128: GLP Red | H128: 73067 | I128: TOLIMA | J128: ATACO | K128: Nuevo | L128: 332 | M128: 332 | N128: 213 | O128: 51 | P128: 0 | Q128: 0 | R128: 0 | S128: 0 | T128: 1 | U128: 0 | V128: 265 | W128: 1 | X128: 0.7951807229
B129: EFIGAS GAS NATURAL S.A. E.S.P. | C129: 800202395-3 | D129: 2016-12-31 | E129: RISARALDA | F129: CONTRATO DE CONCESIÓN - ASE RISARALDA | G129: GN | H129: 66001 | I129: RISARALDA | J129: PEREIRA | K129: Existente | L129: 169242 | M129: 155993 | N129: 21505 | O129: 40143 | P129: 23726 | Q129: 18018 | R129: 10074 | S129: 6102 | T129: 2022 | U129: 48 | V129: 121638 | W129: 0.9217156498 | X129: 0.7064912965 | Y129: Catastro fuente Municipio actualización 2014
B130: EFIGAS GAS NATURAL S.A. E.S.P. | C130: 800202395-3 | D130: 2016-12-31 | E130: RISARALDA | F130: CONTRATO DE CONCESIÓN - ASE RISARALDA | G130: GN | H130: 66075 | I130: RISARALDA | J130: BALBOA | K130: Existente | L130: 1675 | M130: 429 | N130: 58 | O130: 128 | P130: 183 | Q130: 2 | R130: 0 | S130: 0 | T130: 12 | U130: 0 | V130: 383 | W130: 0.256119403 | X130: 0.2214925373 | Y130: Catastro fuente Municipio actualización 2005
B131: EFIGAS GAS NATURAL S.A. E.S.P. | C131: 800202395-3 | D131: 2016-12-31 | E131: RISARALDA | F131: CONTRATO DE CONCESIÓN - ASE RISARALDA | G131: GN | H131: 66170 | I131: RISARALDA | J131: DOSQUEBRADAS | K131: Existente | L131: 59891 | M131: 71743 | N131: 7658 | O131: 22690 | P131: 23391 | Q131: 5487 | R131: 45 | S131: 5 | T131: 772 | U131: 43 | V131: 60091 | W131: 1.197892839 | X131: 0.9897313453 | Y131: Catastro fuente Municipio actualización 2011
B132: EFIGAS GAS NATURAL S.A. E.S.P. | C132: 800202395-3 | D132: 2016-12-31 | E132: RISARALDA | F132: CONTRATO DE CONCESIÓN - ASE RISARALDA | G132: GN | H132: 66383 | I132: RISARALDA | J132: LA CELIA | K132: Existente | L132: 2068 | M132: 990 | N132: 199 | O132: 448 | P132: 248 | Q132: 2 | R132: 0 | S132: 0 | T132: 26 | U132: 0 | V132: 923 | W132: 0.4787234043 | X132: 0.4337524178 | Y132: Catastro fuente Municipio actualización 2005
B133: EFIGAS GAS NATURAL S.A. E.S.P. | C133: 800202395-3 | D133: 2016-12-31 | E133: RISARALDA | F133: CONTRATO DE CONCESIÓN - ASE RISARALDA | G133: GN | H133: 66400 | I133: RISARALDA | J133: LA VIRGINIA | K133: Existente | L133: 7447 | M133: 9196 | N133: 2359 | O133: 2224 | P133: 2852 | Q133: 131 | R133: 0 | S133: 0 | T133: 142 | U133: 2 | V133: 7710 | W133: 1.234859675 | X133: 1.015979589 | Y133: Catastro fuente Municipio actualización 2013
B134: EFIGAS GAS NATURAL S.A. E.S.P. | C134: 800202395-3 | D134: 2016-12-31 | E134: RISARALDA | F134: CONTRATO DE CONCESIÓN - ASE RISARALDA | G134: GN | H134: 66440 | I134: RISARALDA | J134: MARSELLA | K134: Existente | L134: 4779 | M134: 3064 | N134: 512 | O134: 1477 | P134: 425 | Q134: 7 | R134: 0 | S134: 0 | T134: 59 | U134: 0 | V134: 2480 | W134: 0.6411383135 | X134: 0.5065913371 | Y134: Catastro fuente Municipio actualización 2005
B135: EFIGAS GAS NATURAL S.A. E.S.P. | C135: 800202395-3 | D135: 2016-12-31 | E135: RISARALDA | F135: CONTRATO DE CONCESIÓN - ASE RISARALDA | G135: GN | H135: 66682 | I135: RISARALDA | J135: SANTA ROSA DE CABAL | K135: Existente | L135: 17131 | M135: 18177 | N135: 1399 | O135: 6739 | P135: 5689 | Q135: 825 | R135: 146 | S135: 9 | T135: 280 | U135: 4 | V135: 15091 | W135: 1.061058899 | X135: 0.8643395015 | Y135: Catastro fuente Municipio actualización 2011
B136: EFIGAS GAS NATURAL S.A. E.S.P. | C136: 800202395-3 | D136: 2016-12-31 | E136: QUINDÍO | F136: CONTRATO DE CONCESIÓN - ASE QUINDÍO | G136: GN | H136: 63001 | I136: QUINDIO | J136: ARMENIA | K136: Existente | L136: 79277 | M136: 105043 | N136: 19014 | O136: 24791 | P136: 22525 | Q136: 8727 | R136: 6847 | S136: 1227 | T136: 1394 | U136: 44 | V136: 84569 | W136: 1.325012299 | X136: 1.048614352 | Y136: Catastro fuente Municipio actualización 2013
B137: EFIGAS GAS NATURAL S.A. E.S.P. | C137: 800202395-3 | D137: 2016-12-31 | E137: QUINDÍO | F137: CONTRATO DE CONCESIÓN - ASE QUINDÍO | G137: GN | H137: 63130 | I137: QUINDIO | J137: CALARCA | K137: Existente | L137: 16639 | M137: 19971 | N137: 2215 | O137: 9946 | P137: 3700 | Q137: 774 | R137: 57 | S137: 3 | T137: 275 | U137: 6 | V137: 16976 | W137: 1.200252419 | X137: 1.003365587 | Y137: Catastro fuente Municipio actualización 2013
B138: EFIGAS GAS NATURAL S.A. E.S.P. | C138: 800202395-3 | D138: 2016-12-31 | E138: QUINDÍO | F138: CONTRATO DE CONCESIÓN - ASE QUINDÍO | G138: GN | H138: 63190 | I138: QUINDIO | J138: CIRCASIA | K138: Existente | L138: 7608 | M138: 7719 | N138: 2197 | O138: 3007 | P138: 1053 | Q138: 238 | R138: 76 | S138: 10 | T138: 89 | U138: 3 | V138: 6673 | W138: 1.014589905 | X138: 0.8650105152 | Y138: Catastro fuente Municipio actualización 2005
B139: EFIGAS GAS NATURAL S.A. E.S.P. | C139: 800202395-3 | D139: 2016-12-31 | E139: QUINDÍO | F139: CONTRATO DE CONCESIÓN - ASE QUINDÍO | G139: GN | H139: 63272 | I139: QUINDIO | J139: FILANDIA | K139: Existente | L139: 3636 | M139: 2671 | N139: 507 | O139: 1508 | P139: 374 | Q139: 0 | R139: 0 | S139: 0 | T139: 55 | U139: 0 | V139: 2444 | W139: 0.7345984598 | X139: 0.6570407041 | Y139: Catastro fuente Municipio actualización 2012
B140: EFIGAS GAS NATURAL S.A. E.S.P. | C140: 800202395-3 | D140: 2016-12-31 | E140: QUINDÍO | F140: CONTRATO DE CONCESIÓN - ASE QUINDÍO | G140: GN | H140: 63401 | I140: QUINDIO | J140: LA TEBAIDA | K140: Existente | L140: 7219 | M140: 8847 | N140: 1742 | O140: 5510 | P140: 343 | Q140: 25 | R140: 51 | S140: 11 | T140: 101 | U140: 7 | V140: 7790 | W140: 1.225515999 | X140: 1.064136307 | Y140: Catastro fuente Municipio actualización 2014
B141: EFIGAS GAS NATURAL S.A. E.S.P. | C141: 800202395-3 | D141: 2016-12-31 | E141: QUINDÍO | F141: CONTRATO DE CONCESIÓN - ASE QUINDÍO | G141: GN | H141: 63470 | I141: QUINDIO | J141: MONTENEGRO | K141: Existente | L141: 11600 | M141: 10364 | N141: 2881 | O141: 4947 | P141: 903 | Q141: 20 | R141: 7 | S141: 7 | T141: 138 | U141: 2 | V141: 8905 | W141: 0.8934482759 | X141: 0.7556034483 | Y141: Catastro fuente Municipio actualización 2009
B142: EFIGAS GAS NATURAL S.A. E.S.P. | C142: 800202395-3 | D142: 2016-12-31 | E142: QUINDÍO | F142: CONTRATO DE CONCESIÓN - ASE QUINDÍO | G142: GN | H142: 63594 | I142: QUINDIO | J142: QUIMBAYA | K142: Existente | L142: 13613 | M142: 8346 | N142: 1042 | O142: 5040 | P142: 997 | Q142: 25 | R142: 1 | S142: 0 | T142: 118 | U142: 0 | V142: 7223 | W142: 0.6130904283 | X142: 0.5219275692 | Y142: Catastro fuente Municipio actualización 2010
B143: EFIGAS GAS NATURAL S.A. E.S.P. | C143: 800202395-3 | D143: 2016-12-31 | E143: QUINDÍO | F143: CONTRATO DE CONCESIÓN - ASE QUINDÍO | G143: GN | H143: 63690 | I143: QUINDIO | J143: SALENTO | K143: Existente | L143: 2308 | M143: 1519 | N143: 198 | O143: 887 | P143: 168 | Q143: 13 | R143: 0 | S143: 1 | T143: 60 | U143: 0 | V143: 1327 | W143: 0.6581455806 | X143: 0.5489601386 | Y143: Catastro fuente Municipio actualización2012
B144: EFIGAS GAS NATURAL S.A. E.S.P. | C144: 800202395-3 | D144: 2016-12-31 | E144: CALDAS | F144: CONTRATO DE CONCESIÓN - ASE CALDAS | G144: GN | H144: 17001 | I144: CALDAS | J144: MANIZALES | K144: Existente | L144: 100982 | M144: 125385 | N144: 8317 | O144: 24800 | P144: 37731 | Q144: 14500 | R144: 4765 | S144: 8360 | T144: 2146 | U144: 90 | V144: 100709 | W144: 1.241656929 | X144: 0.9751539878 | Y144: Catastro fuente Municipio actualización 2014
B145: EFIGAS GAS NATURAL S.A. E.S.P. | C145: 800202395-3 | D145: 2016-12-31 | E145: CALDAS | F145: CONTRATO DE CONCESIÓN - ASE CALDAS | G145: GN | H145: 17174 | I145: CALDAS | J145: CHINCHINA | K145: Existente | L145: 11463 | M145: 14277 | N145: 1642 | O145: 5045 | P145: 2966 | Q145: 1485 | R145: 119 | S145: 0 | T145: 176 | U145: 7 | V145: 11440 | W145: 1.245485475 | X145: 0.9820291372 | Y145: Catastro fuente Municipio
B146: EFIGAS GAS NATURAL S.A. E.S.P. | C146: 800202395-3 | D146: 2016-12-31 | E146: CALDAS | F146: CONTRATO DE CONCESIÓN - ASE CALDAS | G146: GN | H146: 17486 | I146: CALDAS | J146: NEIRA | K146: Existente | L146: 7196 | M146: 4557 | N146: 505 | O146: 1591 | P146: 1708 | Q146: 0 | R146: 0 | S146: 0 | T146: 80 | U146: 0 | V146: 3884 | W146: 0.6332684825 | X146: 0.528627015 | Y146: Catastro fuente Municipio actualización 2014
B147: EFIGAS GAS NATURAL S.A. E.S.P. | C147: 800202395-3 | D147: 2016-12-31 | E147: CALDAS | F147: CONTRATO DE CONCESIÓN - ASE CALDAS | G147: GN | H147: 17524 | I147: CALDAS | J147: PALESTINA | K147: Existente | L147: 3867 | M147: 4012 | N147: 834 | O147: 1042 | P147: 146 | Q147: 42 | R147: 34 | S147: 34 | T147: 51 | U147: 0 | V147: 2183 | W147: 1.037496768 | X147: 0.5513317817 | Y147: Catastro fuente Municipio actualización 2015
B148: EFIGAS GAS NATURAL S.A. E.S.P. | C148: 800202395-3 | D148: 2016-12-31 | E148: CALDAS | F148: CONTRATO DE CONCESIÓN - ASE CALDAS | G148: GN | H148: 17873 | I148: CALDAS | J148: VILLAMARIA | K148: Existente | L148: 14098 | M148: 15445 | N148: 1949 | O148: 4726 | P148: 5727 | Q148: 942 | R148: 5 | S148: 58 | T148: 175 | U148: 10 | V148: 13592 | W148: 1.095545467 | X148: 0.9509859555 | Y148: Catastro fuente Municipio actualización 2009
B149: EFIGAS GAS NATURAL S.A. E.S.P. | C149: 800202395-3 | D149: 2016-12-31 | E149: ASNE - OCCIDENTE | F149: CREG 124 DE 2011 - CREG 190 DE 2011 | G149: GN | H149: 17042 | I149: CALDAS | J149: ANSERMA | K149: Existente | L149: 13394 | M149: 7649 | N149: 884 | O149: 1610 | P149: 2109 | Q149: 52 | R149: 0 | S149: 0 | T149: 36 | U149: 0 | V149: 4691 | W149: 0.5710766015 | X149: 0.3475436763 | Y149: Catastro fuente Municipio actualización 2013
B150: EFIGAS GAS NATURAL S.A. E.S.P. | C150: 800202395-3 | D150: 2016-12-31 | E150: ASNE - OCCIDENTE | F150: CREG 124 DE 2011 - CREG 190 DE 2011 | G150: GN | H150: 17088 | I150: CALDAS | J150: BELALCAZAR | K150: Existente | L150: 3340 | M150: 1707 | N150: 341 | O150: 553 | P150: 246 | Q150: 1 | R150: 0 | S150: 0 | T150: 11 | U150: 0 | V150: 1152 | W150: 0.5110778443 | X150: 0.3416167665 | Y150: Catastro fuente Municipio actualización 2010
B151: EFIGAS GAS NATURAL S.A. E.S.P. | C151: 800202395-3 | D151: 2016-12-31 | E151: ASNE - OCCIDENTE | F151: CREG 124 DE 2011 - CREG 190 DE 2011 | G151: GN | H151: 17614 | I151: CALDAS | J151: RIOSUCIO | K151: Existente | L151: 10026 | M151: 8787 | N151: 2538 | O151: 1486 | P151: 1930 | Q151: 3 | R151: 0 | S151: 0 | T151: 59 | U151: 0 | V151: 6016 | W151: 0.8764213046 | X151: 0.5941551965 | Y151: Catastro fuente DANE 2005
B152: EFIGAS GAS NATURAL S.A. E.S.P. | C152: 800202395-3 | D152: 2016-12-31 | E152: ASNE - OCCIDENTE | F152: CREG 124 DE 2011 - CREG 190 DE 2011 | G152: GN | H152: 17616 | I152: CALDAS | J152: RISARALDA | K152: Existente | L152: 2446 | M152: 1662 | N152: 331 | O152: 638 | P152: 183 | Q152: 0 | R152: 0 | S152: 0 | T152: 24 | U152: 0 | V152: 1176 | W152: 0.6794766966 | X152: 0.4709730172 | Y152: Catastro fuente Municipio actualización 1990
B153: EFIGAS GAS NATURAL S.A. E.S.P. | C153: 800202395-3 | D153: 2016-12-31 | E153: ASNE - OCCIDENTE | F153: CREG 124 DE 2011 - CREG 190 DE 2011 | G153: GN | H153: 17665 | I153: CALDAS | J153: SAN JOSE | K153: Existente | L153: 1252 | M153: 585 | N153: 99 | O153: 304 | P153: 2 | Q153: 1 | R153: 0 | S153: 0 | T153: 3 | U153: 0 | V153: 409 | W153: 0.4672523962 | X153: 0.3242811502 | Y153: Catastro fuente Municipio actualización 2008
B154: EFIGAS GAS NATURAL S.A. E.S.P. | C154: 800202395-3 | D154: 2016-12-31 | E154: ASNE - OCCIDENTE | F154: CREG 124 DE 2011 - CREG 190 DE 2011 | G154: GN | H154: 17777 | I154: CALDAS | J154: SUPIA | K154: Existente | L154: 9997 | M154: 4731 | N154: 182 | O154: 1896 | P154: 1019 | Q154: 4 | R154: 0 | S154: 0 | T154: 25 | U154: 0 | V154: 3126 | W154: 0.4732419726 | X154: 0.3101930579 | Y154: Catastro fuente Municipio actualización 2008
B155: EFIGAS GAS NATURAL S.A. E.S.P. | C155: 800202395-3 | D155: 2016-12-31 | E155: ASNE - OCCIDENTE | F155: CREG 124 DE 2011 - CREG 190 DE 2011 | G155: GN | H155: 17877 | I155: CALDAS | J155: VITERBO | K155: Existente | L155: 3018 | M155: 3998 | N155: 922 | O155: 1059 | P155: 938 | Q155: 29 | R155: 2 | S155: 0 | T155: 24 | U155: 0 | V155: 2974 | W155: 1.324718357 | X155: 0.9774685222 | Y155: Catastro fuente Municipio actualización 2005
B156: EFIGAS GAS NATURAL S.A. E.S.P. | C156: 800202395-3 | D156: 2016-12-31 | E156: ASNE - OCCIDENTE | F156: CREG 124 DE 2011 - CREG 190 DE 2011 | G156: GN | H156: 66318 | I156: RISARALDA | J156: GUATICA | K156: Existente | L156: 4338 | M156: 2369 | N156: 299 | O156: 949 | P156: 219 | Q156: 0 | R156: 0 | S156: 0 | T156: 11 | U156: 1 | V156: 1479 | W156: 0.5461041955 | X156: 0.3381742739 | Y156: Catastro fuente Municipio
B157: EFIGAS GAS NATURAL S.A. E.S.P. | C157: 800202395-3 | D157: 2016-12-31 | E157: ASNE - OCCIDENTE | F157: CREG 124 DE 2011 - CREG 190 DE 2011 | G157: GN | H157: 66594 | I157: RISARALDA | J157: QUINCHIA | K157: Existente | L157: 8074 | M157: 3106 | N157: 387 | O157: 542 | P157: 768 | Q157: 8 | R157: 0 | S157: 0 | T157: 18 | U157: 0 | V157: 1723 | W157: 0.3846916027 | X157: 0.2111716621 | Y157: Catastro fuente Municipio actualización 2014
B158: EFIGAS GAS NATURAL S.A. E.S.P. | C158: 800202395-3 | D158: 2016-12-31 | E158: ASNE - OCCIDENTE | F158: CREG 124 DE 2011 - CREG 190 DE 2011 | G158: GN | H158: 66687 | I158: RISARALDA | J158: SANTUARIO | K158: Existente | L158: 3987 | M158: 2144 | N158: 176 | O158: 445 | P158: 533 | Q158: 7 | R158: 0 | S158: 0 | T158: 17 | U158: 0 | V158: 1178 | W158: 0.53774768 | X158: 0.2911963883 | Y158: Catastro fuente Municipio actualización 2005
B159: EFIGAS GAS NATURAL S.A. E.S.P. | C159: 800202395-3 | D159: 2016-12-31 | E159: ASNE - OCCIDENTE | F159: CREG 124 DE 2011 - CREG 190 DE 2011 | G159: GN | H159: 66045 | I159: RISARALDA | J159: APIA | K159: Existente | L159: 4211 | M159: 2316 | N159: 205 | O159: 609 | P159: 535 | Q159: 7 | R159: 0 | S159: 0 | T159: 13 | U159: 1 | V159: 1370 | W159: 0.5499881263 | X159: 0.3220137735 | Y159: Catastro fuente Municipio actualización 2005
B160: EFIGAS GAS NATURAL S.A. E.S.P. | C160: 800202395-3 | D160: 2016-12-31 | E160: ASNE - OCCIDENTE | F160: CREG 124 DE 2011 - CREG 190 DE 2011 | G160: GN | H160: 66088 | I160: RISARALDA | J160: BELEN DE UMBRIA | K160: Existente | L160: 7444 | M160: 4248 | N160: 95 | O160: 1388 | P160: 971 | Q160: 142 | R160: 0 | S160: 0 | T160: 26 | U160: 0 | V160: 2622 | W160: 0.570660935 | X160: 0.348737238 | Y160: Catastro fuente DANE 2005
B161: G 8 PROYECTOS ENERGETICOS S.A.S. E.S.P. | C161: 900542835-3 | D161: 2016-12-31 | E161: SESQUILE, SUESCA, CHOCONTA, VILLAPINZON, GUASCA Y GUATAVITA | F161: CREG 047 Y 108 DE 2013 | G161: GNC | H161: 25183 | I161: CUNDINAMARCA | J161: CHOCONTA | K161: Existente | L161: 24600 | M161: 2350 | N161: 344 | O161: 2237 | P161: 0 | Q161: 0 | R161: 0 | S161: 0 | T161: 14 | U161: 0 | V161: 2595 | W161: 0.09552845528 | X161: 0.1049186992
B162: G 8 PROYECTOS ENERGETICOS S.A.S. E.S.P. | C162: 900542835-3 | D162: 2016-12-31 | E162: SESQUILE, SUESCA, CHOCONTA, VILLAPINZON, GUASCA Y GUATAVITA | F162: CREG 047 Y 108 DE 2013 | G162: GNC | H162: 25322 | I162: CUNDINAMARCA | J162: GUASCA | K162: Existente | L162: 12109 | M162: 1180 | N162: 54 | O162: 893 | P162: 194 | Q162: 0 | R162: 0 | S162: 0 | T162: 14 | U162: 0 | V162: 1155 | W162: 0.0974 | X162: 0.0942
B163: G 8 PROYECTOS ENERGETICOS S.A.S. E.S.P. | C163: 900542835-3 | D163: 2016-12-31 | E163: SESQUILE, SUESCA, CHOCONTA, VILLAPINZON, GUASCA Y GUATAVITA | F163: CREG 047 Y 108 DE 2013 | G163: GNC | H163: 25873 | I163: CUNDINAMARCA | J163: VILLAPINZON | K163: Existente | L163: 19742 | M163: 550 | N163: 8 | O163: 431 | P163: 75 | Q163: 0 | R163: 0 | S163: 0 | T163: 5 | U163: 0 | V163: 519 | W163: 0.0279 | X163: 0.026
B164: GAS NATURAL S.A E.S.P | C164: 800007813-5 | D164: 2016-12-31 | E164: Cundinamarca | F164: CREG 033 de 2004 | G164: GN | H164: 11001 | I164: BOGOTA | J164: BOGOTA, D.C. | K164: Existente | L164: 1942097 | M164: 1877538 | N164: 144241 | O164: 666209 | P164: 668237 | Q164: 248269 | R164: 81798 | S164: 60166 | T164: 49725 | U164: 547 | V164: 1919192 | W164: 0.966758097 | X164: 0.9623206256
B165: GAS NATURAL S.A E.S.P | C165: 800007813-5 | D165: 2016-12-31 | E165: Cundinamarca | F165: CREG 033 de 2004 | G165: GN | H165: 25754 | I165: CUNDINAMARCA | J165: SOACHA | K165: Existente | L165: 185195 | M165: 179925 | N165: 33966 | O165: 91041 | P165: 50132 | Q165: 59 | R165: 8 | S165: 0 | T165: 1840 | U165: 31 | V165: 177077 | W165: 0.9715435082 | X165: 0.9460622587
B166: GAS NATURAL S.A E.S.P | C166: 800007813-5 | D166: 2016-12-31 | E166: Cundinamarca | F166: CREG 054 de 2010 | G166: GN | H166: 25377 | I166: CUNDINAMARCA | J166: LA CALERA | K166: Existente | L166: 3105 | M166: 2990 | N166: 18 | O166: 1832 | P166: 973 | Q166: 50 | R166: 0 | S166: 0 | T166: 65 | U166: 0 | V166: 2938 | W166: 0.962962963 | X166: 0.9252818035
B167: GAS NATURAL S.A E.S.P | C167: 800007813-5 | D167: 2016-12-31 | E167: Cundinamarca | F167: CREG 033 de 2004 | G167: GN | H167: 25740 | I167: CUNDINAMARCA | J167: SIBATE | K167: Existente | L167: 7488 | M167: 6962 | N167: 433 | O167: 5352 | P167: 1166 | Q167: 1 | R167: 1 | S167: 0 | T167: 172 | U167: 11 | V167: 7136 | W167: 0.9297542735 | X167: 0.9285523504
B168: GAS NATURAL S.A E.S.P | C168: 800007813-5 | D168: 2016-12-31 | E168: Cundinamarca | F168: CREG 065 de 2011 | G168: GN | H168: 25260 | I168: CUNDINAMARCA | J168: EL ROSAL | K168: Existente | L168: 3668 | M168: 3558 | N168: 20 | O168: 1869 | P168: 1653 | Q168: 1 | R168: 0 | S168: 2 | T168: 64 | U168: 0 | V168: 3609 | W168: 0.9700109051 | X168: 0.9664667394
B169: GAS NATURAL S.A E.S.P | C169: 800007813-5 | D169: 2016-12-31 | E169: Cundinamarca | F169: CREG 071 de 2012 | G169: GN | H169: 25245 | I169: CUNDINAMARCA | J169: EL COLEGIO | K169: Existente | L169: 1444 | M169: 1220 | N169: 7 | O169: 594 | P169: 594 | Q169: 3 | R169: 0 | S169: 0 | T169: 21 | U169: 0 | V169: 1219 | W169: 0.8448753463 | X169: 0.8296398892
B170: GAS NATURAL S.A E.S.P | C170: 800007813-5 | D170: 2016-12-31 | E170: Cundinamarca | F170: CREG 071 de 2012 | G170: GN | H170: 25386 | I170: CUNDINAMARCA | J170: LA MESA | K170: Existente | L170: 4402 | M170: 4089 | N170: 2 | O170: 1959 | P170: 1748 | Q170: 380 | R170: 0 | S170: 0 | T170: 42 | U170: 0 | V170: 4131 | W170: 0.9288959564 | X170: 0.9288959564
B171: GAS NATURAL S.A E.S.P | C171: 800007813-5 | D171: 2016-12-31 | E171: Cundinamarca | F171: CREG 071 de 2012 | G171: GN | H171: 25035 | I171: CUNDINAMARCA | J171: ANAPOIMA | K171: Existente | L171: 1483 | M171: 1392 | N171: 1 | O171: 208 | P171: 586 | Q171: 300 | R171: 88 | S171: 0 | T171: 29 | U171: 0 | V171: 1212 | W171: 0.9386378962 | X171: 0.79770735
B172: GAS NATURAL S.A E.S.P | C172: 800007813-5 | D172: 2016-12-31 | E172: Cundinamarca | F172: CREG 071 de 2012 | G172: GN | H172: 25878 | I172: CUNDINAMARCA | J172: VIOTA | K172: Nuevo | L172: 204 | M172: 107 | N172: 1 | O172: 83 | P172: 1 | Q172: 0 | R172: 0 | S172: 0 | T172: 0 | U172: 0 | V172: 85 | W172: 0.5245098039 | X172: 0.4166666667
B173: GASES DE LA GUAJIRA S.A. E.S.P. | C173: 892115036-6 | D173: 2016-12-31 | E173: MERCADO RELEVANTE 1 | F173: CREG 027/2004 | G173: GN | H173: 44001 | I173: LA GUAJIRA | J173: RIOHACHA | K173: Existente | L173: 45967 | M173: 43026 | N173: 18434.65228 | O173: 13292.50084 | P173: 4593.421695 | Q173: 1315.505511 | R173: 274.9196733 | S173: 1 | T173: 486 | U173: 27 | V173: 38425 | W173: 0.9360193182 | X173: 0.8247655927
B174: GASES DE LA GUAJIRA S.A. E.S.P. | C174: 892115036-6 | D174: 2016-12-31 | E174: MERCADO RELEVANTE 1 | F174: CREG 027/2004 | G174: GN | H174: 44035 | I174: LA GUAJIRA | J174: ALBANIA | K174: Existente | L174: 3427 | M174: 3048 | N174: 748 | O174: 860 | P174: 0 | Q174: 0 | R174: 0 | S174: 0 | T174: 22 | U174: 520 | V174: 2150 | W174: 0.8894076452 | X174: 0.4692150569
B175: GASES DE LA GUAJIRA S.A. E.S.P. | C175: 892115036-6 | D175: 2016-12-31 | E175: MERCADO RELEVANTE 1 | F175: CREG 027/2004 | G175: GN | H175: 44078 | I175: LA GUAJIRA | J175: BARRANCAS | K175: Existente | L175: 6382 | M175: 5822 | N175: 1354.852033 | O175: 2905.221138 | P175: 841.9268293 | Q175: 0 | R175: 0 | S175: 0 | T175: 52 | U175: 0 | V175: 5154 | W175: 0.9122532122 | X175: 0.7994359135
B176: GASES DE LA GUAJIRA S.A. E.S.P. | C176: 892115036-6 | D176: 2016-12-31 | E176: MERCADO RELEVANTE 1 | F176: CREG 027/2004 | G176: GN | H176: 44090 | I176: LA GUAJIRA | J176: DIBULLA | K176: Existente | L176: 4900 | M176: 4569 | N176: 1081 | O176: 2276 | P176: 2 | Q176: 0 | R176: 0 | S176: 0 | T176: 56 | U176: 3 | V176: 3418 | W176: 0.9324489796 | X176: 0.6855102041
B177: GASES DE LA GUAJIRA S.A. E.S.P. | C177: 892115036-6 | D177: 2016-12-31 | E177: MERCADO RELEVANTE 1 | F177: CREG 027/2004 | G177: GN | H177: 44098 | I177: LA GUAJIRA | J177: DISTRACCION | K177: Existente | L177: 2295 | M177: 2193 | N177: 561 | O177: 1140 | P177: 197 | Q177: 2 | R177: 0 | S177: 0 | T177: 16 | U177: 2 | V177: 1918 | W177: 0.9555555556 | X177: 0.8278867102
B178: GASES DE LA GUAJIRA S.A. E.S.P. | C178: 892115036-6 | D178: 2016-12-31 | E178: MERCADO RELEVANTE 1 | F178: CREG 027/2004 | G178: GN | H178: 44110 | I178: LA GUAJIRA | J178: EL MOLINO | K178: Existente | L178: 1491 | M178: 1473 | N178: 474.9135802 | O178: 653.9320988 | P178: 136.154321 | Q178: 0 | R178: 0 | S178: 0 | T178: 6 | U178: 0 | V178: 1271 | W178: 0.9879275654 | X178: 0.8484238766
B179: GASES DE LA GUAJIRA S.A. E.S.P. | C179: 892115036-6 | D179: 2016-12-31 | E179: MERCADO RELEVANTE 1 | F179: CREG 027/2004 | G179: GN | H179: 44279 | I179: LA GUAJIRA | J179: FONSECA | K179: Existente | L179: 10574 | M179: 10349 | N179: 4403.940567 | O179: 2478.241181 | P179: 2010.796012 | Q179: 51.02223926 | R179: 0 | S179: 0 | T179: 73 | U179: 5 | V179: 9022 | W179: 0.9787213921 | X179: 0.8458483072
B180: GASES DE LA GUAJIRA S.A. E.S.P. | C180: 892115036-6 | D180: 2016-12-31 | E180: MERCADO RELEVANTE 1 | F180: CREG 027/2004 | G180: GN | H180: 44378 | I180: LA GUAJIRA | J180: HATONUEVO | K180: Existente | L180: 3631 | M180: 3533 | N180: 815.9728682 | O180: 1029.903101 | P180: 482.5310078 | Q180: 299.5930233 | R180: 0 | S180: 0 | T180: 49 | U180: 1 | V180: 2678 | W180: 0.97301019 | X180: 0.7237675571
B181: GASES DE LA GUAJIRA S.A. E.S.P. | C181: 892115036-6 | D181: 2016-12-31 | E181: MERCADO RELEVANTE 2 | F181: CREG 089/2006 | G181: GN | H181: 44420 | I181: LA GUAJIRA | J181: LA JAGUA DEL PILAR | K181: Existente | L181: 465 | M181: 462 | N181: 222 | O181: 224 | P181: 0 | Q181: 0 | R181: 0 | S181: 0 | T181: 5 | U181: 0 | V181: 451 | W181: 0.9935483871 | X181: 0.9591397849
B182: GASES DE LA GUAJIRA S.A. E.S.P. | C182: 892115036-6 | D182: 2016-12-31 | E182: MERCADO RELEVANTE 1 | F182: CREG 027/2004 | G182: GN | H182: 44430 | I182: LA GUAJIRA | J182: MAICAO | K182: Existente | L182: 28510 | M182: 25299 | N182: 5766.028706 | O182: 11473.91452 | P182: 3129.657691 | Q182: 348.3990855 | R182: 0 | S182: 0 | T182: 244 | U182: 14 | V182: 20976 | W182: 0.8873728516 | X182: 0.7266923886
B183: GASES DE LA GUAJIRA S.A. E.S.P. | C183: 892115036-6 | D183: 2016-12-31 | E183: MERCADO RELEVANTE 1 | F183: CREG 027/2004 | G183: GN | H183: 44560 | I183: LA GUAJIRA | J183: MANAURE | K183: Existente | L183: 2497 | M183: 1996 | N183: 368 | O183: 857.2350674 | P183: 178.7649326 | Q183: 0 | R183: 0 | S183: 0 | T183: 37 | U183: 1 | V183: 1442 | W183: 0.7993592311 | X183: 0.5622747297
B184: GASES DE LA GUAJIRA S.A. E.S.P. | C184: 892115036-6 | D184: 2016-12-31 | E184: MERCADO RELEVANTE 1 | F184: CREG 027/2004 | G184: GN | H184: 44650 | I184: LA GUAJIRA | J184: SAN JUAN DEL CESAR | K184: Existente | L184: 10572 | M184: 9532 | N184: 3205.361436 | O184: 3098.138173 | P184: 1626.867291 | Q184: 47.63309914 | R184: 0 | S184: 0 | T184: 57 | U184: 5 | V184: 8040 | W184: 0.9016269391 | X184: 0.7546348846
B185: GASES DE LA GUAJIRA S.A. E.S.P. | C185: 892115036-6 | D185: 2016-12-31 | E185: MERCADO RELEVANTE 1 | F185: CREG 027/2004 | G185: GN | H185: 44847 | I185: LA GUAJIRA | J185: URIBIA | K185: Existente | L185: 2484 | M185: 2162 | N185: 642.9881657 | O185: 904.3668639 | P185: 32.64497041 | Q185: 0 | R185: 0 | S185: 0 | T185: 37 | U185: 6 | V185: 1623 | W185: 0.8703703704 | X185: 0.6360708535
B186: GASES DE LA GUAJIRA S.A. E.S.P. | C186: 892115036-6 | D186: 2016-12-31 | E186: MERCADO RELEVANTE 1 | F186: CREG 027/2004 | G186: GN | H186: 44855 | I186: LA GUAJIRA | J186: URUMITA | K186: Existente | L186: 2111 | M186: 2100 | N186: 881.375 | O186: 1026.866071 | P186: 8.758928571 | Q186: 0 | R186: 0 | S186: 0 | T186: 15 | U186: 1 | V186: 1933 | W186: 0.9947891994 | X186: 0.9081004263
B187: GASES DE LA GUAJIRA S.A. E.S.P. | C187: 892115036-6 | D187: 2016-12-31 | E187: MERCADO RELEVANTE 1 | F187: CREG 027/2004 | G187: GN | H187: 44874 | I187: LA GUAJIRA | J187: VILLANUEVA | K187: Existente | L187: 6010 | M187: 5747 | N187: 1656.260269 | O187: 2780.952365 | P187: 769.8929928 | Q187: 16.89437349 | R187: 0 | S187: 0 | T187: 50 | U187: 2 | V187: 5276 | W187: 0.9562396007 | X187: 0.86921797
B188: GASES DEL ORIENTE S.A. E.S.P. | C188: 890503900-2 | D188: 2016-12-31 | E188: NORTE DE SANTANDER | F188: CREG 032 de 2004/CREG 011 de 2005 | G188: GN | H188: 54001 | I188: N. DE SANTANDER | J188: CUCUTA | K188: Existente | L188: 147517 | M188: 141745 | N188: 29735 | O188: 51960 | P188: 18955 | Q188: 8349 | R188: 551 | S188: 0 | T188: 234 | U188: 6 | V188: 109790 | W188: 0.9608723062 | X188: 0.7426262736
B189: GASES DEL ORIENTE S.A. E.S.P. | C189: 890503900-2 | D189: 2016-12-31 | E189: NORTE DE SANTANDER | F189: CREG 032 de 2004/CREG 011 de 2005 | G189: GN | H189: 54874 | I189: N. DE SANTANDER | J189: VILLA DEL ROSARIO | K189: Existente | L189: 24500 | M189: 21293 | N189: 5888 | O189: 4038 | P189: 2232 | Q189: 240 | R189: 0 | S189: 0 | T189: 18 | U189: 1 | V189: 12417 | W189: 0.8691020408 | X189: 0.5060408163
B190: GASES DEL ORIENTE S.A. E.S.P. | C190: 890503900-2 | D190: 2016-12-31 | E190: NORTE DE SANTANDER | F190: CREG 032 de 2004/CREG 011 de 2005 | G190: GN | H190: 54405 | I190: N. DE SANTANDER | J190: LOS PATIOS | K190: Existente | L190: 17657 | M190: 17453 | N190: 1161 | O190: 9162 | P190: 1983 | Q190: 83 | R190: 75 | S190: 21 | T190: 19 | U190: 0 | V190: 12504 | W190: 0.9884465085 | X190: 0.7070850088
B191: GASES DEL ORIENTE S.A. E.S.P. | C191: 890503900-2 | D191: 2016-12-31 | E191: PAMPLONA | F191: CREG 040 de 2007 | G191: GN | H191: 54518 | I191: N. DE SANTANDER | J191: PAMPLONA | K191: Existente | L191: 14450 | M191: 12050 | N191: 1503 | O191: 2967 | P191: 2077 | Q191: 531 | R191: 0 | S191: 0 | T191: 18 | U191: 3 | V191: 7099 | W191: 0.8339100346 | X191: 0.4898269896
B192: GASES DEL ORIENTE S.A. E.S.P. | C192: 890503900-2 | D192: 2016-12-31 | E192: TIBU | F192: CREG 029 de 2012 | G192: GN | H192: 54820 | I192: N. DE SANTANDER | J192: TOLEDO | K192: Existente | L192: 2654 | M192: 2438 | N192: 116 | O192: 1568 | P192: 265 | Q192: 9 | R192: 0 | S192: 0 | T192: 4 | U192: 0 | V192: 1962 | W192: 0.9186134137 | X192: 0.7377543331 | Y192: Incluye cabecera municipal y los corregimientos de San Bernardo de Bata, Samoré y Gibraltar
B193: GASES DEL ORIENTE S.A. E.S.P. | C193: 890503900-2 | D193: 2016-12-31 | E193: TIBU | F193: CREG 029 de 2012 | G193: GN | H193: 54377 | I193: N. DE SANTANDER | J193: LABATECA | K193: Existente | L193: 701 | M193: 682 | N193: 107 | O193: 401 | P193: 0 | Q193: 0 | R193: 0 | S193: 0 | T193: 0 | U193: 0 | V193: 508 | W193: 0.9728958631 | X193: 0.72467903
B194: GASES DEL ORIENTE S.A. E.S.P. | C194: 890503900-2 | D194: 2016-12-31 | E194: TIBU | F194: CREG 029 de 2012 | G194: GN | H194: 54174 | I194: N. DE SANTANDER | J194: CHITAGA | K194: Existente | L194: 1856 | M194: 1747 | N194: 362 | O194: 845 | P194: 1 | Q194: 0 | R194: 0 | S194: 0 | T194: 8 | U194: 0 | V194: 1216 | W194: 0.9412715517 | X194: 0.650862069
B195: GASES DEL ORIENTE S.A. E.S.P. | C195: 890503900-2 | D195: 2016-12-31 | E195: TIBU | F195: CREG 029 de 2012 | G195: GN | H195: 54743 | I195: N. DE SANTANDER | J195: SILOS | K195: Existente | L195: 401 | M195: 529 | N195: 40 | O195: 279 | P195: 0 | Q195: 0 | R195: 0 | S195: 0 | T195: 3 | U195: 0 | V195: 322 | W195: 1.319201995 | X195: 0.7955112219
B196: GASES DEL ORIENTE S.A. E.S.P. | C196: 890503900-2 | D196: 2016-12-31 | E196: TIBU | F196: CREG 029 de 2012 | G196: GNC | H196: 54720 | I196: N. DE SANTANDER | J196: SARDINATA | K196: Existente | L196: 3165 | M196: 2779 | N196: 1071 | O196: 1029 | P196: 44 | Q196: 0 | R196: 0 | S196: 0 | T196: 1 | U196: 0 | V196: 2145 | W196: 0.8780410742 | X196: 0.6774091627
B197: GASES DEL ORIENTE S.A. E.S.P. | C197: 890503900-2 | D197: 2016-12-31 | E197: EL ZULIA | F197: CREG 032 de 2013/CREG 107 de 2013 | G197: GNC | H197: 54261 | I197: N. DE SANTANDER | J197: EL ZULIA | K197: Nuevo | L197: 3967 | M197: 3391 | N197: 544 | O197: 1600 | P197: 298 | Q197: 1 | R197: 0 | S197: 0 | T197: 0 | U197: 0 | V197: 2443 | W197: 0.8548021175 | X197: 0.6158306025
B198: GASES DEL SUR DE SANTANDER S.A. E.S.P. | C198: 8040028019 | D198: 2016-12-31 | E198: 2 | F198: CREG 129 de 2011 | G198: GLP Red | H198: 68207 | I198: SANTANDER | J198: CONCEPCION | K198: Existente | L198: 1885 | M198: 658 | N198: 32 | O198: 621 | P198: 5 | Q198: 0 | R198: 0 | S198: 0 | T198: 1 | U198: 0 | V198: 659 | W198: 0.349071618 | X198: 0.349071618
B199: GASES DEL SUR DE SANTANDER S.A. E.S.P. | C199: 8040028019 | D199: 2016-12-31 | E199: 2 | F199: CREG 129 de 2011 | G199: GLP Red | H199: 68684 | I199: SANTANDER | J199: SAN JOSE DE MIRANDA | K199: Existente | L199: 1440 | M199: 238 | N199: 4 | O199: 225 | P199: 9 | Q199: 0 | R199: 0 | S199: 0 | T199: 0 | U199: 0 | V199: 238 | W199: 0.1652777778 | X199: 0.1652777778
B200: GASES DEL SUR DE SANTANDER S.A. E.S.P. | C200: 8040028019 | D200: 2016-12-31 | E200: 2 | F200: CREG 129 de 2011 | G200: GLP Red | H200: 68468 | I200: SANTANDER | J200: MOLAGAVITA | K200: Existente | L200: 1757 | M200: 172 | N200: 14 | O200: 151 | P200: 7 | Q200: 0 | R200: 0 | S200: 0 | T200: 1 | U200: 0 | V200: 173 | W200: 0.09789413773 | X200: 0.09789413773
... 567 more rows

Sheet GLP (hidden)
A1: Empresa | B1: Departamento | C1: Municipio | D1: Catastro Población | E1: Total Residenciales Anillados | F1: E1 | G1: E2 | H1: E3 | I1: E4 | J1: E5 | K1: E6 | L1: Total Comercial Conectados | M1: Total Industrial Conectados | N1: Total Usuarios Conectados | O1: Cobertura Residencial Potencial | P1: Cobertura Residencial Efectiva | Q1: Observación
A2: EDALGAS S.A. E.S.P. | B2: CAQUETA | C2: EL PAUJIL | D2: 1649 | E2: 1649 | F2: 764 | G2: 584 | H2: 39 | I2: 0 | J2: 0 | K2: 0 | L2: 0 | M2: 0 | N2: 1387 | O2: 1 | P2: 0.8411158278 | Q2: el Censo que tiene la empresa EDALGAS S.A, las Empresas de Servicio Publico y la Alcaldia Municipal de Planadas del castrato poblacional es de 1652 , diferente al reporte del DANE que es de 1774
A3: EDALGAS S.A. E.S.P. | B3: CAQUETA | C3: SAN JOSE DEL FRAGUA | D3: 2299 | E3: 2299 | F3: 1058 | G3: 376 | H3: 0 | I3: 0 | J3: 0 | K3: 0 | L3: 0 | M3: 0 | N3: 1434 | O3: 1 | P3: 0.6237494563 | Q3: el Censo que tiene la empresa EDALGAS S.A, las Empresas de Servicio Publico y la Alcaldia Municipal de Planadas del castrato poblacional es de 1652 , diferente al reporte del DANE que es de 1774
A4: EDALGAS S.A. E.S.P. | B4: TOLIMA | C4: ATACO | D4: 1244 | E4: 1244 | F4: 554 | G4: 584 | H4: 1 | I4: 0 | J4: 0 | K4: 0 | L4: 1 | M4: 0 | N4: 1140 | O4: 1 | P4: 0.9155948553
A5: EDALGAS S.A. E.S.P. | B5: TOLIMA | C5: ATACO | D5: 332 | E5: 332 | F5: 213 | G5: 51 | H5: 0 | I5: 0 | J5: 0 | K5: 0 | L5: 1 | M5: 0 | N5: 265 | O5: 1 | P5: 0.7951807229
A6: EDALGAS S.A. E.S.P. | B6: TOLIMA | C6: PLANADAS | D6: 1652 | E6: 1652 | F6: 487 | G6: 740 | H6: 41 | I6: 0 | J6: 0 | K6: 0 | L6: 0 | M6: 0 | N6: 1268 | O6: 1 | P6: 0.7675544794 | Q6: el Censo que tiene la empresa EDALGAS S.A, las Empresas de Servicio Publico y la Alcaldia Municipal de Planadas del castrato poblacional es de 1652 , diferente al reporte del DANE que es de 1774
A7: GASES DEL SUR DE SANTANDER S.A. E.S.P. | B7: BOYACA | C7: COVARACHIA | D7: 891 | E7: 132 | F7: 0 | G7: 128 | H7: 4 | I7: 0 | J7: 0 | K7: 0 | L7: 0 | M7: 0 | N7: 132 | O7: 0.1481481481 | P7: 0.1481481481
A8: GASES DEL SUR DE SANTANDER S.A. E.S.P. | B8: BOYACA | C8: TIPACOQUE | D8: 958 | E8: 218 | F8: 0 | G8: 216 | H8: 2 | I8: 0 | J8: 0 | K8: 0 | L8: 1 | M8: 0 | N8: 219 | O8: 0.2275574113 | P8: 0.2275574113
A9: GASES DEL SUR DE SANTANDER S.A. E.S.P. | B9: SANTANDER | C9: CERRITO | D9: 1560 | E9: 395 | F9: 239 | G9: 155 | H9: 1 | I9: 0 | J9: 0 | K9: 0 | L9: 0 | M9: 0 | N9: 395 | O9: 0.2532051282 | P9: 0.2532051282
A10: GASES DEL SUR DE SANTANDER S.A. E.S.P. | B10: SANTANDER | C10: CONCEPCION | D10: 1885 | E10: 658 | F10: 32 | G10: 621 | H10: 5 | I10: 0 | J10: 0 | K10: 0 | L10: 1 | M10: 0 | N10: 659 | O10: 0.349071618 | P10: 0.349071618
A11: GASES DEL SUR DE SANTANDER S.A. E.S.P. | B11: SANTANDER | C11: MOLAGAVITA | D11: 1757 | E11: 172 | F11: 14 | G11: 151 | H11: 7 | I11: 0 | J11: 0 | K11: 0 | L11: 1 | M11: 0 | N11: 173 | O11: 0.09789413773 | P11: 0.09789413773
A12: GASES DEL SUR DE SANTANDER S.A. E.S.P. | B12: SANTANDER | C12: ONZAGA | D12: 2088 | E12: 354 | F12: 19 | G12: 325 | H12: 10 | I12: 0 | J12: 0 | K12: 0 | L12: 0 | M12: 0 | N12: 354 | O12: 0.1695402299 | P12: 0.1695402299
A13: GASES DEL SUR DE SANTANDER S.A. E.S.P. | B13: SANTANDER | C13: PALMAS DEL SOCORRO | D13: 653 | E13: 201 | F13: 7 | G13: 191 | H13: 3 | I13: 0 | J13: 0 | K13: 0 | L13: 0 | M13: 0 | N13: 201 | O13: 0.3078101072 | P13: 0.3078101072
A14: GASES DEL SUR DE SANTANDER S.A. E.S.P. | B14: SANTANDER | C14: SAN JOSE DE MIRANDA | D14: 1440 | E14: 238 | F14: 4 | G14: 225 | H14: 9 | I14: 0 | J14: 0 | K14: 0 | L14: 0 | M14: 0 | N14: 238 | O14: 0.1652777778 | P14: 0.1652777778
A15: GAS AND OIL ENGINEERING S.A. E.S.P | B15: BOYACA | C15: TOCA | D15: 1700 | E15: 1135 | F15: 57 | G15: 804 | H15: 11 | I15: 0 | J15: 0 | K15: 0 | L15: 3 | M15: 0 | N15: 875 | O15: 0.6676470588 | P15: 0.5129411765 | Q15: Catastro según DPM
A16: GAS AND OIL ENGINEERING S.A. E.S.P | B16: SANTANDER | C16: ARATOCA | D16: 600 | E16: 667 | F16: 111 | G16: 397 | H16: 16 | I16: 0 | J16: 0 | K16: 0 | L16: 2 | M16: 0 | N16: 526 | O16: 1.111666667 | P16: 0.8733333333 | Q16: proyecto anillado total y terminado municipio en expancion y desarrollo
A17: GAS AND OIL ENGINEERING S.A. E.S.P | B17: SANTANDER | C17: CAPITANEJO | D17: 1064 | E17: 1073 | F17: 388 | G17: 564 | H17: 0 | I17: 0 | J17: 0 | K17: 0 | L17: 4 | M17: 0 | N17: 956 | O17: 1.008458647 | P17: 0.8947368421 | Q17: proyecto anillado total y terminado municipio en expancion y desarrollo
A18: GAS AND OIL ENGINEERING S.A. E.S.P | B18: SANTANDER | C18: CHIMA | D18: 300 | E18: 301 | F18: 60 | G18: 166 | H18: 0 | I18: 0 | J18: 0 | K18: 0 | L18: 0 | M18: 0 | N18: 226 | O18: 1.003333333 | P18: 0.7533333333 | Q18: proyecto anillado total y terminado
A19: GAS AND OIL ENGINEERING S.A. E.S.P | B19: SANTANDER | C19: CONFINES | D19: 300 | E19: 256 | F19: 24 | G19: 129 | H19: 2 | I19: 0 | J19: 0 | K19: 0 | L19: 0 | M19: 0 | N19: 155 | O19: 0.8533333333 | P19: 0.5166666667 | Q19: proyecto anillado total y terminado municipio en expancion y desarrollo
A20: GAS AND OIL ENGINEERING S.A. E.S.P | B20: SANTANDER | C20: CONTRATACION | D20: 1117 | E20: 1099 | F20: 87 | G20: 652 | H20: 4 | I20: 0 | J20: 0 | K20: 0 | L20: 2 | M20: 0 | N20: 745 | O20: 0.9838854073 | P20: 0.6651745748 | Q20: proyecto anillado total y terminado municipio en expancion y desarrollo
A21: GAS AND OIL ENGINEERING S.A. E.S.P | B21: SANTANDER | C21: COROMORO | D21: 300 | E21: 320 | F21: 36 | G21: 212 | H21: 1 | I21: 0 | J21: 0 | K21: 0 | L21: 1 | M21: 0 | N21: 250 | O21: 1.066666667 | P21: 0.83 | Q21: proyecto anillado total y terminado municipio en expancion y desarrollo
A22: GAS AND OIL ENGINEERING S.A. E.S.P | B22: SANTANDER | C22: EL GUACAMAYO | D22: 332 | E22: 325 | F22: 0 | G22: 0 | H22: 0 | I22: 0 | J22: 0 | K22: 0 | L22: 0 | M22: 0 | O22: 0.9789156627 | P22: 0
A23: GAS AND OIL ENGINEERING S.A. E.S.P | B23: SANTANDER | C23: ENCINO | D23: 250 | E23: 265 | F23: 91 | G23: 114 | H23: 0 | I23: 0 | J23: 0 | K23: 0 | L23: 0 | M23: 0 | N23: 205 | O23: 1.06 | P23: 0.82 | Q23: proyecto anillado total y terminado municipio en expancion y desarrollo
A24: GAS AND OIL ENGINEERING S.A. E.S.P | B24: SANTANDER | C24: GUACA | D24: 463 | E24: 502 | F24: 60 | G24: 351 | H24: 1 | I24: 0 | J24: 0 | K24: 0 | L24: 1 | M24: 0 | N24: 413 | O24: 1.084233261 | P24: 0.8898488121 | Q24: Catastro basado en DPM (Municipio en Crecimiento)
A25: GAS AND OIL ENGINEERING S.A. E.S.P | B25: SANTANDER | C25: GUADALUPE | D25: 662 | E25: 655 | F25: 163 | G25: 323 | H25: 9 | I25: 0 | J25: 0 | K25: 0 | L25: 4 | M25: 0 | N25: 499 | O25: 0.9894259819 | P25: 0.747734139 | Q25: proyecto anillado total y terminado municipio en expancion y desarrollo
A26: GAS AND OIL ENGINEERING S.A. E.S.P | B26: SANTANDER | C26: LOS SANTOS | D26: 452 | E26: 127 | F26: 126 | G26: 168 | H26: 7 | I26: 0 | J26: 0 | K26: 0 | L26: 0 | M26: 0 | N26: 301 | O26: 0.2809734513 | P26: 0.6659292035 | Q26: Catastro según DPM
A27: GAS AND OIL ENGINEERING S.A. E.S.P | B27: SANTANDER | C27: MOGOTES | D27: 1292 | E27: 1332 | F27: 400 | G27: 505 | H27: 2 | I27: 0 | J27: 0 | K27: 0 | L27: 9 | M27: 0 | N27: 916 | O27: 1.030959752 | P27: 0.7020123839 | Q27: Catastro según DPM
A28: GAS AND OIL ENGINEERING S.A. E.S.P | B28: SANTANDER | C28: OCAMONTE | D28: 300 | E28: 320 | F28: 93 | G28: 156 | H28: 0 | I28: 0 | J28: 0 | K28: 0 | L28: 0 | M28: 0 | N28: 249 | O28: 1.066666667 | P28: 0.83 | Q28: proyecto anillado total y terminado
A29: GAS AND OIL ENGINEERING S.A. E.S.P | B29: SANTANDER | C29: OIBA | D29: 1205 | E29: 1307 | F29: 89 | G29: 673 | H29: 235 | I29: 0 | J29: 0 | K29: 0 | L29: 7 | M29: 0 | N29: 1004 | O29: 1.084647303 | P29: 0.8273858921 | Q29: Catasto según DPM (Departamento de Planeacion Municipal) (Municipio en Expansión)
A30: GAS AND OIL ENGINEERING S.A. E.S.P | B30: SANTANDER | C30: SAN ANDRES | D30: 1023 | E30: 1010 | F30: 251 | G30: 579 | H30: 1 | I30: 0 | J30: 0 | K30: 0 | L30: 5 | M30: 0 | N30: 836 | O30: 0.9872922776 | P30: 0.8123167155 | Q30: proyecto anillado total y terminado municipio en expancion y desarrollo
A31: GAS AND OIL ENGINEERING S.A. E.S.P | B31: SANTANDER | C31: SAN JOAQUIN | D31: 371 | E31: 363 | F31: 98 | G31: 188 | H31: 0 | I31: 0 | J31: 0 | K31: 0 | L31: 0 | M31: 0 | N31: 286 | O31: 0.9784366577 | P31: 0.7708894879 | Q31: Catastro según DPM
A32: GAS AND OIL ENGINEERING S.A. E.S.P | B32: SANTANDER | C32: SANTA BARBARA | D32: 111 | E32: 119 | F32: 13 | G32: 79 | H32: 2 | I32: 0 | J32: 0 | K32: 0 | L32: 1 | M32: 0 | N32: 95 | O32: 1.072072072 | P32: 0.8468468468 | Q32: Catastro según DPM
A33: GAS AND OIL ENGINEERING S.A. E.S.P | B33: SANTANDER | C33: SIMACOTA | D33: 640 | E33: 690 | F33: 128 | G33: 474 | H33: 0 | I33: 0 | J33: 0 | K33: 0 | L33: 3 | M33: 0 | N33: 605 | O33: 1.078125 | P33: 0.940625 | Q33: Catastro según DPM
A34: GAS AND OIL ENGINEERING S.A. E.S.P | B34: SANTANDER | C34: VALLE DE SAN JOSE | D34: 700 | E34: 498 | F34: 17 | G34: 295 | H34: 22 | I34: 0 | J34: 0 | K34: 0 | L34: 1 | M34: 0 | N34: 335 | O34: 0.7114285714 | P34: 0.4771428571 | Q34: Catastro según DPM
A35: PROYECTOS DE INGENIERÍA Y COMERCIALIZACIÓN DE GAS S.A. E.S.P. | B35: SANTANDER | C35: CHARALA | D35: 1981 | E35: 2310 | F35: 49 | G35: 791 | H35: 878 | I35: 84 | J35: 0 | K35: 0 | L35: 0 | M35: 0 | N35: 1802 | O35: 1.166077739 | P35: 0.9096415952
A36: PROYECTOS DE INGENIERÍA Y COMERCIALIZACIÓN DE GAS S.A. E.S.P. | B36: SANTANDER | C36: SAN GIL | D36: 10683 | E36: 5820 | F36: 27 | G36: 1894 | H36: 1639 | I36: 57 | J36: 0 | K36: 0 | L36: 0 | M36: 0 | N36: 3617 | O36: 0.5447907891 | P36: 0.3385753066
A37: INGENIERIA Y SERVICIOS S.A. E.S.P. | B37: NARIÑO | C37: GUALMATAN | D37: 565 | E37: 565 | F37: 3 | G37: 8 | H37: 0 | I37: 0 | J37: 0 | K37: 0 | L37: 0 | M37: 0 | N37: 11 | O37: 1 | P37: 0.01946902655 | Q37: Catastro Municipal. Urbano: 565 Rural: 917, Otros: 0. Para el reporte la Cobertura corresponde a area urbana
A38: INGENIERIA Y SERVICIOS S.A. E.S.P. | B38: NARIÑO | C38: OSPINA | D38: 524 | E38: 524 | F38: 65 | G38: 15 | H38: 0 | I38: 0 | J38: 0 | K38: 0 | L38: 0 | M38: 0 | N38: 80 | O38: 1 | P38: 0.1526717557 | Q38: Catastro Municipal. Urbano: 524 Rural: 1234, Otros: 0. Para el reporte la Cobertura corresponde a area urbana
A39: INGENIERIA Y SERVICIOS S.A. E.S.P. | B39: NARIÑO | C39: SAPUYES | D39: 363 | E39: 363 | F39: 30 | G39: 15 | H39: 0 | I39: 0 | J39: 0 | K39: 0 | L39: 0 | M39: 0 | N39: 45 | O39: 1 | P39: 0.1239669421 | Q39: Catastro Municipal. Urbano: 363 Rural: 1408, Otros: 203. Para el reporte la Cobertura corresponde a area urbana
A40: INGENIERIA Y SERVICIOS S.A. E.S.P. | B40: NARIÑO | C40: TUQUERRES | D40: 6650 | E40: 6650 | F40: 838 | G40: 508 | H40: 50 | I40: 0 | J40: 0 | K40: 0 | L40: 0 | M40: 0 | N40: 1396 | O40: 1 | P40: 0.209924812 | Q40: Catastro Municipal. Urbano: 5198, Rural: 9516, Otros: 653. Para el reporte la Cobertura corresponde a area urbana mas Centros Poblados
A41: NACIONAL DE SERVICIOS PÚBLICOS DOMICILIARIOS S.A. E.S.P. | B41: SANTANDER | C41: SAN GIL | D41: 10683 | E41: 2208 | F41: 21 | G41: 707 | H41: 693 | I41: 29 | J41: 0 | K41: 0 | L41: 0 | M41: 0 | N41: 1450 | O41: 0.2066835159 | P41: 0.135729664
A42: NACIONAL DE SERVICIOS PÚBLICOS DOMICILIARIOS S.A. E.S.P. | B42: SANTANDER | C42: SOCORRO | D42: 6621 | E42: 5680 | F42: 74 | G42: 2802 | H42: 318 | I42: 44 | J42: 0 | K42: 0 | L42: 1 | M42: 0 | N42: 3239 | O42: 0.8578764537 | P42: 0.4890499924
A43: NORTESANTANDEREANA DE GAS S.A. E.S.P. | B43: SANTANDER | C43: CHARALA | D43: 1726 | E43: 100 | H43: 99 | N43: 99 | O43: 0.05793742758 | P43: 0.0573580533
A44: NORTESANTANDEREANA DE GAS S.A. E.S.P. | B44: SANTANDER | C44: CURITI | D44: 922 | E44: 550 | F44: 41 | G44: 368 | H44: 12 | L44: 1 | N44: 422 | O44: 0.5965292842 | P44: 0.4566160521
A45: NORTESANTANDEREANA DE GAS S.A. E.S.P. | B45: SANTANDER | C45: PARAMO | D45: 217 | E45: 30 | G45: 28 | N45: 28 | O45: 0.1382488479 | P45: 0.1290322581
A46: NORTESANTANDEREANA DE GAS S.A. E.S.P. | B46: SANTANDER | C46: RIONEGRO | D46: 1337 | E46: 180 | F46: 6 | G46: 7 | H46: 128 | N46: 141 | O46: 0.1346297681 | P46: 0.105459985
A47: NORTESANTANDEREANA DE GAS S.A. E.S.P. | B47: SANTANDER | C47: SAN GIL | D47: 10270 | E47: 2500 | F47: 19 | G47: 112 | H47: 1321 | I47: 311 | J47: 78 | L47: 33 | M47: 0 | N47: 1874 | O47: 0.2434274586 | P47: 0.1792599805
A48: NORTESANTANDEREANA DE GAS S.A. E.S.P. | B48: SANTANDER | C48: VILLANUEVA | D48: 1014 | E48: 1000 | F48: 103 | G48: 530 | H48: 139 | L48: 6 | N48: 778 | O48: 0.9861932939 | P48: 0.7613412229
A49: PROMOTORA DE SERVICIOS PÚBLICOS S.A. E.S.P. | B49: CESAR | C49: RIO DE ORO | D49: 1579 | E49: 1579 | F49: 612 | G49: 804 | H49: 155 | I49: 0 | J49: 0 | K49: 0 | L49: 4 | M49: 0 | N49: 1575 | O49: 1 | P49: 0.9949335022
A50: PROMOTORA DE SERVICIOS PÚBLICOS S.A. E.S.P. | B50: CHOCO | C50: EL CARMEN DE ATRATO | D50: 1263 | E50: 1055 | F50: 187 | G50: 541 | H50: 0 | I50: 0 | J50: 0 | K50: 0 | L50: 0 | M50: 0 | N50: 728 | O50: 0.8353127474 | P50: 0.576405384
A51: PROMOTORA DE SERVICIOS PÚBLICOS S.A. E.S.P. | B51: N. DE SANTANDER | C51: ABREGO | D51: 3018 | E51: 2690 | F51: 629 | G51: 193 | H51: 1 | I51: 0 | J51: 0 | K51: 0 | L51: 1 | M51: 0 | N51: 824 | O51: 0.8913187541 | P51: 0.2726971504
A52: PROMOTORA DE SERVICIOS PÚBLICOS S.A. E.S.P. | B52: N. DE SANTANDER | C52: LA ESPERANZA | D52: 501 | E52: 501 | F52: 93 | G52: 99 | H52: 0 | I52: 0 | J52: 0 | K52: 0 | L52: 0 | M52: 0 | N52: 192 | O52: 1 | P52: 0.3832335329
A53: PROMOTORA DE SERVICIOS PÚBLICOS S.A. E.S.P. | B53: N. DE SANTANDER | C53: SAN CAYETANO | D53: 1186 | E53: 1186 | F53: 755 | G53: 59 | H53: 0 | I53: 0 | J53: 0 | K53: 0 | L53: 0 | M53: 0 | N53: 814 | O53: 1 | P53: 0.6863406408
A54: PROMOTORA DE SERVICIOS PÚBLICOS S.A. E.S.P. | B54: SANTANDER | C54: BARICHARA | D54: 1053 | E54: 1053 | F54: 28 | G54: 328 | H54: 210 | I54: 0 | J54: 0 | K54: 0 | L54: 7 | M54: 0 | N54: 573 | O54: 1 | P54: 0.5375118708
A55: PROMOTORA DE SERVICIOS PÚBLICOS S.A. E.S.P. | B55: SANTANDER | C55: BETULIA | D55: 521 | E55: 521 | F55: 130 | G55: 344 | H55: 29 | I55: 0 | J55: 0 | K55: 0 | L55: 1 | M55: 0 | N55: 504 | O55: 1 | P55: 0.9654510557
A56: PROMOTORA DE SERVICIOS PÚBLICOS S.A. E.S.P. | B56: SANTANDER | C56: CIMITARRA | D56: 3515 | E56: 3515 | F56: 1520 | G56: 1694 | H56: 286 | I56: 0 | J56: 0 | K56: 0 | L56: 8 | M56: 0 | N56: 3508 | O56: 1 | P56: 0.9957325747
A57: PROMOTORA DE SERVICIOS PÚBLICOS S.A. E.S.P. | B57: SANTANDER | C57: EL PLAYON | D57: 1400 | E57: 1400 | F57: 409 | G57: 970 | H57: 9 | I57: 0 | J57: 0 | K57: 0 | L57: 4 | M57: 0 | N57: 1392 | O57: 1 | P57: 0.9914285714
A58: PROMOTORA DE SERVICIOS PÚBLICOS S.A. E.S.P. | B58: SANTANDER | C58: GALAN | D58: 901 | E58: 901 | F58: 60 | G58: 115 | H58: 1 | I58: 0 | J58: 0 | K58: 0 | L58: 0 | M58: 0 | N58: 176 | O58: 1 | P58: 0.1953385128
A59: PROMOTORA DE SERVICIOS PÚBLICOS S.A. E.S.P. | B59: SANTANDER | C59: LANDAZURI | D59: 790 | E59: 790 | F59: 578 | G59: 191 | H59: 2 | I59: 0 | J59: 0 | K59: 0 | L59: 1 | M59: 0 | N59: 772 | O59: 1 | P59: 0.9759493671
A60: PROMOTORA DE SERVICIOS PÚBLICOS S.A. E.S.P. | B60: SANTANDER | C60: MALAGA | D60: 4500 | E60: 2500 | F60: 61 | G60: 790 | H60: 50 | I60: 0 | J60: 0 | K60: 0 | L60: 0 | M60: 0 | N60: 901 | O60: 0.5555555556 | P60: 0.2002222222
A61: PROMOTORA DE SERVICIOS PÚBLICOS S.A. E.S.P. | B61: SANTANDER | C61: MATANZA | D61: 410 | E61: 410 | F61: 102 | G61: 272 | H61: 33 | I61: 0 | J61: 0 | K61: 0 | L61: 1 | M61: 0 | N61: 408 | O61: 1 | P61: 0.9926829268
A62: PROMOTORA DE SERVICIOS PÚBLICOS S.A. E.S.P. | B62: SANTANDER | C62: ZAPATOCA | D62: 1944 | E62: 1944 | F62: 563 | G62: 1345 | H62: 7 | I62: 0 | J62: 0 | K62: 0 | L62: 29 | M62: 0 | N62: 1944 | O62: 1 | P62: 0.9850823045
A63: SURCOLOMBIANA DE GAS S.A. E.S.P. | B63: CAUCA | C63: INZA | D63: 525 | E63: 350 | F63: 150 | G63: 165 | H63: 2 | I63: 0 | J63: 0 | K63: 0 | L63: 0 | M63: 0 | N63: 317 | O63: 0.6666666667 | P63: 0.6038095238
A64: SURCOLOMBIANA DE GAS S.A. E.S.P. | B64: CAUCA | C64: PAEZ | D64: 1724 | E64: 1335 | F64: 741 | G64: 531 | H64: 3 | I64: 0 | J64: 0 | K64: 0 | L64: 1 | M64: 0 | N64: 1276 | O64: 0.774361949 | P64: 0.7395591647 | Q64: Se encuentran incluidos los Centros Poblados de Belalcazar, Itaibe y Rio Chiquito.
A65: SURCOLOMBIANA DE GAS S.A. E.S.P. | B65: HUILA | C65: ACEVEDO | D65: 2200 | E65: 2100 | F65: 1113 | G65: 959 | H65: 1 | I65: 0 | J65: 0 | K65: 0 | L65: 9 | M65: 0 | N65: 2082 | O65: 0.9545454545 | P65: 0.9422727273
A66: SURCOLOMBIANA DE GAS S.A. E.S.P. | B66: HUILA | C66: COLOMBIA | D66: 785 | E66: 785 | F66: 331 | G66: 336 | H66: 4 | I66: 0 | J66: 0 | K66: 0 | L66: 4 | M66: 0 | N66: 675 | O66: 1 | P66: 0.8547770701
A67: SURCOLOMBIANA DE GAS S.A. E.S.P. | B67: HUILA | C67: ELIAS | D67: 746 | E67: 746 | F67: 519 | G67: 208 | H67: 2 | I67: 0 | J67: 0 | K67: 0 | L67: 1 | M67: 0 | N67: 730 | O67: 1 | P67: 0.9772117962
A68: SURCOLOMBIANA DE GAS S.A. E.S.P. | B68: HUILA | C68: IQUIRA | D68: 1850 | E68: 1800 | F68: 780 | G68: 1006 | H68: 6 | I68: 0 | J68: 0 | K68: 0 | L68: 1 | M68: 0 | N68: 1793 | O68: 0.972972973 | P68: 0.9686486486
A69: SURCOLOMBIANA DE GAS S.A. E.S.P. | B69: HUILA | C69: ISNOS | D69: 1850 | E69: 1840 | F69: 1185 | G69: 626 | H69: 30 | I69: 0 | J69: 0 | K69: 0 | L69: 6 | M69: 0 | N69: 1847 | O69: 0.9945945946 | P69: 0.9951351351
A70: SURCOLOMBIANA DE GAS S.A. E.S.P. | B70: HUILA | C70: LA ARGENTINA | D70: 1206 | E70: 1156 | F70: 523 | G70: 582 | H70: 2 | I70: 0 | J70: 0 | K70: 0 | L70: 1 | M70: 0 | N70: 1108 | O70: 0.9585406302 | P70: 0.9179104478
A71: SURCOLOMBIANA DE GAS S.A. E.S.P. | B71: HUILA | C71: NATAGA | D71: 648 | E71: 610 | F71: 165 | G71: 427 | H71: 21 | I71: 0 | J71: 0 | K71: 0 | L71: 0 | M71: 0 | N71: 613 | O71: 0.9413580247 | P71: 0.9459876543
A72: SURCOLOMBIANA DE GAS S.A. E.S.P. | B72: HUILA | C72: OPORAPA | D72: 1030 | E72: 1010 | F72: 643 | G72: 353 | H72: 0 | I72: 0 | J72: 0 | K72: 0 | L72: 2 | M72: 0 | N72: 998 | O72: 0.9805825243 | P72: 0.9669902913
A73: SURCOLOMBIANA DE GAS S.A. E.S.P. | B73: HUILA | C73: PALESTINA | D73: 465 | E73: 412 | F73: 197 | G73: 255 | H73: 11 | I73: 0 | J73: 0 | K73: 0 | L73: 1 | M73: 0 | N73: 464 | O73: 0.8860215054 | P73: 0.9956989247
A74: SURCOLOMBIANA DE GAS S.A. E.S.P. | B74: HUILA | C74: PITAL | D74: 247 | E74: 180 | F74: 213 | G74: 46 | H74: 0 | I74: 0 | J74: 0 | K74: 0 | L74: 1 | M74: 0 | N74: 260 | O74: 0.7287449393 | P74: 1.048582996 | Q74: La informacion corresponde al Centro Poblado El Socorro y Llano de la Virgen.
A75: SURCOLOMBIANA DE GAS S.A. E.S.P. | B75: HUILA | C75: SALADOBLANCO | D75: 1050 | E75: 1050 | F75: 614 | G75: 451 | H75: 0 | I75: 0 | J75: 0 | K75: 0 | L75: 0 | M75: 0 | N75: 1065 | O75: 1 | P75: 1.014285714
A76: SURCOLOMBIANA DE GAS S.A. E.S.P. | B76: HUILA | C76: SAN AGUSTIN | D76: 400 | E76: 396 | F76: 148 | G76: 256 | H76: 0 | I76: 0 | J76: 0 | K76: 0 | L76: 0 | M76: 0 | N76: 404 | O76: 0.99 | P76: 1.01 | Q76: Corresponde al Centros Poblados de Obando y El Palmar - Municipio de San Agustin
A77: SURCOLOMBIANA DE GAS S.A. E.S.P. | B77: HUILA | C77: SANTA MARIA | D77: 950 | E77: 940 | F77: 382 | G77: 546 | H77: 3 | I77: 0 | J77: 0 | K77: 0 | L77: 1 | M77: 0 | N77: 932 | O77: 0.9894736842 | P77: 0.98

Sheet GN (hidden)
A1: Empresa | B1: Departamento | C1: Municipio | D1: Catastro Población | E1: Total Residenciales Anillados | F1: E1 | G1: E2 | H1: E3 | I1: E4 | J1: E5 | K1: E6 | L1: Total Comercial Conectados | M1: Total Industrial Conectados | N1: Total Usuarios Conectados | O1: Cobertura Residencial Potencial | P1: Cobertura Residencial Efectiva | Q1: Observación
A2: ALCANOS DE COLOMBIA S.A. E.S.P. | B2: ANTIOQUIA | C2: EL CARMEN DE VIBORAL | D2: 9095 | E2: 8971 | F2: 242 | G2: 2670 | H2: 2521 | I2: 0 | J2: 0 | K2: 0 | L2: 91 | M2: 3 | N2: 5527 | O2: 0.9863661352 | P2: 0.5973611875
A3: ALCANOS DE COLOMBIA S.A. E.S.P. | B3: ANTIOQUIA | C3: EL SANTUARIO | D3: 7712 | E3: 7620 | F3: 1031 | G3: 3825 | H3: 1171 | I3: 1 | J3: 0 | K3: 0 | L3: 53 | M3: 0 | N3: 6081 | O3: 0.9880705394 | P3: 0.7816390041
A4: ALCANOS DE COLOMBIA S.A. E.S.P. | B4: ANTIOQUIA | C4: GUARNE | D4: 5011 | E4: 4948 | F4: 78 | G4: 1222 | H4: 1911 | I4: 43 | J4: 0 | K4: 0 | L4: 58 | M4: 0 | N4: 3312 | O4: 0.9874276591 | P4: 0.649371383
A5: ALCANOS DE COLOMBIA S.A. E.S.P. | B5: ANTIOQUIA | C5: MARINILLA | D5: 12148 | E5: 12027 | F5: 368 | G5: 2516 | H5: 4701 | I5: 219 | J5: 9 | K5: 0 | L5: 115 | M5: 1 | N5: 7929 | O5: 0.9900395127 | P5: 0.643151136
A6: ALCANOS DE COLOMBIA S.A. E.S.P. | B6: ANTIOQUIA | C6: PUERTO TRIUNFO | D6: 3107 | E6: 3048 | F6: 238 | G6: 1526 | H6: 12 | I6: 1 | J6: 0 | K6: 0 | L6: 8 | M6: 0 | N6: 1785 | O6: 0.9810106212 | P6: 0.5719343418
A7: ALCANOS DE COLOMBIA S.A. E.S.P. | B7: ANTIOQUIA | C7: RIONEGRO | D7: 30018 | E7: 29633 | F7: 476 | G7: 4361 | H7: 7899 | I7: 4290 | J7: 920 | K7: 63 | L7: 353 | M7: 6 | N7: 18368 | O7: 0.987174362 | P7: 0.599940036
A8: ALCANOS DE COLOMBIA S.A. E.S.P. | B8: BOYACA | C8: PUERTO BOYACA | D8: 9952 | E8: 9852 | F8: 2252 | G8: 5828 | H8: 1331 | I8: 94 | J8: 0 | K8: 0 | L8: 97 | M8: 0 | N8: 9602 | O8: 0.9899517685 | P8: 0.9550844051
A9: ALCANOS DE COLOMBIA S.A. E.S.P. | B9: CALDAS | C9: LA DORADA | D9: 17983 | E9: 17834 | F9: 3849 | G9: 10102 | H9: 2619 | I9: 128 | J9: 8 | K9: 0 | L9: 141 | M9: 2 | N9: 16849 | O9: 0.9917143969 | P9: 0.9289884891
A10: ALCANOS DE COLOMBIA S.A. E.S.P. | B10: CALDAS | C10: MANZANARES | D10: 2606 | E10: 2576 | F10: 624 | G10: 1533 | H10: 326 | I10: 12 | J10: 0 | K10: 0 | L10: 29 | M10: 0 | N10: 2524 | O10: 0.9884881044 | P10: 0.9574059862
A11: ALCANOS DE COLOMBIA S.A. E.S.P. | B11: CALDAS | C11: NORCASIA | D11: 1624 | E11: 1467 | F11: 368 | G11: 596 | H11: 36 | I11: 0 | J11: 0 | K11: 0 | L11: 2 | M11: 0 | N11: 1002 | O11: 0.9033251232 | P11: 0.6157635468
A12: ALCANOS DE COLOMBIA S.A. E.S.P. | B12: CALDAS | C12: VICTORIA | D12: 1369 | E12: 1362 | F12: 602 | G12: 509 | H12: 202 | I12: 1 | J12: 0 | K12: 0 | L12: 6 | M12: 0 | N12: 1320 | O12: 0.9948867787 | P12: 0.9598246896
A13: ALCANOS DE COLOMBIA S.A. E.S.P. | B13: CAQUETA | C13: FLORENCIA | D13: 44697 | E13: 44491 | F13: 26159 | G13: 9516 | H13: 1484 | I13: 327 | J13: 0 | K13: 0 | L13: 99 | M13: 1 | N13: 37586 | O13: 0.9953911896 | P13: 0.8386692619
A14: ALCANOS DE COLOMBIA S.A. E.S.P. | B14: CAUCA | C14: CAJIBIO | D14: 1079 | E14: 1006 | F14: 376 | G14: 244 | H14: 0 | I14: 0 | J14: 0 | K14: 0 | L14: 4 | M14: 0 | N14: 624 | O14: 0.9323447637 | P14: 0.5746061168
A15: ALCANOS DE COLOMBIA S.A. E.S.P. | B15: CAUCA | C15: EL TAMBO | D15: 1687 | E15: 1671 | F15: 804 | G15: 339 | H15: 7 | I15: 0 | J15: 0 | K15: 0 | L15: 6 | M15: 0 | N15: 1156 | O15: 0.9905157084 | P15: 0.6816834618
A16: ALCANOS DE COLOMBIA S.A. E.S.P. | B16: CAUCA | C16: MORALES | D16: 1163 | E16: 1090 | F16: 394 | G16: 228 | H16: 6 | I16: 0 | J16: 0 | K16: 0 | L16: 3 | M16: 0 | N16: 631 | O16: 0.9372312984 | P16: 0.5399828031
A17: ALCANOS DE COLOMBIA S.A. E.S.P. | B17: CAUCA | C17: PATIA | D17: 5096 | E17: 4886 | F17: 1135 | G17: 852 | H17: 17 | I17: 0 | J17: 0 | K17: 0 | L17: 10 | M17: 0 | N17: 2014 | O17: 0.9587912088 | P17: 0.3932496075
A18: ALCANOS DE COLOMBIA S.A. E.S.P. | B18: CAUCA | C18: PIENDAMO | D18: 6332 | E18: 5167 | F18: 1369 | G18: 1649 | H18: 363 | I18: 0 | J18: 0 | K18: 0 | L18: 25 | M18: 1 | N18: 3407 | O18: 0.8160138977 | P18: 0.5339545167
A19: ALCANOS DE COLOMBIA S.A. E.S.P. | B19: CAUCA | C19: POPAYAN | D19: 76805 | E19: 76380 | F19: 10995 | G19: 19382 | H19: 14094 | I19: 7248 | J19: 2094 | K19: 345 | L19: 383 | M19: 7 | N19: 54548 | O19: 0.9944665061 | P19: 0.7051363843
A20: ALCANOS DE COLOMBIA S.A. E.S.P. | B20: CAUCA | C20: ROSAS | D20: 683 | E20: 625 | F20: 210 | G20: 138 | H20: 4 | I20: 0 | J20: 0 | K20: 0 | L20: 2 | M20: 0 | N20: 354 | O20: 0.9150805271 | P20: 0.5153733529
A21: ALCANOS DE COLOMBIA S.A. E.S.P. | B21: CAUCA | C21: SILVIA | D21: 2368 | E21: 1836 | F21: 444 | G21: 450 | H21: 177 | I21: 4 | J21: 1 | K21: 0 | L21: 12 | M21: 0 | N21: 1088 | O21: 0.7753378378 | P21: 0.4543918919
A22: ALCANOS DE COLOMBIA S.A. E.S.P. | B22: CAUCA | C22: TIMBIO | D22: 4770 | E22: 4740 | F22: 1849 | G22: 1065 | H22: 4 | I22: 0 | J22: 0 | K22: 0 | L22: 26 | M22: 0 | N22: 2944 | O22: 0.9937106918 | P22: 0.6117400419
A23: ALCANOS DE COLOMBIA S.A. E.S.P. | B23: CAUCA | C23: TOTORO | D23: 410 | E23: 325 | F23: 155 | G23: 46 | H23: 0 | I23: 0 | J23: 0 | K23: 0 | L23: 5 | M23: 0 | N23: 206 | O23: 0.7926829268 | P23: 0.4902439024
A24: ALCANOS DE COLOMBIA S.A. E.S.P. | B24: CUNDINAMARCA | C24: AGUA DE DIOS | D24: 4284 | E24: 4057 | F24: 728 | G24: 2386 | H24: 141 | I24: 1 | J24: 0 | K24: 0 | L24: 28 | M24: 0 | N24: 3284 | O24: 0.9470121382 | P24: 0.7600373483
A25: ALCANOS DE COLOMBIA S.A. E.S.P. | B25: CUNDINAMARCA | C25: ALBAN | D25: 741 | E25: 541 | F25: 30 | G25: 325 | H25: 26 | I25: 0 | J25: 0 | K25: 0 | L25: 0 | M25: 0 | N25: 381 | O25: 0.7300944669 | P25: 0.5141700405
A26: ALCANOS DE COLOMBIA S.A. E.S.P. | B26: CUNDINAMARCA | C26: APULO | D26: 1832 | E26: 1788 | F26: 452 | G26: 759 | H26: 206 | I26: 0 | J26: 0 | K26: 0 | L26: 9 | M26: 0 | N26: 1426 | O26: 0.9759825328 | P26: 0.7734716157
A27: ALCANOS DE COLOMBIA S.A. E.S.P. | B27: CUNDINAMARCA | C27: ARBELAEZ | D27: 2230 | E27: 2202 | F27: 21 | G27: 1326 | H27: 375 | I27: 90 | J27: 4 | K27: 0 | L27: 25 | M27: 0 | N27: 1841 | O27: 0.9874439462 | P27: 0.8143497758
A28: ALCANOS DE COLOMBIA S.A. E.S.P. | B28: CUNDINAMARCA | C28: BELTRAN | D28: 182 | E28: 169 | F28: 85 | G28: 38 | H28: 0 | I28: 0 | J28: 0 | K28: 0 | L28: 0 | M28: 0 | N28: 123 | O28: 0.9285714286 | P28: 0.6758241758
A29: ALCANOS DE COLOMBIA S.A. E.S.P. | B29: CUNDINAMARCA | C29: BITUIMA | D29: 326 | E29: 286 | F29: 18 | G29: 114 | H29: 22 | I29: 0 | J29: 0 | K29: 0 | L29: 2 | M29: 0 | N29: 156 | O29: 0.8773006135 | P29: 0.472392638
A30: ALCANOS DE COLOMBIA S.A. E.S.P. | B30: CUNDINAMARCA | C30: CABRERA | D30: 402 | E30: 381 | F30: 23 | G30: 291 | H30: 0 | I30: 0 | J30: 0 | K30: 0 | L30: 7 | M30: 0 | N30: 321 | O30: 0.947761194 | P30: 0.7810945274
A31: ALCANOS DE COLOMBIA S.A. E.S.P. | B31: CUNDINAMARCA | C31: CHAGUANI | D31: 448 | E31: 435 | F31: 26 | G31: 307 | H31: 3 | I31: 0 | J31: 0 | K31: 0 | L31: 1 | M31: 0 | N31: 337 | O31: 0.9709821429 | P31: 0.75
A32: ALCANOS DE COLOMBIA S.A. E.S.P. | B32: CUNDINAMARCA | C32: FUSAGASUGA | D32: 41544 | E32: 41196 | F32: 932 | G32: 10817 | H32: 14186 | I32: 10554 | J32: 2013 | K32: 423 | L32: 326 | M32: 0 | N32: 39251 | O32: 0.9916233391 | P32: 0.9369584055
A33: ALCANOS DE COLOMBIA S.A. E.S.P. | B33: CUNDINAMARCA | C33: GIRARDOT | D33: 30695 | E33: 30230 | F33: 4110 | G33: 10421 | H33: 7408 | I33: 1503 | J33: 188 | K33: 0 | L33: 386 | M33: 4 | N33: 24020 | O33: 0.9848509529 | P33: 0.7698322202
A34: ALCANOS DE COLOMBIA S.A. E.S.P. | B34: CUNDINAMARCA | C34: GUADUAS | D34: 5985 | E34: 5919 | F34: 1272 | G34: 3435 | H34: 180 | I34: 162 | J34: 0 | K34: 0 | L34: 30 | M34: 1 | N34: 5080 | O34: 0.9889724311 | P34: 0.8436090226 | Q34: Incluye Puerto Bogotá
A35: ALCANOS DE COLOMBIA S.A. E.S.P. | B35: CUNDINAMARCA | C35: GUATAQUI | D35: 733 | E35: 522 | F35: 262 | G35: 59 | H35: 2 | I35: 0 | J35: 0 | K35: 0 | L35: 1 | M35: 0 | N35: 324 | O35: 0.7121418827 | P35: 0.4406548431
A36: ALCANOS DE COLOMBIA S.A. E.S.P. | B36: CUNDINAMARCA | C36: GUAYABAL DE SIQUIMA | D36: 657 | E36: 419 | F36: 21 | G36: 303 | H36: 49 | I36: 0 | J36: 0 | K36: 0 | L36: 2 | M36: 0 | N36: 375 | O36: 0.6377473364 | P36: 0.5677321157
A37: ALCANOS DE COLOMBIA S.A. E.S.P. | B37: CUNDINAMARCA | C37: JERUSALEN | D37: 358 | E37: 338 | F37: 79 | G37: 163 | H37: 1 | I37: 0 | J37: 0 | K37: 0 | L37: 1 | M37: 0 | N37: 244 | O37: 0.9441340782 | P37: 0.6787709497
A38: ALCANOS DE COLOMBIA S.A. E.S.P. | B38: CUNDINAMARCA | C38: LA PEÑA | D38: 404 | E38: 371 | F38: 64 | G38: 221 | H38: 4 | I38: 0 | J38: 0 | K38: 0 | L38: 2 | M38: 0 | N38: 291 | O38: 0.9183168317 | P38: 0.7153465347
A39: ALCANOS DE COLOMBIA S.A. E.S.P. | B39: CUNDINAMARCA | C39: LA VEGA | D39: 2370 | E39: 2330 | F39: 2 | G39: 764 | H39: 722 | I39: 312 | J39: 0 | K39: 0 | L39: 32 | M39: 0 | N39: 1832 | O39: 0.9831223629 | P39: 0.7594936709
A40: ALCANOS DE COLOMBIA S.A. E.S.P. | B40: CUNDINAMARCA | C40: NARIÑO | D40: 1234 | E40: 643 | F40: 243 | G40: 269 | H40: 3 | I40: 0 | J40: 0 | K40: 0 | L40: 3 | M40: 0 | N40: 518 | O40: 0.5210696921 | P40: 0.4173419773
A41: ALCANOS DE COLOMBIA S.A. E.S.P. | B41: CUNDINAMARCA | C41: NILO | D41: 1346 | E41: 839 | F41: 80 | G41: 602 | H41: 15 | I41: 4 | J41: 0 | K41: 0 | L41: 5 | M41: 0 | N41: 706 | O41: 0.6233283804 | P41: 0.5208023774
A42: ALCANOS DE COLOMBIA S.A. E.S.P. | B42: CUNDINAMARCA | C42: NIMAIMA | D42: 499 | E42: 425 | F42: 45 | G42: 238 | H42: 1 | I42: 0 | J42: 0 | K42: 0 | L42: 2 | M42: 0 | N42: 286 | O42: 0.8517034068 | P42: 0.5691382766
A43: ALCANOS DE COLOMBIA S.A. E.S.P. | B43: CUNDINAMARCA | C43: NOCAIMA | D43: 739 | E43: 731 | F43: 19 | G43: 366 | H43: 149 | I43: 0 | J43: 0 | K43: 0 | L43: 5 | M43: 0 | N43: 539 | O43: 0.9891745602 | P43: 0.7225981055
A44: ALCANOS DE COLOMBIA S.A. E.S.P. | B44: CUNDINAMARCA | C44: PANDI | D44: 758 | E44: 661 | F44: 13 | G44: 471 | H44: 3 | I44: 0 | J44: 0 | K44: 0 | L44: 2 | M44: 0 | N44: 489 | O44: 0.8720316623 | P44: 0.6424802111
A45: ALCANOS DE COLOMBIA S.A. E.S.P. | B45: CUNDINAMARCA | C45: PASCA | D45: 926 | E45: 834 | F45: 109 | G45: 458 | H45: 153 | I45: 0 | J45: 0 | K45: 0 | L45: 11 | M45: 0 | N45: 731 | O45: 0.9006479482 | P45: 0.777537797
A46: ALCANOS DE COLOMBIA S.A. E.S.P. | B46: CUNDINAMARCA | C46: PUERTO SALGAR | D46: 3842 | E46: 3783 | F46: 2150 | G46: 729 | H46: 192 | I46: 0 | J46: 0 | K46: 0 | L46: 23 | M46: 0 | N46: 3094 | O46: 0.9846434149 | P46: 0.7993232691
A47: ALCANOS DE COLOMBIA S.A. E.S.P. | B47: CUNDINAMARCA | C47: PULI | D47: 373 | E47: 370 | F47: 158 | G47: 103 | H47: 0 | I47: 0 | J47: 0 | K47: 0 | L47: 0 | M47: 0 | N47: 261 | O47: 0.9919571046 | P47: 0.6997319035
A48: ALCANOS DE COLOMBIA S.A. E.S.P. | B48: CUNDINAMARCA | C48: QUEBRADANEGRA | D48: 231 | E48: 230 | F48: 19 | G48: 123 | H48: 9 | I48: 0 | J48: 0 | K48: 0 | L48: 1 | M48: 0 | N48: 152 | O48: 0.9956709957 | P48: 0.6536796537
A49: ALCANOS DE COLOMBIA S.A. E.S.P. | B49: CUNDINAMARCA | C49: QUIPILE | D49: 330 | E49: 314 | F49: 21 | G49: 133 | H49: 60 | I49: 0 | J49: 0 | K49: 0 | L49: 1 | M49: 0 | N49: 215 | O49: 0.9515151515 | P49: 0.6484848485
A50: ALCANOS DE COLOMBIA S.A. E.S.P. | B50: CUNDINAMARCA | C50: RICAURTE | D50: 7536 | E50: 7196 | F50: 761 | G50: 296 | H50: 658 | I50: 1676 | J50: 328 | K50: 0 | L50: 33 | M50: 1 | N50: 3753 | O50: 0.9548832272 | P50: 0.4934978769
A51: ALCANOS DE COLOMBIA S.A. E.S.P. | B51: CUNDINAMARCA | C51: SAN BERNARDO | D51: 1878 | E51: 1241 | F51: 114 | G51: 674 | H51: 117 | I51: 1 | J51: 0 | K51: 0 | L51: 5 | M51: 0 | N51: 911 | O51: 0.6608093717 | P51: 0.482428115
A52: ALCANOS DE COLOMBIA S.A. E.S.P. | B52: CUNDINAMARCA | C52: SAN FRANCISCO | D52: 1747 | E52: 1742 | F52: 10 | G52: 785 | H52: 475 | I52: 1 | J52: 0 | K52: 0 | L52: 3 | M52: 0 | N52: 1274 | O52: 0.9971379508 | P52: 0.7275329136
A53: ALCANOS DE COLOMBIA S.A. E.S.P. | B53: CUNDINAMARCA | C53: SAN JUAN DE RIO SECO | D53: 2133 | E53: 1928 | F53: 121 | G53: 1014 | H53: 259 | I53: 1 | J53: 0 | K53: 0 | L53: 5 | M53: 0 | N53: 1400 | O53: 0.903891233 | P53: 0.6540084388 | Q53: Incluye Cambao (Nuevo)
A54: ALCANOS DE COLOMBIA S.A. E.S.P. | B54: CUNDINAMARCA | C54: SASAIMA | D54: 1169 | E54: 936 | F54: 22 | G54: 475 | H54: 181 | I54: 1 | J54: 0 | K54: 0 | L54: 3 | M54: 0 | N54: 682 | O54: 0.8006843456 | P54: 0.5808383234
A55: ALCANOS DE COLOMBIA S.A. E.S.P. | B55: CUNDINAMARCA | C55: SILVANIA | D55: 3071 | E55: 3026 | F55: 110 | G55: 1180 | H55: 711 | I55: 105 | J55: 0 | K55: 0 | L55: 32 | M55: 1 | N55: 2139 | O55: 0.9853467926 | P55: 0.6857701075
A56: ALCANOS DE COLOMBIA S.A. E.S.P. | B56: CUNDINAMARCA | C56: SUPATA | D56: 964 | E56: 846 | F56: 7 | G56: 326 | H56: 177 | I56: 1 | J56: 0 | K56: 0 | L56: 3 | M56: 0 | N56: 514 | O56: 0.877593361 | P56: 0.5300829876
A57: ALCANOS DE COLOMBIA S.A. E.S.P. | B57: CUNDINAMARCA | C57: TIBACUY | D57: 528 | E57: 524 | F57: 15 | G57: 376 | H57: 3 | I57: 0 | J57: 0 | K57: 0 | L57: 4 | M57: 0 | N57: 398 | O57: 0.9924242424 | P57: 0.7462121212
A58: ALCANOS DE COLOMBIA S.A. E.S.P. | B58: CUNDINAMARCA | C58: TOCAIMA | D58: 4473 | E58: 4362 | F58: 940 | G58: 1907 | H58: 700 | I58: 2 | J58: 0 | K58: 0 | L58: 57 | M58: 0 | N58: 3606 | O58: 0.97518444 | P58: 0.79342723
A59: ALCANOS DE COLOMBIA S.A. E.S.P. | B59: CUNDINAMARCA | C59: UTICA | D59: 1287 | E59: 966 | F59: 309 | G59: 399 | H59: 0 | I59: 0 | J59: 0 | K59: 0 | L59: 4 | M59: 0 | N59: 712 | O59: 0.7505827506 | P59: 0.5501165501
A60: ALCANOS DE COLOMBIA S.A. E.S.P. | B60: CUNDINAMARCA | C60: VENECIA | D60: 615 | E60: 596 | F60: 20 | G60: 398 | H60: 22 | I60: 0 | J60: 0 | K60: 0 | L60: 3 | M60: 0 | N60: 443 | O60: 0.9691056911 | P60: 0.7154471545
A61: ALCANOS DE COLOMBIA S.A. E.S.P. | B61: CUNDINAMARCA | C61: VERGARA | D61: 642 | E61: 630 | F61: 114 | G61: 357 | H61: 2 | I61: 0 | J61: 0 | K61: 0 | L61: 1 | M61: 0 | N61: 474 | O61: 0.9813084112 | P61: 0.7367601246
A62: ALCANOS DE COLOMBIA S.A. E.S.P. | B62: CUNDINAMARCA | C62: VIANI | D62: 601 | E62: 582 | F62: 140 | G62: 319 | H62: 12 | I62: 0 | J62: 0 | K62: 0 | L62: 2 | M62: 0 | N62: 473 | O62: 0.9683860233 | P62: 0.7836938436
A63: ALCANOS DE COLOMBIA S.A. E.S.P. | B63: CUNDINAMARCA | C63: VILLETA | D63: 5815 | E63: 5708 | F63: 828 | G63: 3076 | H63: 967 | I63: 69 | J63: 1 | K63: 0 | L63: 60 | M63: 0 | N63: 5001 | O63: 0.9815993121 | P63: 0.8496990542
A64: ALCANOS DE COLOMBIA S.A. E.S.P. | B64: HUILA | C64: AIPE | D64: 4052 | E64: 3868 | F64: 1181 | G64: 2166 | H64: 128 | I64: 2 | J64: 0 | K64: 0 | L64: 22 | M64: 0 | N64: 3499 | O64: 0.9545903258 | P64: 0.858094768
A65: ALCANOS DE COLOMBIA S.A. E.S.P. | B65: HUILA | C65: ALGECIRAS | D65: 4452 | E65: 4430 | F65: 1775 | G65: 1769 | H65: 77 | I65: 0 | J65: 0 | K65: 0 | L65: 22 | M65: 0 | N65: 3643 | O65: 0.9950584007 | P65: 0.8133423181
A66: ALCANOS DE COLOMBIA S.A. E.S.P. | B66: HUILA | C66: BARAYA | D66: 1238 | E66: 1229 | F66: 746 | G66: 286 | H66: 45 | I66: 0 | J66: 0 | K66: 0 | L66: 9 | M66: 0 | N66: 1086 | O66: 0.99273021 | P66: 0.8699515347
A67: ALCANOS DE COLOMBIA S.A. E.S.P. | B67: HUILA | C67: CAMPOALEGRE | D67: 8441 | E67: 8393 | F67: 4056 | G67: 3196 | H67: 495 | I67: 0 | J67: 0 | K67: 0 | L67: 38 | M67: 2 | N67: 7787 | O67: 0.99431347 | P67: 0.9177822533
A68: ALCANOS DE COLOMBIA S.A. E.S.P. | B68: HUILA | C68: GARZON | D68: 14089 | E68: 14004 | F68: 3952 | G68: 7170 | H68: 1908 | I68: 235 | J68: 1 | K68: 1 | L68: 80 | M68: 0 | N68: 13347 | O68: 0.9939669246 | P68: 0.9416566115
A69: ALCANOS DE COLOMBIA S.A. E.S.P. | B69: HUILA | C69: GIGANTE | D69: 6322 | E69: 6289 | F69: 2230 | G69: 3487 | H69: 117 | I69: 2 | J69: 0 | K69: 0 | L69: 31 | M69: 0 | N69: 5867 | O69: 0.9947801329 | P69: 0.9231255932
A70: ALCANOS DE COLOMBIA S.A. E.S.P. | B70: HUILA | C70: HOBO | D70: 2272 | E70: 2262 | F70: 956 | G70: 762 | H70: 2 | I70: 0 | J70: 0 | K70: 0 | L70: 8 | M70: 0 | N70: 1728 | O70: 0.9955985915 | P70: 0.7570422535
A71: ALCANOS DE COLOMBIA S.A. E.S.P. | B71: HUILA | C71: LA PLATA | D71: 8963 | E71: 8865 | F71: 2550 | G71: 4300 | H71: 1092 | I71: 5 | J71: 0 | K71: 0 | L71: 95 | M71: 0 | N71: 8042 | O71: 0.9890661609 | P71: 0.8866450965
A72: ALCANOS DE COLOMBIA S.A. E.S.P. | B72: HUILA | C72: NEIVA | D72: 125818 | E72: 124369 | F72: 28251 | G72: 56456 | H72: 13267 | I72: 7654 | J72: 1720 | K72: 112 | L72: 1362 | M72: 26 | N72: 108848 | O72: 0.9884833649 | P72: 0.8540908296 | Q72: Incluye Fortalecillas, San Francisco, Guacirco y El Caguán
A73: ALCANOS DE COLOMBIA S.A. E.S.P. | B73: HUILA | C73: PAICOL | D73: 1056 | E73: 1044 | F73: 196 | G73: 609 | H73: 102 | I73: 0 | J73: 0 | K73: 0 | L73: 12 | M73: 0 | N73: 919 | O73: 0.9886363636 | P73: 0.8589015152
A74: ALCANOS DE COLOMBIA S.A. E.S.P. | B74: HUILA | C74: PALERMO | D74: 5629 | E74: 5479 | F74: 1724 | G74: 2686 | H74: 476 | I74: 4 | J74: 0 | K74: 0 | L74: 61 | M74: 1 | N74: 4952 | O74: 0.9733522828 | P74: 0.86871558 | Q74: Incluye El Juncal, Betania
A75: ALCANOS DE COLOMBIA S.A. E.S.P. | B75: HUILA | C75: RIVERA | D75: 6491 | E75: 6404 | F75: 1648 | G75: 3674 | H75: 452 | I75: 114 | J75: 1 | K75: 1 | L75: 83 | M75: 1 | N75: 5974 | O75: 0.9865968264 | P75: 0.9074102604
A76: ALCANOS DE COLOMBIA S.A. E.S.P. | B76: HUILA | C76: TARQUI | D76: 3905 | E76: 3875 | F76: 2659 | G76: 712 | H76: 8 | I76: 1 | J76: 0 | K76: 0 | L76: 4 | M76: 0 | N76: 3384 | O76: 0.9923175416 | P76: 0.8655569782
A77: ALCANOS DE COLOMBIA S.A. E.S.P. | B77: HUILA | C77: TELLO | D77: 2389 | E77: 2382 | F77: 1542 | G77: 594 | H77: 74 | I77: 0 | J77: 0 | K77: 0 | L77: 6 | M77: 0 | N77: 2216 | O77: 0.9970699037 | P77: 0.9250732524
A78: ALCANOS DE COLOMBIA S.A. E.S.P. | B78: HUILA | C78: TERUEL | D78: 1531 | E78: 1515 | F78: 389 | G78: 803 | H78: 111 | I78: 0 | J78: 0 | K78: 0 | L78: 11 | M78: 0 | N78: 1314 | O78: 0.9895493142 | P78: 0.851077727
A79: ALCANOS DE COLOMBIA S.A. E.S.P. | B79: HUILA | C79: TESALIA | D79: 2783 | E79: 2757 | F79: 1866 | G79: 620 | H79: 34 | I79: 1 | J79: 0 | K79: 0 | L79: 25 | M79: 0 | N79: 2546 | O79: 0.9906575638 | P79: 0.9058569889 | Q79: Incluye Pacarní
A80: ALCANOS DE COLOMBIA S.A. E.S.P. | B80: HUILA | C80: VILLAVIEJA | D80: 2119 | E80: 2097 | F80: 1263 | G80: 650 | H80: 1 | I80: 0 | J80: 0 | K80: 0 | L80: 12 | M80: 0 | N80: 1926 | O80: 0.9896177442 | P80: 0.9032562529
A81: ALCANOS DE COLOMBIA S.A. E.S.P. | B81: HUILA | C81: YAGUARA | D81: 2196 | E81: 2145 | F81: 474 | G81: 1308 | H81: 169 | I81: 0 | J81: 0 | K81: 0 | L81: 28 | M81: 0 | N81: 1979 | O81: 0.9767759563 | P81: 0.8884335155
A82: ALCANOS DE COLOMBIA S.A. E.S.P. | B82: NARIÑO | C82: PASTO | D82: 104398 | E82: 43150 | F82: 6601 | G82: 8769 | H82: 1349 | I82: 1 | J82: 0 | K82: 0 | L82: 27 | M82: 0 | N82: 16747 | O82: 0.4133220943 | P82: 0.1601563248
A83: ALCANOS DE COLOMBIA S.A. E.S.P. | B83: TOLIMA | C83: ALVARADO | D83: 1301 | E83: 1290 | F83: 296 | G83: 805 | H83: 5 | I83: 0 | J83: 0 | K83: 0 | L83: 8 | M83: 1 | N83: 1115 | O83: 0.9915449654 | P83: 0.8501152959
A84: ALCANOS DE COLOMBIA S.A. E.S.P. | B84: TOLIMA | C84: AMBALEMA | D84: 2227 | E84: 2101 | F84: 1092 | G84: 630 | H84: 75 | I84: 0 | J84: 0 | K84: 0 | L84: 7 | M84: 0 | N84: 1804 | O84: 0.9434216435 | P84: 0.8069151325
A85: ALCANOS DE COLOMBIA S.A. E.S.P. | B85: TOLIMA | C85: ARMERO | D85: 3616 | E85: 3567 | F85: 1661 | G85: 1501 | H85: 12 | I85: 0 | J85: 0 | K85: 0 | L85: 22 | M85: 0 | N85: 3196 | O85: 0.986449115 | P85: 0.8777654867
A86: ALCANOS DE COLOMBIA S.A. E.S.P. | B86: TOLIMA | C86: CAJAMARCA | D86: 3237 | E86: 3124 | F86: 352 | G86: 1714 | H86: 572 | I86: 0 | J86: 0 | K86: 0 | L86: 37 | M86: 0 | N86: 2675 | O86: 0.9650911338 | P86: 0.8149521162
A87: ALCANOS DE COLOMBIA S.A. E.S.P. | B87: TOLIMA | C87: CARMEN DE APICALA | D87: 3609 | E87: 3557 | F87: 476 | G87: 1966 | H87: 463 | I87: 66 | J87: 32 | K87: 0 | L87: 51 | M87: 1 | N87: 3055 | O87: 0.9855915766 | P87: 0.8320864505
A88: ALCANOS DE COLOMBIA S.A. E.S.P. | B88: TOLIMA | C88: CHAPARRAL | D88: 8553 | E88: 8466 | F88: 3213 | G88: 3084 | H88: 937 | I88: 3 | J88: 0 | K88: 0 | L88: 65 | M88: 1 | N88: 7303 | O88: 0.9898281305 | P88: 0.8461358588
A89: ALCANOS DE COLOMBIA S.A. E.S.P. | B89: TOLIMA | C89: COELLO | D89: 1488 | E89: 1475 | F89: 436 | G89: 738 | H89: 35 | I89: 3 | J89: 0 | K89: 0 | L89: 5 | M89: 0 | N89: 1217 | O89: 0.9912634409 | P89: 0.814516129 | Q89: Incluye Gualanday
A90: ALCANOS DE COLOMBIA S.A. E.S.P. | B90: TOLIMA | C90: CUNDAY | D90: 1416 | E90: 1083 | F90: 266 | G90: 457 | H90: 8 | I90: 0 | J90: 0 | K90: 0 | L90: 7 | M90: 0 | N90: 738 | O90: 0.7648305085 | P90: 0.5162429379
A91: ALCANOS DE COLOMBIA S.A. E.S.P. | B91: TOLIMA | C91: DOLORES | D91: 1688 | E91: 1263 | F91: 262 | G91: 337 | H91: 23 | I91: 0 | J91: 0 | K91: 0 | L91: 4 | M91: 0 | N91: 626 | O91: 0.7482227488 | P91: 0.3684834123
A92: ALCANOS DE COLOMBIA S.A. E.S.P. | B92: TOLIMA | C92: ESPINAL | D92: 21214 | E92: 20597 | F92: 4327 | G92: 10048 | H92: 3269 | I92: 565 | J92: 1 | K92: 1 | L92: 172 | M92: 14 | N92: 18397 | O92: 0.9709154332 | P92: 0.8584425379 | Q92: Incluye a Chicoral
A93: ALCANOS DE COLOMBIA S.A. E.S.P. | B93: TOLIMA | C93: FLANDES | D93: 14273 | E93: 12135 | F93: 221 | G93: 3877 | H93: 3604 | I93: 3 | J93: 0 | K93: 0 | L93: 52 | M93: 1 | N93: 7758 | O93: 0.8502066839 | P93: 0.5398304491
A94: ALCANOS DE COLOMBIA S.A. E.S.P. | B94: TOLIMA | C94: FRESNO | D94: 5074 | E94: 5019 | F94: 1346 | G94: 2637 | H94: 902 | I94: 1 | J94: 0 | K94: 0 | L94: 53 | M94: 0 | N94: 4939 | O94: 0.9891604257 | P94: 0.9629483642
A95: ALCANOS DE COLOMBIA S.A. E.S.P. | B95: TOLIMA | C95: GUAMO | D95: 7726 | E95: 7677 | F95: 2795 | G95: 3763 | H95: 231 | I95: 10 | J95: 0 | K95: 0 | L95: 45 | M95: 1 | N95: 6845 | O95: 0.9936577789 | P95: 0.880015532
A96: ALCANOS DE COLOMBIA S.A. E.S.P. | B96: TOLIMA | C96: HERVEO | D96: 1624 | E96: 1602 | F96: 405 | G96: 991 | H96: 8 | I96: 0 | J96: 0 | K96: 0 | L96: 11 | M96: 0 | N96: 1415 | O96: 0.986453202 | P96: 0.8645320197
A97: ALCANOS DE COLOMBIA S.A. E.S.P. | B97: TOLIMA | C97: HONDA | D97: 8129 | E97: 7268 | F97: 1952 | G97: 3868 | H97: 612 | I97: 124 | J97: 1 | K97: 0 | L97: 75 | M97: 1 | N97: 6633 | O97: 0.894082913 | P97: 0.8066182802
A98: ALCANOS DE COLOMBIA S.A. E.S.P. | B98: TOLIMA | C98: IBAGUE | D98: 146002 | E98: 144190 | F98: 24569 | G98: 64968 | H98: 37703 | I98: 12116 | J98: 2050 | K98: 355 | L98: 1717 | M98: 49 | N98: 143527 | O98: 0.9875892111 | P98: 0.9709524527
A99: ALCANOS DE COLOMBIA S.A. E.S.P. | B99: TOLIMA | C99: ICONONZO | D99: 1394 | E99: 1329 | F99: 402 | G99: 778 | H99: 9 | I99: 0 | J99: 0 | K99: 0 | L99: 19 | M99: 0 | N99: 1208 | O99: 0.9533715925 | P99: 0.8529411765
A100: ALCANOS DE COLOMBIA S.A. E.S.P. | B100: TOLIMA | C100: LERIDA | D100: 5681 | E100: 5647 | F100: 1665 | G100: 3597 | H100: 112 | I100: 0 | J100: 0 | K100: 0 | L100: 32 | M100: 1 | N100: 5407 | O100: 0.9940151382 | P100: 0.9459602183 | Q100: Incluye La Sierra
A101: ALCANOS DE COLOMBIA S.A. E.S.P. | B101: TOLIMA | C101: LIBANO | D101: 7704 | E101: 7609 | F101: 1002 | G101: 4265 | H101: 1843 | I101: 290 | J101: 0 | K101: 2 | L101: 93 | M101: 1 | N101: 7496 | O101: 0.9876687435 | P101: 0.9607995846 | Q101: Incluye Tierradentro
A102: ALCANOS DE COLOMBIA S.A. E.S.P. | B102: TOLIMA | C102: MARIQUITA | D102: 9401 | E102: 9315 | F102: 4191 | G102: 4108 | H102: 535 | I102: 44 | J102: 1 | K102: 0 | L102: 82 | M102: 2 | N102: 8963 | O102: 0.990852037 | P102: 0.9444739921
A103: ALCANOS DE COLOMBIA S.A. E.S.P. | B103: TOLIMA | C103: MELGAR | D103: 9961 | E103: 9670 | F103: 1691 | G103: 4146 | H103: 2615 | I103: 238 | J103: 190 | K103: 5 | L103: 213 | M103: 0 | N103: 9098 | O103: 0.9707860657 | P103: 0.891978717
A104: ALCANOS DE COLOMBIA S.A. E.S.P. | B104: TOLIMA | C104: MURILLO | D104: 795 | E104: 628 | F104: 191 | G104: 199 | H104: 12 | I104: 0 | J104: 0 | K104: 0 | L104: 7 | M104: 0 | N104: 409 | O104: 0.7899371069 | P104: 0.5056603774
A105: ALCANOS DE COLOMBIA S.A. E.S.P. | B105: TOLIMA | C105: NATAGAIMA | D105: 2971 | E105: 2843 | F105: 901 | G105: 1276 | H105: 216 | I105: 0 | J105: 0 | K105: 0 | L105: 6 | M105: 1 | N105: 2400 | O105: 0.956916863 | P105: 0.8054527095
A106: ALCANOS DE COLOMBIA S.A. E.S.P. | B106: TOLIMA | C106: ORTEGA | D106: 2672 | E106: 2619 | F106: 526 | G106: 1234 | H106: 212 | I106: 0 | J106: 0 | K106: 0 | L106: 10 | M106: 0 | N106: 1982 | O106: 0.9801646707 | P106: 0.7380239521
A107: ALCANOS DE COLOMBIA S.A. E.S.P. | B107: TOLIMA | C107: PIEDRAS | D107: 1469 | E107: 1461 | F107: 761 | G107: 594 | H107: 0 | I107: 0 | J107: 0 | K107: 0 | L107: 6 | M107: 0 | N107: 1361 | O107: 0.9945541184 | P107: 0.9223961879 | Q107: Inluye a Doima
A108: ALCANOS DE COLOMBIA S.A. E.S.P. | B108: TOLIMA | C108: PURIFICACION | D108: 6102 | E108: 6070 | F108: 3220 | G108: 2150 | H108: 139 | I108: 0 | J108: 0 | K108: 0 | L108: 30 | M108: 0 | N108: 5539 | O108: 0.9947558178 | P108: 0.902818748
A109: ALCANOS DE COLOMBIA S.A. E.S.P. | B109: TOLIMA | C109: SALDAÑA | D109: 3587 | E109: 3550 | F109: 1206 | G109: 1731 | H109: 135 | I109: 5 | J109: 0 | K109: 0 | L109: 22 | M109: 0 | N109: 3099 | O109: 0.9896849735 | P109: 0.8578199052
A110: ALCANOS DE COLOMBIA S.A. E.S.P. | B110: TOLIMA | C110: SAN ANTONIO | D110: 1581 | E110: 1503 | F110: 507 | G110: 601 | H110: 95 | I110: 0 | J110: 0 | K110: 0 | L110: 6 | M110: 0 | N110: 1209 | O110: 0.9506641366 | P110: 0.7609108159
A111: ALCANOS DE COLOMBIA S.A. E.S.P. | B111: TOLIMA | C111: SAN LUIS | D111: 2702 | E111: 2685 | F111: 1182 | G111: 1419 | H111: 6 | I111: 0 | J111: 2 | K111: 0 | L111: 16 | M111: 0 | N111: 2625 | O111: 0.9937083642 | P111: 0.9655810511
A112: ALCANOS DE COLOMBIA S.A. E.S.P. | B112: TOLIMA | C112: SANTA ISABEL | D112: 873 | E112: 813 | F112: 348 | G112: 298 | H112: 1 | I112: 0 | J112: 0 | K112: 0 | L112: 6 | M112: 0 | N112: 653 | O112: 0.9312714777 | P112: 0.7411225659
A113: ALCANOS DE COLOMBIA S.A. E.S.P. | B113: TOLIMA | C113: SUAREZ | D113: 607 | E113: 597 | F113: 181 | G113: 299 | H113: 0 | I113: 0 | J113: 0 | K113: 0 | L113: 2 | M113: 0 | N113: 482 | O113: 0.9835255354 | P113: 0.7907742998
A114: ALCANOS DE COLOMBIA S.A. E.S.P. | B114: TOLIMA | C114: VALLE DE SAN JUAN | D114: 1221 | E114: 1207 | F114: 516 | G114: 565 | H114: 0 | I114: 0 | J114: 0 | K114: 0 | L114: 7 | M114: 0 | N114: 1088 | O114: 0.9885339885 | P114: 0.8853398853
A115: ALCANOS DE COLOMBIA S.A. E.S.P. | B115: TOLIMA | C115: VENADILLO | D115: 2595 | E115: 2567 | F115: 1216 | G115: 1229 | H115: 6 | I115: 0 | J115: 0 | K115: 0 | L115: 26 | M115: 0 | N115: 2477 | O115: 0.9892100193 | P115: 0.9445086705
A116: ALCANOS DE COLOMBIA S.A. E.S.P. | B116: TOLIMA | C116: VILLARRICA | D116: 854 | E116: 633 | F116: 161 | G116: 133 | H116: 1 | I116: 0 | J116: 0 | K116: 0 | L116: 3 | M116: 0 | N116: 298 | O116: 0.7412177986 | P116: 0.3454332553
A117: GASES DEL CUSIANA S.A. E.S.P | B117: CASANARE | C117: AGUAZUL | D117: 7530 | E117: 7495 | F117: 1440 | G117: 4568 | H117: 484 | I117: 4 | L117: 298 | M117: 2 | N117: 6796 | O117: 0.9953519256 | P117: 0.8626826029
A118: GASES DEL CUSIANA S.A. E.S.P | B118: CASANARE | C118: MONTERREY | D118: 3550 | E118: 3495 | F118: 2098 | G118: 1387 | H118: 8 | L118: 167 | M118: 0 | N118: 3660 | O118: 0.9845070423 | P118: 0.983943662
A119: GASES DEL CUSIANA S.A. E.S.P | B119: CASANARE | C119: TAURAMENA | D119: 5200 | E119: 5140 | F119: 2554 | G119: 1690 | H119: 508 | I119: 9 | J119: 11 | K119: 4 | L119: 240 | M119: 1 | N119: 5017 | O119: 0.9884615385 | P119: 0.9184615385
A120: GASES DEL CUSIANA S.A. E.S.P | B120: CASANARE | C120: VILLANUEVA | D120: 5610 | E120: 5585 | F120: 1795 | G120: 2769 | H120: 788 | I120: 17 | L120: 250 | M120: 1 | N120: 5620 | O120: 0.995543672 | P120: 0.9570409982
A121: GASES DEL CUSIANA S.A. E.S.P | B121: CASANARE | C121: YOPAL | D121: 32500 | E121: 32250 | F121: 7110 | G121: 14088 | H121: 7384 | I121: 1783 | J121: 17 | L121: 1694 | M121: 7 | N121: 32083 | O121: 0.9923076923 | P121: 0.9348307692
A122: EDALGAS S.A. E.S.P. | B122: TOLIMA | C122: ANZOATEGUI | D122: 651 | E122: 651 | F122: 269 | G122: 264 | H122: 2 | I122: 0 | J122: 0 | K122: 0 | L122: 0 | M122: 0 | N122: 535 | O122: 1 | P122: 0.821812596 | Q122: el Censo que tiene la empresa EDALGAS S.A y la Alcaldia Municipal de Anzoategui del castrato poblacional es de 651, diferente al reporte del DANE que es de 481
A123: EDALGAS S.A. E.S.P. | B123: TOLIMA | C123: ROVIRA | D123: 2771 | E123: 2650 | F123: 1626 | G123: 686 | H123: 87 | I123: 0 | J123: 0 | K123: 0 | L123: 7 | M123: 0 | N123: 2406 | O123: 0.9563334536 | P123: 0.8657524359
A124: EFIGAS GAS NATURAL S.A. E.S.P. | B124: CALDAS | C124: ANSERMA | D124: 13394 | E124: 7649 | F124: 884 | G124: 1610 | H124: 2109 | I124: 52 | J124: 0 | K124: 0 | L124: 36 | M124: 0 | N124: 4691 | O124: 0.5710766015 | P124: 0.3475436763 | Q124: Catastro fuente Municipio actualización 2013
A125: EFIGAS GAS NATURAL S.A. E.S.P. | B125: CALDAS | C125: BELALCAZAR | D125: 3340 | E125: 1707 | F125: 341 | G125: 553 | H125: 246 | I125: 1 | J125: 0 | K125: 0 | L125: 11 | M125: 0 | N125: 1152 | O125: 0.5110778443 | P125: 0.3416167665 | Q125: Catastro fuente Municipio actualización 2010
A126: EFIGAS GAS NATURAL S.A. E.S.P. | B126: CALDAS | C126: CHINCHINA | D126: 11463 | E126: 14277 | F126: 1642 | G126: 5045 | H126: 2966 | I126: 1485 | J126: 119 | K126: 0 | L126: 176 | M126: 7 | N126: 11440 | O126: 1.245485475 | P126: 0.9820291372 | Q126: Catastro fuente Municipio
A127: EFIGAS GAS NATURAL S.A. E.S.P. | B127: CALDAS | C127: MANIZALES | D127: 100982 | E127: 125385 | F127: 8317 | G127: 24800 | H127: 37731 | I127: 14500 | J127: 4765 | K127: 8360 | L127: 2146 | M127: 90 | N127: 100709 | O127: 1.241656929 | P127: 0.9751539878 | Q127: Catastro fuente Municipio actualización 2014
A128: EFIGAS GAS NATURAL S.A. E.S.P. | B128: CALDAS | C128: NEIRA | D128: 7196 | E128: 4557 | F128: 505 | G128: 1591 | H128: 1708 | I128: 0 | J128: 0 | K128: 0 | L128: 80 | M128: 0 | N128: 3884 | O128: 0.6332684825 | P128: 0.528627015 | Q128: Catastro fuente Municipio actualización 2014
A129: EFIGAS GAS NATURAL S.A. E.S.P. | B129: CALDAS | C129: PALESTINA | D129: 3867 | E129: 4012 | F129: 834 | G129: 1042 | H129: 146 | I129: 42 | J129: 34 | K129: 34 | L129: 51 | M129: 0 | N129: 2183 | O129: 1.037496768 | P129: 0.5513317817 | Q129: Catastro fuente Municipio actualización 2015
A130: EFIGAS GAS NATURAL S.A. E.S.P. | B130: CALDAS | C130: RIOSUCIO | D130: 10026 | E130: 8787 | F130: 2538 | G130: 1486 | H130: 1930 | I130: 3 | J130: 0 | K130: 0 | L130: 59 | M130: 0 | N130: 6016 | O130: 0.8764213046 | P130: 0.5941551965 | Q130: Catastro fuente DANE 2005
A131: EFIGAS GAS NATURAL S.A. E.S.P. | B131: CALDAS | C131: RISARALDA | D131: 2446 | E131: 1662 | F131: 331 | G131: 638 | H131: 183 | I131: 0 | J131: 0 | K131: 0 | L131: 24 | M131: 0 | N131: 1176 | O131: 0.6794766966 | P131: 0.4709730172 | Q131: Catastro fuente Municipio actualización 1990
A132: EFIGAS GAS NATURAL S.A. E.S.P. | B132: CALDAS | C132: SAN JOSE | D132: 1252 | E132: 585 | F132: 99 | G132: 304 | H132: 2 | I132: 1 | J132: 0 | K132: 0 | L132: 3 | M132: 0 | N132: 409 | O132: 0.4672523962 | P132: 0.3242811502 | Q132: Catastro fuente Municipio actualización 2008
A133: EFIGAS GAS NATURAL S.A. E.S.P. | B133: CALDAS | C133: SUPIA | D133: 9997 | E133: 4731 | F133: 182 | G133: 1896 | H133: 1019 | I133: 4 | J133: 0 | K133: 0 | L133: 25 | M133: 0 | N133: 3126 | O133: 0.4732419726 | P133: 0.3101930579 | Q133: Catastro fuente Municipio actualización 2008
A134: EFIGAS GAS NATURAL S.A. E.S.P. | B134: CALDAS | C134: VILLAMARIA | D134: 14098 | E134: 15445 | F134: 1949 | G134: 4726 | H134: 5727 | I134: 942 | J134: 5 | K134: 58 | L134: 175 | M134: 10 | N134: 13592 | O134: 1.095545467 | P134: 0.9509859555 | Q134: Catastro fuente Municipio actualización 2009
A135: EFIGAS GAS NATURAL S.A. E.S.P. | B135: CALDAS | C135: VITERBO | D135: 3018 | E135: 3998 | F135: 922 | G135: 1059 | H135: 938 | I135: 29 | J135: 2 | K135: 0 | L135: 24 | M135: 0 | N135: 2974 | O135: 1.324718357 | P135: 0.9774685222 | Q135: Catastro fuente Municipio actualización 2005
A136: EFIGAS GAS NATURAL S.A. E.S.P. | B136: QUINDIO | C136: ARMENIA | D136: 79277 | E136: 105043 | F136: 19014 | G136: 24791 | H136: 22525 | I136: 8727 | J136: 6847 | K136: 1227 | L136: 1394 | M136: 44 | N136: 84569 | O136: 1.325012299 | P136: 1.048614352 | Q136: Catastro fuente Municipio actualización 2013
A137: EFIGAS GAS NATURAL S.A. E.S.P. | B137: QUINDIO | C137: CALARCA | D137: 16639 | E137: 19971 | F137: 2215 | G137: 9946 | H137: 3700 | I137: 774 | J137: 57 | K137: 3 | L137: 275 | M137: 6 | N137: 16976 | O137: 1.200252419 | P137: 1.003365587 | Q137: Catastro fuente Municipio actualización 2013
A138: EFIGAS GAS NATURAL S.A. E.S.P. | B138: QUINDIO | C138: CIRCASIA | D138: 7608 | E138: 7719 | F138: 2197 | G138: 3007 | H138: 1053 | I138: 238 | J138: 76 | K138: 10 | L138: 89 | M138: 3 | N138: 6673 | O138: 1.014589905 | P138: 0.8650105152 | Q138: Catastro fuente Municipio actualización 2005
A139: EFIGAS GAS NATURAL S.A. E.S.P. | B139: QUINDIO | C139: FILANDIA | D139: 3636 | E139: 2671 | F139: 507 | G139: 1508 | H139: 374 | I139: 0 | J139: 0 | K139: 0 | L139: 55 | M139: 0 | N139: 2444 | O139: 0.7345984598 | P139: 0.6570407041 | Q139: Catastro fuente Municipio actualización 2012
A140: EFIGAS GAS NATURAL S.A. E.S.P. | B140: QUINDIO | C140: LA TEBAIDA | D140: 7219 | E140: 8847 | F140: 1742 | G140: 5510 | H140: 343 | I140: 25 | J140: 51 | K140: 11 | L140: 101 | M140: 7 | N140: 7790 | O140: 1.225515999 | P140: 1.064136307 | Q140: Catastro fuente Municipio actualización 2014
A141: EFIGAS GAS NATURAL S.A. E.S.P. | B141: QUINDIO | C141: MONTENEGRO | D141: 11600 | E141: 10364 | F141: 2881 | G141: 4947 | H141: 903 | I141: 20 | J141: 7 | K141: 7 | L141: 138 | M141: 2 | N141: 8905 | O141: 0.8934482759 | P141: 0.7556034483 | Q141: Catastro fuente Municipio actualización 2009
A142: EFIGAS GAS NATURAL S.A. E.S.P. | B142: QUINDIO | C142: QUIMBAYA | D142: 13613 | E142: 8346 | F142: 1042 | G142: 5040 | H142: 997 | I142: 25 | J142: 1 | K142: 0 | L142: 118 | M142: 0 | N142: 7223 | O142: 0.6130904283 | P142: 0.5219275692 | Q142: Catastro fuente Municipio actualización 2010
A143: EFIGAS GAS NATURAL S.A. E.S.P. | B143: QUINDIO | C143: SALENTO | D143: 2308 | E143: 1519 | F143: 198 | G143: 887 | H143: 168 | I143: 13 | J143: 0 | K143: 1 | L143: 60 | M143: 0 | N143: 1327 | O143: 0.6581455806 | P143: 0.5489601386 | Q143: Catastro fuente Municipio actualización2012
A144: EFIGAS GAS NATURAL S.A. E.S.P. | B144: RISARALDA | C144: APIA | D144: 4211 | E144: 2316 | F144: 205 | G144: 609 | H144: 535 | I144: 7 | J144: 0 | K144: 0 | L144: 13 | M144: 1 | N144: 1370 | O144: 0.5499881263 | P144: 0.3220137735 | Q144: Catastro fuente Municipio actualización 2005
A145: EFIGAS GAS NATURAL S.A. E.S.P. | B145: RISARALDA | C145: BALBOA | D145: 1675 | E145: 429 | F145: 58 | G145: 128 | H145: 183 | I145: 2 | J145: 0 | K145: 0 | L145: 12 | M145: 0 | N145: 383 | O145: 0.256119403 | P145: 0.2214925373 | Q145: Catastro fuente Municipio actualización 2005
A146: EFIGAS GAS NATURAL S.A. E.S.P. | B146: RISARALDA | C146: BELEN DE UMBRIA | D146: 7444 | E146: 4248 | F146: 95 | G146: 1388 | H146: 971 | I146: 142 | J146: 0 | K146: 0 | L146: 26 | M146: 0 | N146: 2622 | O146: 0.570660935 | P146: 0.348737238 | Q146: Catastro fuente DANE 2005
A147: EFIGAS GAS NATURAL S.A. E.S.P. | B147: RISARALDA | C147: DOSQUEBRADAS | D147: 59891 | E147: 71743 | F147: 7658 | G147: 22690 | H147: 23391 | I147: 5487 | J147: 45 | K147: 5 | L147: 772 | M147: 43 | N147: 60091 | O147: 1.197892839 | P147: 0.9897313453 | Q147: Catastro fuente Municipio actualización 2011
A148: EFIGAS GAS NATURAL S.A. E.S.P. | B148: RISARALDA | C148: GUATICA | D148: 4338 | E148: 2369 | F148: 299 | G148: 949 | H148: 219 | I148: 0 | J148: 0 | K148: 0 | L148: 11 | M148: 1 | N148: 1479 | O148: 0.5461041955 | P148: 0.3381742739 | Q148: Catastro fuente Municipio
A149: EFIGAS GAS NATURAL S.A. E.S.P. | B149: RISARALDA | C149: LA CELIA | D149: 2068 | E149: 990 | F149: 199 | G149: 448 | H149: 248 | I149: 2 | J149: 0 | K149: 0 | L149: 26 | M149: 0 | N149: 923 | O149: 0.4787234043 | P149: 0.4337524178 | Q149: Catastro fuente Municipio actualización 2005
A150: EFIGAS GAS NATURAL S.A. E.S.P. | B150: RISARALDA | C150: LA VIRGINIA | D150: 7447 | E150: 9196 | F150: 2359 | G150: 2224 | H150: 2852 | I150: 131 | J150: 0 | K150: 0 | L150: 142 | M150: 2 | N150: 7710 | O150: 1.234859675 | P150: 1.015979589 | Q150: Catastro fuente Municipio actualización 2013
A151: EFIGAS GAS NATURAL S.A. E.S.P. | B151: RISARALDA | C151: MARSELLA | D151: 4779 | E151: 3064 | F151: 512 | G151: 1477 | H151: 425 | I151: 7 | J151: 0 | K151: 0 | L151: 59 | M151: 0 | N151: 2480 | O151: 0.6411383135 | P151: 0.5065913371 | Q151: Catastro fuente Municipio actualización 2005
A152: EFIGAS GAS NATURAL S.A. E.S.P. | B152: RISARALDA | C152: PEREIRA | D152: 169242 | E152: 155993 | F152: 21505 | G152: 40143 | H152: 23726 | I152: 18018 | J152: 10074 | K152: 6102 | L152: 2022 | M152: 48 | N152: 121638 | O152: 0.9217156498 | P152: 0.7064912965 | Q152: Catastro fuente Municipio actualización 2014
A153: EFIGAS GAS NATURAL S.A. E.S.P. | B153: RISARALDA | C153: QUINCHIA | D153: 8074 | E153: 3106 | F153: 387 | G153: 542 | H153: 768 | I153: 8 | J153: 0 | K153: 0 | L153: 18 | M153: 0 | N153: 1723 | O153: 0.3846916027 | P153: 0.2111716621 | Q153: Catastro fuente Municipio actualización 2014
A154: EFIGAS GAS NATURAL S.A. E.S.P. | B154: RISARALDA | C154: SANTA ROSA DE CABAL | D154: 17131 | E154: 18177 | F154: 1399 | G154: 6739 | H154: 5689 | I154: 825 | J154: 146 | K154: 9 | L154: 280 | M154: 4 | N154: 15091 | O154: 1.061058899 | P154: 0.8643395015 | Q154: Catastro fuente Municipio actualización 2011
A155: EFIGAS GAS NATURAL S.A. E.S.P. | B155: RISARALDA | C155: SANTUARIO | D155: 3987 | E155: 2144 | F155: 176 | G155: 445 | H155: 533 | I155: 7 | J155: 0 | K155: 0 | L155: 17 | M155: 0 | N155: 1178 | O155: 0.53774768 | P155: 0.2911963883 | Q155: Catastro fuente Municipio actualización 2005
A156: G 8 PROYECTOS ENERGETICOS S.A.S. E.S.P. | B156: CUNDINAMARCA | C156: CHOCONTA | D156: 24600 | E156: 2350 | F156: 344 | G156: 2237 | H156: 0 | I156: 0 | J156: 0 | K156: 0 | L156: 14 | M156: 0 | N156: 2595 | O156: 0.09552845528 | P156: 0.1049186992
A157: G 8 PROYECTOS ENERGETICOS S.A.S. E.S.P. | B157: CUNDINAMARCA | C157: GUASCA | D157: 12109 | E157: 1180 | F157: 54 | G157: 893 | H157: 194 | I157: 0 | J157: 0 | K157: 0 | L157: 14 | M157: 0 | N157: 1155 | O157: 0.0974 | P157: 0.0942
A158: G 8 PROYECTOS ENERGETICOS S.A.S. E.S.P. | B158: CUNDINAMARCA | C158: VILLAPINZON | D158: 19742 | E158: 550 | F158: 8 | G158: 431 | H158: 75 | I158: 0 | J158: 0 | K158: 0 | L158: 5 | M158: 0 | N158: 519 | O158: 0.0279 | P158: 0.026
A159: GAS NATURAL S.A E.S.P | B159: BOGOTA | C159: BOGOTA, D.C. | D159: 1942097 | E159: 1877538 | F159: 144241 | G159: 666209 | H159: 668237 | I159: 248269 | J159: 81798 | K159: 60166 | L159: 49725 | M159: 547 | N159: 1919192 | O159: 0.966758097 | P159: 0.9623206256
A160: GAS NATURAL S.A E.S.P | B160: CUNDINAMARCA | C160: ANAPOIMA | D160: 1483 | E160: 1392 | F160: 1 | G160: 208 | H160: 586 | I160: 300 | J160: 88 | K160: 0 | L160: 29 | M160: 0 | N160: 1212 | O160: 0.9386378962 | P160: 0.79770735
A161: GAS NATURAL S.A E.S.P | B161: CUNDINAMARCA | C161: EL COLEGIO | D161: 1444 | E161: 1220 | F161: 7 | G161: 594 | H161: 594 | I161: 3 | J161: 0 | K161: 0 | L161: 21 | M161: 0 | N161: 1219 | O161: 0.8448753463 | P161: 0.8296398892
A162: GAS NATURAL S.A E.S.P | B162: CUNDINAMARCA | C162: EL ROSAL | D162: 3668 | E162: 3558 | F162: 20 | G162: 1869 | H162: 1653 | I162: 1 | J162: 0 | K162: 2 | L162: 64 | M162: 0 | N162: 3609 | O162: 0.9700109051 | P162: 0.9664667394
A163: GAS NATURAL S.A E.S.P | B163: CUNDINAMARCA | C163: LA CALERA | D163: 3105 | E163: 2990 | F163: 18 | G163: 1832 | H163: 973 | I163: 50 | J163: 0 | K163: 0 | L163: 65 | M163: 0 | N163: 2938 | O163: 0.962962963 | P163: 0.9252818035
A164: GAS NATURAL S.A E.S.P | B164: CUNDINAMARCA | C164: LA MESA | D164: 4402 | E164: 4089 | F164: 2 | G164: 1959 | H164: 1748 | I164: 380 | J164: 0 | K164: 0 | L164: 42 | M164: 0 | N164: 4131 | O164: 0.9288959564 | P164: 0.9288959564
A165: GAS NATURAL S.A E.S.P | B165: CUNDINAMARCA | C165: SIBATE | D165: 7488 | E165: 6962 | F165: 433 | G165: 5352 | H165: 1166 | I165: 1 | J165: 1 | K165: 0 | L165: 172 | M165: 11 | N165: 7136 | O165: 0.9297542735 | P165: 0.9285523504
A166: GAS NATURAL S.A E.S.P | B166: CUNDINAMARCA | C166: SOACHA | D166: 185195 | E166: 179925 | F166: 33966 | G166: 91041 | H166: 50132 | I166: 59 | J166: 8 | K166: 0 | L166: 1840 | M166: 31 | N166: 177077 | O166: 0.9715435082 | P166: 0.9460622587
A167: GAS NATURAL S.A E.S.P | B167: CUNDINAMARCA | C167: VIOTA | D167: 204 | E167: 107 | F167: 1 | G167: 83 | H167: 1 | I167: 0 | J167: 0 | K167: 0 | L167: 0 | M167: 0 | N167: 85 | O167: 0.5245098039 | P167: 0.4166666667
A168: GASES DE LA GUAJIRA S.A. E.S.P. | B168: LA GUAJIRA | C168: ALBANIA | D168: 3427 | E168: 3048 | F168: 748 | G168: 860 | H168: 0 | I168: 0 | J168: 0 | K168: 0 | L168: 22 | M168: 520 | N168: 2150 | O168: 0.8894076452 | P168: 0.4692150569
A169: GASES DE LA GUAJIRA S.A. E.S.P. | B169: LA GUAJIRA | C169: BARRANCAS | D169: 6382 | E169: 5822 | F169: 1354.852033 | G169: 2905.221138 | H169: 841.9268293 | I169: 0 | J169: 0 | K169: 0 | L169: 52 | M169: 0 | N169: 5154 | O169: 0.9122532122 | P169: 0.7994359135
A170: GASES DE LA GUAJIRA S.A. E.S.P. | B170: LA GUAJIRA | C170: DIBULLA | D170: 4900 | E170: 4569 | F170: 1081 | G170: 2276 | H170: 2 | I170: 0 | J170: 0 | K170: 0 | L170: 56 | M170: 3 | N170: 3418 | O170: 0.9324489796 | P170: 0.6855102041
A171: GASES DE LA GUAJIRA S.A. E.S.P. | B171: LA GUAJIRA | C171: DISTRACCION | D171: 2295 | E171: 2193 | F171: 561 | G171: 1140 | H171: 197 | I171: 2 | J171: 0 | K171: 0 | L171: 16 | M171: 2 | N171: 1918 | O171: 0.9555555556 | P171: 0.8278867102
A172: GASES DE LA GUAJIRA S.A. E.S.P. | B172: LA GUAJIRA | C172: EL MOLINO | D172: 1491 | E172: 1473 | F172: 474.9135802 | G172: 653.9320988 | H172: 136.154321 | I172: 0 | J172: 0 | K172: 0 | L172: 6 | M172: 0 | N172: 1271 | O172: 0.9879275654 | P172: 0.8484238766
A173: GASES DE LA GUAJIRA S.A. E.S.P. | B173: LA GUAJIRA | C173: FONSECA | D173: 10574 | E173: 10349 | F173: 4403.940567 | G173: 2478.241181 | H173: 2010.796012 | I173: 51.02223926 | J173: 0 | K173: 0 | L173: 73 | M173: 5 | N173: 9022 | O173: 0.9787213921 | P173: 0.8458483072
A174: GASES DE LA GUAJIRA S.A. E.S.P. | B174: LA GUAJIRA | C174: HATONUEVO | D174: 3631 | E174: 3533 | F174: 815.9728682 | G174: 1029.903101 | H174: 482.5310078 | I174: 299.5930233 | J174: 0 | K174: 0 | L174: 49 | M174: 1 | N174: 2678 | O174: 0.97301019 | P174: 0.7237675571
A175: GASES DE LA GUAJIRA S.A. E.S.P. | B175: LA GUAJIRA | C175: LA JAGUA DEL PILAR | D175: 465 | E175: 462 | F175: 222 | G175: 224 | H175: 0 | I175: 0 | J175: 0 | K175: 0 | L175: 5 | M175: 0 | N175: 451 | O175: 0.9935483871 | P175: 0.9591397849
A176: GASES DE LA GUAJIRA S.A. E.S.P. | B176: LA GUAJIRA | C176: MAICAO | D176: 28510 | E176: 25299 | F176: 5766.028706 | G176: 11473.91452 | H176: 3129.657691 | I176: 348.3990855 | J176: 0 | K176: 0 | L176: 244 | M176: 14 | N176: 20976 | O176: 0.8873728516 | P176: 0.7266923886
A177: GASES DE LA GUAJIRA S.A. E.S.P. | B177: LA GUAJIRA | C177: MANAURE | D177: 2497 | E177: 1996 | F177: 368 | G177: 857.2350674 | H177: 178.7649326 | I177: 0 | J177: 0 | K177: 0 | L177: 37 | M177: 1 | N177: 1442 | O177: 0.7993592311 | P177: 0.5622747297
A178: GASES DE LA GUAJIRA S.A. E.S.P. | B178: LA GUAJIRA | C178: RIOHACHA | D178: 45967 | E178: 43026 | F178: 18434.65228 | G178: 13292.50084 | H178: 4593.421695 | I178: 1315.505511 | J178: 274.9196733 | K178: 1 | L178: 486 | M178: 27 | N178: 38425 | O178: 0.9360193182 | P178: 0.8247655927
A179: GASES DE LA GUAJIRA S.A. E.S.P. | B179: LA GUAJIRA | C179: SAN JUAN DEL CESAR | D179: 10572 | E179: 9532 | F179: 3205.361436 | G179: 3098.138173 | H179: 1626.867291 | I179: 47.63309914 | J179: 0 | K179: 0 | L179: 57 | M179: 5 | N179: 8040 | O179: 0.9016269391 | P179: 0.7546348846
A180: GASES DE LA GUAJIRA S.A. E.S.P. | B180: LA GUAJIRA | C180: URIBIA | D180: 2484 | E180: 2162 | F180: 642.9881657 | G180: 904.3668639 | H180: 32.64497041 | I180: 0 | J180: 0 | K180: 0 | L180: 37 | M180: 6 | N180: 1623 | O180: 0.8703703704 | P180: 0.6360708535
A181: GASES DE LA GUAJIRA S.A. E.S.P. | B181: LA GUAJIRA | C181: URUMITA | D181: 2111 | E181: 2100 | F181: 881.375 | G181: 1026.866071 | H181: 8.758928571 | I181: 0 | J181: 0 | K181: 0 | L181: 15 | M181: 1 | N181: 1933 | O181: 0.9947891994 | P181: 0.9081004263
A182: GASES DE LA GUAJIRA S.A. E.S.P. | B182: LA GUAJIRA | C182: VILLANUEVA | D182: 6010 | E182: 5747 | F182: 1656.260269 | G182: 2780.952365 | H182: 769.8929928 | I182: 16.89437349 | J182: 0 | K182: 0 | L182: 50 | M182: 2 | N182: 5276 | O182: 0.9562396007 | P182: 0.86921797
A183: GASES DEL ORIENTE S.A. E.S.P. | B183: N. DE SANTANDER | C183: CHITAGA | D183: 1856 | E183: 1747 | F183: 362 | G183: 845 | H183: 1 | I183: 0 | J183: 0 | K183: 0 | L183: 8 | M183: 0 | N183: 1216 | O183: 0.9412715517 | P183: 0.650862069
A184: GASES DEL ORIENTE S.A. E.S.P. | B184: N. DE SANTANDER | C184: CUCUTA | D184: 147517 | E184: 141745 | F184: 29735 | G184: 51960 | H184: 18955 | I184: 8349 | J184: 551 | K184: 0 | L184: 234 | M184: 6 | N184: 109790 | O184: 0.9608723062 | P184: 0.7426262736
A185: GASES DEL ORIENTE S.A. E.S.P. | B185: N. DE SANTANDER | C185: EL ZULIA | D185: 3967 | E185: 3391 | F185: 544 | G185: 1600 | H185: 298 | I185: 1 | J185: 0 | K185: 0 | L185: 0 | M185: 0 | N185: 2443 | O185: 0.8548021175 | P185: 0.6158306025
A186: GASES DEL ORIENTE S.A. E.S.P. | B186: N. DE SANTANDER | C186: LABATECA | D186: 701 | E186: 682 | F186: 107 | G186: 401 | H186: 0 | I186: 0 | J186: 0 | K186: 0 | L186: 0 | M186: 0 | N186: 508 | O186: 0.9728958631 | P186: 0.72467903
A187: GASES DEL ORIENTE S.A. E.S.P. | B187: N. DE SANTANDER | C187: LOS PATIOS | D187: 17657 | E187: 17453 | F187: 1161 | G187: 9162 | H187: 1983 | I187: 83 | J187: 75 | K187: 21 | L187: 19 | M187: 0 | N187: 12504 | O187: 0.9884465085 | P187: 0.7070850088
A188: GASES DEL ORIENTE S.A. E.S.P. | B188: N. DE SANTANDER | C188: PAMPLONA | D188: 14450 | E188: 12050 | F188: 1503 | G188: 2967 | H188: 2077 | I188: 531 | J188: 0 | K188: 0 | L188: 18 | M188: 3 | N188: 7099 | O188: 0.8339100346 | P188: 0.4898269896
A189: GASES DEL ORIENTE S.A. E.S.P. | B189: N. DE SANTANDER | C189: SARDINATA | D189: 3165 | E189: 2779 | F189: 1071 | G189: 1029 | H189: 44 | I189: 0 | J189: 0 | K189: 0 | L189: 1 | M189: 0 | N189: 2145 | O189: 0.8780410742 | P189: 0.6774091627
A190: GASES DEL ORIENTE S.A. E.S.P. | B190: N. DE SANTANDER | C190: SILOS | D190: 401 | E190: 529 | F190: 40 | G190: 279 | H190: 0 | I190: 0 | J190: 0 | K190: 0 | L190: 3 | M190: 0 | N190: 322 | O190: 1.319201995 | P190: 0.7955112219
A191: GASES DEL ORIENTE S.A. E.S.P. | B191: N. DE SANTANDER | C191: TOLEDO | D191: 2654 | E191: 2438 | F191: 116 | G191: 1568 | H191: 265 | I191: 9 | J191: 0 | K191: 0 | L191: 4 | M191: 0 | N191: 1962 | O191: 0.9186134137 | P191: 0.7377543331 | Q191: Incluye cabecera municipal y los corregimientos de San Bernardo de Bata, Samoré y Gibraltar
A192: GASES DEL ORIENTE S.A. E.S.P. | B192: N. DE SANTANDER | C192: VILLA DEL ROSARIO | D192: 24500 | E192: 21293 | F192: 5888 | G192: 4038 | H192: 2232 | I192: 240 | J192: 0 | K192: 0 | L192: 18 | M192: 1 | N192: 12417 | O192: 0.8691020408 | P192: 0.5060408163
A193: GASES DEL SUR DE SANTANDER S.A. E.S.P. | B193: BOYACA | C193: ARCABUCO | D193: 1350 | E193: 416 | F193: 45 | G193: 360 | H193: 11 | I193: 0 | J193: 0 | K193: 0 | L193: 34 | M193: 0 | N193: 450 | O193: 0.3081481481 | P193: 0.3081481481
A194: GASES DEL SUR DE SANTANDER S.A. E.S.P. | B194: BOYACA | C194: BOAVITA | D194: 1835 | E194: 548 | F194: 62 | G194: 486 | H194: 0 | I194: 0 | J194: 0 | K194: 0 | L194: 0 | M194: 0 | N194: 548 | O194: 0.2986376022 | P194: 0.2986376022
A195: GASES DEL SUR DE SANTANDER S.A. E.S.P. | B195: BOYACA | C195: CHITARAQUE | D195: 1723 | E195: 230 | F195: 63 | G195: 149 | H195: 18 | I195: 0 | J195: 0 | K195: 0 | L195: 3 | M195: 0 | N195: 233 | O195: 0.1334881021 | P195: 0.1334881021
A196: GASES DEL SUR DE SANTANDER S.A. E.S.P. | B196: BOYACA | C196: LA UVITA | D196: 1005 | E196: 210 | F196: 43 | G196: 167 | H196: 0 | I196: 0 | J196: 0 | K196: 0 | L196: 0 | M196: 0 | N196: 210 | O196: 0.2089552239 | P196: 0.2089552239
A197: GASES DEL SUR DE SANTANDER S.A. E.S.P. | B197: BOYACA | C197: SANTANA | D197: 1884 | E197: 489 | F197: 22 | G197: 420 | H197: 47 | I197: 0 | J197: 0 | K197: 0 | L197: 16 | M197: 0 | N197: 505 | O197: 0.2595541401 | P197: 0.2595541401
A198: GASES DEL SUR DE SANTANDER S.A. E.S.P. | B198: BOYACA | C198: SOATA | D198: 2613 | E198: 1426 | F198: 531 | G198: 895 | H198: 0 | I198: 0 | J198: 0 | K198: 0 | L198: 0 | M198: 0 | N198: 1426 | O198: 0.5457328741 | P198: 0.5457328741
A199: GASES DEL SUR DE SANTANDER S.A. E.S.P. | B199: BOYACA | C199: TOGsI | D199: 1427 | E199: 165 | F199: 5 | G199: 151 | H199: 9 | I199: 0 | J199: 0 | K199: 0 | L199: 5 | M199: 0 | N199: 170 | O199: 0.1156271899 | P199: 0.1156271899
A200: GASES DEL SUR DE SANTANDER S.A. E.S.P. | B200: SANTANDER | C200: BARBOSA | D200: 7574 | E200: 4493 | F200: 225 | G200: 2432 | H200: 1829 | I200: 7 | J200: 0 | K200: 0 | L200: 88 | M200: 0 | N200: 4581 | O200: 0.5932136256 | P200: 0.5932136256
... 491 more rows

Sheet CobGN_2016-4
B2: COBERTURA DEL SERVICIO DE GAS NATURAL - IV TRIMESTRE DE 2016
B4: Empresa | C4: Departamento | D4: Municipio | E4: Catastro Población | F4: Total Residenciales Anillados | G4: E1 | H4: E2 | I4: E3 | J4: E4 | K4: E5 | L4: E6 | M4: Total Usuarios Residenciales Conectados | N4: Total Comercial Conectados | O4: Total Industrial Conectados | P4: Total Usuarios Conectados | Q4: Cobertura Residencial Potencial | R4: Cobertura Residencial Efectiva | S4: Observación
B5: ALCANOS DE COLOMBIA S.A. E.S.P. | C5: ANTIOQUIA | D5: EL CARMEN DE VIBORAL | E5: 9095 | F5: 8054 | G5: 242 | H5: 2670 | I5: 2521 | J5: 0 | K5: 0 | L5: 0 | M5: =+SUM(G5:L5) -> 5433 | N5: 91 | O5: 3 | P5: =+M5+N5+O5 -> 5527 | Q5: 0.9863661352 | R5: 0.5973611875
B6: ALCANOS DE COLOMBIA S.A. E.S.P. | C6: ANTIOQUIA | D6: EL SANTUARIO | E6: 7712 | F6: 7200 | G6: 1031 | H6: 3825 | I6: 1171 | J6: 1 | K6: 0 | L6: 0 | M6: =+SUM(G6:L6) -> 6028 | N6: 53 | O6: 0 | P6: =+M6+N6+O6 -> 6081 | Q6: 0.9880705394 | R6: 0.7816390041
B7: ALCANOS DE COLOMBIA S.A. E.S.P. | C7: ANTIOQUIA | D7: GUARNE | E7: 5011 | F7: 4348 | G7: 78 | H7: 1222 | I7: 1911 | J7: 43 | K7: 0 | L7: 0 | M7: 3254 | N7: 58 | O7: 0 | P7: 3312 | Q7: 0.9874276591 | R7: 0.649371383
B8: ALCANOS DE COLOMBIA S.A. E.S.P. | C8: ANTIOQUIA | D8: MARINILLA | E8: 12148 | F8: 10805 | G8: 368 | H8: 2516 | I8: 4701 | J8: 219 | K8: 9 | L8: 0 | M8: 7813 | N8: 115 | O8: 1 | P8: 7929 | Q8: 0.9900395127 | R8: 0.643151136
B9: ALCANOS DE COLOMBIA S.A. E.S.P. | C9: ANTIOQUIA | D9: PUERTO TRIUNFO | E9: 3107 | F9: 2595 | G9: 238 | H9: 1526 | I9: 12 | J9: 1 | K9: 0 | L9: 0 | M9: 1777 | N9: 8 | O9: 0 | P9: 1785 | Q9: 0.9810106212 | R9: 0.5719343418
B10: ALCANOS DE COLOMBIA S.A. E.S.P. | C10: ANTIOQUIA | D10: RIONEGRO | E10: 30018 | F10: 29633 | G10: 476 | H10: 4361 | I10: 7899 | J10: 4290 | K10: 920 | L10: 63 | M10: 18009 | N10: 353 | O10: 6 | P10: 18368 | Q10: 0.987174362 | R10: 0.599940036
B11: ALCANOS DE COLOMBIA S.A. E.S.P. | C11: BOYACA | D11: PUERTO BOYACA | E11: 9952 | F11: 9749 | G11: 2252 | H11: 5828 | I11: 1331 | J11: 94 | K11: 0 | L11: 0 | M11: 9505 | N11: 97 | O11: 0 | P11: 9602 | Q11: 0.9899517685 | R11: 0.9550844051
B12: ALCANOS DE COLOMBIA S.A. E.S.P. | C12: CALDAS | D12: LA DORADA | E12: 17983 | F12: 17063 | G12: 3849 | H12: 10102 | I12: 2619 | J12: 128 | K12: 8 | L12: 0 | M12: 16706 | N12: 141 | O12: 2 | P12: 16849 | Q12: 0.9917143969 | R12: 0.9289884891
B13: ALCANOS DE COLOMBIA S.A. E.S.P. | C13: CALDAS | D13: MANZANARES | E13: 2606 | F13: 2519 | G13: 624 | H13: 1533 | I13: 326 | J13: 12 | K13: 0 | L13: 0 | M13: 2495 | N13: 29 | O13: 0 | P13: 2524 | Q13: 0.9884881044 | R13: 0.9574059862
B14: ALCANOS DE COLOMBIA S.A. E.S.P. | C14: CALDAS | D14: NORCASIA | E14: 1624 | F14: 1275 | G14: 368 | H14: 596 | I14: 36 | J14: 0 | K14: 0 | L14: 0 | M14: 1000 | N14: 2 | O14: 0 | P14: 1002 | Q14: 0.9033251232 | R14: 0.6157635468
B15: ALCANOS DE COLOMBIA S.A. E.S.P. | C15: CALDAS | D15: VICTORIA | E15: 1369 | F15: 1362 | G15: 602 | H15: 509 | I15: 202 | J15: 1 | K15: 0 | L15: 0 | M15: 1314 | N15: 6 | O15: 0 | P15: 1320 | Q15: 0.9948867787 | R15: 0.9598246896
B16: ALCANOS DE COLOMBIA S.A. E.S.P. | C16: CAQUETA | D16: FLORENCIA | E16: 44697 | F16: 38624 | G16: 26159 | H16: 9516 | I16: 1484 | J16: 327 | K16: 0 | L16: 0 | M16: 37486 | N16: 99 | O16: 1 | P16: 37586 | Q16: 0.9953911896 | R16: 0.8386692619
B17: ALCANOS DE COLOMBIA S.A. E.S.P. | C17: CAUCA | D17: CAJIBIO | E17: 1079 | F17: 746 | G17: 376 | H17: 244 | I17: 0 | J17: 0 | K17: 0 | L17: 0 | M17: 620 | N17: 4 | O17: 0 | P17: 624 | Q17: 0.9323447637 | R17: 0.5746061168
B18: ALCANOS DE COLOMBIA S.A. E.S.P. | C18: CAUCA | D18: EL TAMBO | E18: 1687 | F18: 1359 | G18: 804 | H18: 339 | I18: 7 | J18: 0 | K18: 0 | L18: 0 | M18: 1150 | N18: 6 | O18: 0 | P18: 1156 | Q18: 0.9905157084 | R18: 0.6816834618
B19: ALCANOS DE COLOMBIA S.A. E.S.P. | C19: CAUCA | D19: MORALES | E19: 1163 | F19: 763 | G19: 394 | H19: 228 | I19: 6 | J19: 0 | K19: 0 | L19: 0 | M19: 628 | N19: 3 | O19: 0 | P19: 631 | Q19: 0.9372312984 | R19: 0.5399828031
B20: ALCANOS DE COLOMBIA S.A. E.S.P. | C20: CAUCA | D20: PATIA | E20: 5096 | F20: 3305 | G20: 1135 | H20: 852 | I20: 17 | J20: 0 | K20: 0 | L20: 0 | M20: 2004 | N20: 10 | O20: 0 | P20: 2014 | Q20: 0.9587912088 | R20: 0.3932496075
B21: ALCANOS DE COLOMBIA S.A. E.S.P. | C21: CAUCA | D21: PIENDAMO | E21: 6332 | F21: 3833 | G21: 1369 | H21: 1649 | I21: 363 | J21: 0 | K21: 0 | L21: 0 | M21: 3381 | N21: 25 | O21: 1 | P21: 3407 | Q21: 0.8160138977 | R21: 0.5339545167
B22: ALCANOS DE COLOMBIA S.A. E.S.P. | C22: CAUCA | D22: POPAYAN | E22: 76805 | F22: 67987 | G22: 10995 | H22: 19382 | I22: 14094 | J22: 7248 | K22: 2094 | L22: 345 | M22: 54158 | N22: 383 | O22: 7 | P22: 54548 | Q22: 0.9944665061 | R22: 0.7051363843
B23: ALCANOS DE COLOMBIA S.A. E.S.P. | C23: CAUCA | D23: ROSAS | E23: 683 | F23: 625 | G23: 210 | H23: 138 | I23: 4 | J23: 0 | K23: 0 | L23: 0 | M23: 352 | N23: 2 | O23: 0 | P23: 354 | Q23: 0.9150805271 | R23: 0.5153733529
B24: ALCANOS DE COLOMBIA S.A. E.S.P. | C24: CAUCA | D24: SILVIA | E24: 2368 | F24: 1836 | G24: 444 | H24: 450 | I24: 177 | J24: 4 | K24: 1 | L24: 0 | M24: 1076 | N24: 12 | O24: 0 | P24: 1088 | Q24: 0.7753378378 | R24: 0.4543918919
B25: ALCANOS DE COLOMBIA S.A. E.S.P. | C25: CAUCA | D25: TIMBIO | E25: 4770 | F25: 4740 | G25: 1849 | H25: 1065 | I25: 4 | J25: 0 | K25: 0 | L25: 0 | M25: 2918 | N25: 26 | O25: 0 | P25: 2944 | Q25: 0.9937106918 | R25: 0.6117400419
B26: ALCANOS DE COLOMBIA S.A. E.S.P. | C26: CAUCA | D26: TOTORO | E26: 410 | F26: 325 | G26: 155 | H26: 46 | I26: 0 | J26: 0 | K26: 0 | L26: 0 | M26: 201 | N26: 5 | O26: 0 | P26: 206 | Q26: 0.7926829268 | R26: 0.4902439024
B27: ALCANOS DE COLOMBIA S.A. E.S.P. | C27: CUNDINAMARCA | D27: AGUA DE DIOS | E27: 4284 | F27: 3452 | G27: 728 | H27: 2386 | I27: 141 | J27: 1 | K27: 0 | L27: 0 | M27: 3256 | N27: 28 | O27: 0 | P27: 3284 | Q27: 0.9470121382 | R27: 0.7600373483
B28: ALCANOS DE COLOMBIA S.A. E.S.P. | C28: CUNDINAMARCA | D28: ALBAN | E28: 741 | F28: 467 | G28: 30 | H28: 325 | I28: 26 | J28: 0 | K28: 0 | L28: 0 | M28: 381 | N28: 0 | O28: 0 | P28: 381 | Q28: 0.7300944669 | R28: 0.5141700405
B29: ALCANOS DE COLOMBIA S.A. E.S.P. | C29: CUNDINAMARCA | D29: APULO | E29: 1832 | F29: 1561 | G29: 452 | H29: 759 | I29: 206 | J29: 0 | K29: 0 | L29: 0 | M29: 1417 | N29: 9 | O29: 0 | P29: 1426 | Q29: 0.9759825328 | R29: 0.7734716157
B30: ALCANOS DE COLOMBIA S.A. E.S.P. | C30: CUNDINAMARCA | D30: ARBELAEZ | E30: 2230 | F30: 1916 | G30: 21 | H30: 1326 | I30: 375 | J30: 90 | K30: 4 | L30: 0 | M30: 1816 | N30: 25 | O30: 0 | P30: 1841 | Q30: 0.9874439462 | R30: 0.8143497758
B31: ALCANOS DE COLOMBIA S.A. E.S.P. | C31: CUNDINAMARCA | D31: BELTRAN | E31: 182 | F31: 144 | G31: 85 | H31: 38 | I31: 0 | J31: 0 | K31: 0 | L31: 0 | M31: 123 | N31: 0 | O31: 0 | P31: 123 | Q31: 0.9285714286 | R31: 0.6758241758
B32: ALCANOS DE COLOMBIA S.A. E.S.P. | C32: CUNDINAMARCA | D32: BITUIMA | E32: 326 | F32: 255 | G32: 18 | H32: 114 | I32: 22 | J32: 0 | K32: 0 | L32: 0 | M32: 154 | N32: 2 | O32: 0 | P32: 156 | Q32: 0.8773006135 | R32: 0.472392638
B33: ALCANOS DE COLOMBIA S.A. E.S.P. | C33: CUNDINAMARCA | D33: CABRERA | E33: 402 | F33: 321 | G33: 23 | H33: 291 | I33: 0 | J33: 0 | K33: 0 | L33: 0 | M33: 314 | N33: 7 | O33: 0 | P33: 321 | Q33: 0.947761194 | R33: 0.7810945274
B34: ALCANOS DE COLOMBIA S.A. E.S.P. | C34: CUNDINAMARCA | D34: CHAGUANI | E34: 448 | F34: 381 | G34: 26 | H34: 307 | I34: 3 | J34: 0 | K34: 0 | L34: 0 | M34: 336 | N34: 1 | O34: 0 | P34: 337 | Q34: 0.9709821429 | R34: 0.75
B35: ALCANOS DE COLOMBIA S.A. E.S.P. | C35: CUNDINAMARCA | D35: FUSAGASUGA | E35: 41544 | F35: 39550 | G35: 932 | H35: 10817 | I35: 14186 | J35: 10554 | K35: 2013 | L35: 423 | M35: 38925 | N35: 326 | O35: 0 | P35: 39251 | Q35: 0.9916233391 | R35: 0.9369584055
B36: ALCANOS DE COLOMBIA S.A. E.S.P. | C36: CUNDINAMARCA | D36: GIRARDOT | E36: 30695 | F36: 27570 | G36: 4110 | H36: 10421 | I36: 7408 | J36: 1503 | K36: 188 | L36: 0 | M36: 23630 | N36: 386 | O36: 4 | P36: 24020 | Q36: 0.9848509529 | R36: 0.7698322202
B37: ALCANOS DE COLOMBIA S.A. E.S.P. | C37: CUNDINAMARCA | D37: GUADUAS | E37: 5985 | F37: 5553 | G37: 1272 | H37: 3435 | I37: 180 | J37: 162 | K37: 0 | L37: 0 | M37: 5049 | N37: 30 | O37: 1 | P37: 5080 | Q37: 0.9889724311 | R37: 0.8436090226 | S37: Incluye Puerto Bogotá
B38: ALCANOS DE COLOMBIA S.A. E.S.P. | C38: CUNDINAMARCA | D38: GUATAQUI | E38: 733 | F38: 469 | G38: 262 | H38: 59 | I38: 2 | J38: 0 | K38: 0 | L38: 0 | M38: 323 | N38: 1 | O38: 0 | P38: 324 | Q38: 0.7121418827 | R38: 0.4406548431
B39: ALCANOS DE COLOMBIA S.A. E.S.P. | C39: CUNDINAMARCA | D39: GUAYABAL DE SIQUIMA | E39: 657 | F39: 376 | G39: 21 | H39: 303 | I39: 49 | J39: 0 | K39: 0 | L39: 0 | M39: 373 | N39: 2 | O39: 0 | P39: 375 | Q39: 0.6377473364 | R39: 0.5677321157
B40: ALCANOS DE COLOMBIA S.A. E.S.P. | C40: CUNDINAMARCA | D40: JERUSALEN | E40: 358 | F40: 272 | G40: 79 | H40: 163 | I40: 1 | J40: 0 | K40: 0 | L40: 0 | M40: 243 | N40: 1 | O40: 0 | P40: 244 | Q40: 0.9441340782 | R40: 0.6787709497
B41: ALCANOS DE COLOMBIA S.A. E.S.P. | C41: CUNDINAMARCA | D41: LA PEÑA | E41: 404 | F41: 310 | G41: 64 | H41: 221 | I41: 4 | J41: 0 | K41: 0 | L41: 0 | M41: 289 | N41: 2 | O41: 0 | P41: 291 | Q41: 0.9183168317 | R41: 0.7153465347
B42: ALCANOS DE COLOMBIA S.A. E.S.P. | C42: CUNDINAMARCA | D42: LA VEGA | E42: 2370 | F42: 1977 | G42: 2 | H42: 764 | I42: 722 | J42: 312 | K42: 0 | L42: 0 | M42: 1800 | N42: 32 | O42: 0 | P42: 1832 | Q42: 0.9831223629 | R42: 0.7594936709
B43: ALCANOS DE COLOMBIA S.A. E.S.P. | C43: CUNDINAMARCA | D43: NARIÑO | E43: 1234 | F43: 543 | G43: 243 | H43: 269 | I43: 3 | J43: 0 | K43: 0 | L43: 0 | M43: 515 | N43: 3 | O43: 0 | P43: 518 | Q43: 0.5210696921 | R43: 0.4173419773
B44: ALCANOS DE COLOMBIA S.A. E.S.P. | C44: CUNDINAMARCA | D44: NILO | E44: 1346 | F44: 736 | G44: 80 | H44: 602 | I44: 15 | J44: 4 | K44: 0 | L44: 0 | M44: 701 | N44: 5 | O44: 0 | P44: 706 | Q44: 0.6233283804 | R44: 0.5208023774
B45: ALCANOS DE COLOMBIA S.A. E.S.P. | C45: CUNDINAMARCA | D45: NIMAIMA | E45: 499 | F45: 356 | G45: 45 | H45: 238 | I45: 1 | J45: 0 | K45: 0 | L45: 0 | M45: 284 | N45: 2 | O45: 0 | P45: 286 | Q45: 0.8517034068 | R45: 0.5691382766
B46: ALCANOS DE COLOMBIA S.A. E.S.P. | C46: CUNDINAMARCA | D46: NOCAIMA | E46: 739 | F46: 580 | G46: 19 | H46: 366 | I46: 149 | J46: 0 | K46: 0 | L46: 0 | M46: 534 | N46: 5 | O46: 0 | P46: 539 | Q46: 0.9891745602 | R46: 0.7225981055
B47: ALCANOS DE COLOMBIA S.A. E.S.P. | C47: CUNDINAMARCA | D47: PANDI | E47: 758 | F47: 547 | G47: 13 | H47: 471 | I47: 3 | J47: 0 | K47: 0 | L47: 0 | M47: 487 | N47: 2 | O47: 0 | P47: 489 | Q47: 0.8720316623 | R47: 0.6424802111
B48: ALCANOS DE COLOMBIA S.A. E.S.P. | C48: CUNDINAMARCA | D48: PASCA | E48: 926 | F48: 776 | G48: 109 | H48: 458 | I48: 153 | J48: 0 | K48: 0 | L48: 0 | M48: 720 | N48: 11 | O48: 0 | P48: 731 | Q48: 0.9006479482 | R48: 0.777537797
B49: ALCANOS DE COLOMBIA S.A. E.S.P. | C49: CUNDINAMARCA | D49: PUERTO SALGAR | E49: 3842 | F49: 3134 | G49: 2150 | H49: 729 | I49: 192 | J49: 0 | K49: 0 | L49: 0 | M49: 3071 | N49: 23 | O49: 0 | P49: 3094 | Q49: 0.9846434149 | R49: 0.7993232691
B50: ALCANOS DE COLOMBIA S.A. E.S.P. | C50: CUNDINAMARCA | D50: PULI | E50: 373 | F50: 370 | G50: 158 | H50: 103 | I50: 0 | J50: 0 | K50: 0 | L50: 0 | M50: 261 | N50: 0 | O50: 0 | P50: 261 | Q50: 0.9919571046 | R50: 0.6997319035
B51: ALCANOS DE COLOMBIA S.A. E.S.P. | C51: CUNDINAMARCA | D51: QUEBRADANEGRA | E51: 231 | F51: 230 | G51: 19 | H51: 123 | I51: 9 | J51: 0 | K51: 0 | L51: 0 | M51: 151 | N51: 1 | O51: 0 | P51: 152 | Q51: 0.9956709957 | R51: 0.6536796537
B52: ALCANOS DE COLOMBIA S.A. E.S.P. | C52: CUNDINAMARCA | D52: QUIPILE | E52: 330 | F52: 314 | G52: 21 | H52: 133 | I52: 60 | J52: 0 | K52: 0 | L52: 0 | M52: 214 | N52: 1 | O52: 0 | P52: 215 | Q52: 0.9515151515 | R52: 0.6484848485
B53: ALCANOS DE COLOMBIA S.A. E.S.P. | C53: CUNDINAMARCA | D53: RICAURTE | E53: 7536 | F53: 7196 | G53: 761 | H53: 296 | I53: 658 | J53: 1676 | K53: 328 | L53: 0 | M53: 3719 | N53: 33 | O53: 1 | P53: 3753 | Q53: 0.9548832272 | R53: 0.4934978769
B54: ALCANOS DE COLOMBIA S.A. E.S.P. | C54: CUNDINAMARCA | D54: SAN BERNARDO | E54: 1878 | F54: 1241 | G54: 114 | H54: 674 | I54: 117 | J54: 1 | K54: 0 | L54: 0 | M54: 906 | N54: 5 | O54: 0 | P54: 911 | Q54: 0.6608093717 | R54: 0.482428115
B55: ALCANOS DE COLOMBIA S.A. E.S.P. | C55: CUNDINAMARCA | D55: SAN FRANCISCO | E55: 1747 | F55: 1742 | G55: 10 | H55: 785 | I55: 475 | J55: 1 | K55: 0 | L55: 0 | M55: 1271 | N55: 3 | O55: 0 | P55: 1274 | Q55: 0.9971379508 | R55: 0.7275329136
B56: ALCANOS DE COLOMBIA S.A. E.S.P. | C56: CUNDINAMARCA | D56: SAN JUAN DE RIO SECO | E56: 2133 | F56: 1928 | G56: 121 | H56: 1014 | I56: 259 | J56: 1 | K56: 0 | L56: 0 | M56: 1395 | N56: 5 | O56: 0 | P56: 1400 | Q56: 0.903891233 | R56: 0.6540084388 | S56: Incluye Cambao (Nuevo)
B57: ALCANOS DE COLOMBIA S.A. E.S.P. | C57: CUNDINAMARCA | D57: SASAIMA | E57: 1169 | F57: 936 | G57: 22 | H57: 475 | I57: 181 | J57: 1 | K57: 0 | L57: 0 | M57: 679 | N57: 3 | O57: 0 | P57: 682 | Q57: 0.8006843456 | R57: 0.5808383234
B58: ALCANOS DE COLOMBIA S.A. E.S.P. | C58: CUNDINAMARCA | D58: SILVANIA | E58: 3071 | F58: 3026 | G58: 110 | H58: 1180 | I58: 711 | J58: 105 | K58: 0 | L58: 0 | M58: 2106 | N58: 32 | O58: 1 | P58: 2139 | Q58: 0.9853467926 | R58: 0.6857701075
B59: ALCANOS DE COLOMBIA S.A. E.S.P. | C59: CUNDINAMARCA | D59: SUPATA | E59: 964 | F59: 846 | G59: 7 | H59: 326 | I59: 177 | J59: 1 | K59: 0 | L59: 0 | M59: 511 | N59: 3 | O59: 0 | P59: 514 | Q59: 0.877593361 | R59: 0.5300829876
B60: ALCANOS DE COLOMBIA S.A. E.S.P. | C60: CUNDINAMARCA | D60: TIBACUY | E60: 528 | F60: 524 | G60: 15 | H60: 376 | I60: 3 | J60: 0 | K60: 0 | L60: 0 | M60: 394 | N60: 4 | O60: 0 | P60: 398 | Q60: 0.9924242424 | R60: 0.7462121212
B61: ALCANOS DE COLOMBIA S.A. E.S.P. | C61: CUNDINAMARCA | D61: TOCAIMA | E61: 4473 | F61: 4362 | G61: 940 | H61: 1907 | I61: 700 | J61: 2 | K61: 0 | L61: 0 | M61: 3549 | N61: 57 | O61: 0 | P61: 3606 | Q61: 0.97518444 | R61: 0.79342723
B62: ALCANOS DE COLOMBIA S.A. E.S.P. | C62: CUNDINAMARCA | D62: UTICA | E62: 1287 | F62: 966 | G62: 309 | H62: 399 | I62: 0 | J62: 0 | K62: 0 | L62: 0 | M62: 708 | N62: 4 | O62: 0 | P62: 712 | Q62: 0.7505827506 | R62: 0.5501165501
B63: ALCANOS DE COLOMBIA S.A. E.S.P. | C63: CUNDINAMARCA | D63: VENECIA | E63: 615 | F63: 596 | G63: 20 | H63: 398 | I63: 22 | J63: 0 | K63: 0 | L63: 0 | M63: 440 | N63: 3 | O63: 0 | P63: 443 | Q63: 0.9691056911 | R63: 0.7154471545
B64: ALCANOS DE COLOMBIA S.A. E.S.P. | C64: CUNDINAMARCA | D64: VERGARA | E64: 642 | F64: 630 | G64: 114 | H64: 357 | I64: 2 | J64: 0 | K64: 0 | L64: 0 | M64: 473 | N64: 1 | O64: 0 | P64: 474 | Q64: 0.9813084112 | R64: 0.7367601246
B65: ALCANOS DE COLOMBIA S.A. E.S.P. | C65: CUNDINAMARCA | D65: VIANI | E65: 601 | F65: 582 | G65: 140 | H65: 319 | I65: 12 | J65: 0 | K65: 0 | L65: 0 | M65: 471 | N65: 2 | O65: 0 | P65: 473 | Q65: 0.9683860233 | R65: 0.7836938436
B66: ALCANOS DE COLOMBIA S.A. E.S.P. | C66: CUNDINAMARCA | D66: VILLETA | E66: 5815 | F66: 5708 | G66: 828 | H66: 3076 | I66: 967 | J66: 69 | K66: 1 | L66: 0 | M66: 4941 | N66: 60 | O66: 0 | P66: 5001 | Q66: 0.9815993121 | R66: 0.8496990542
B67: ALCANOS DE COLOMBIA S.A. E.S.P. | C67: HUILA | D67: AIPE | E67: 4052 | F67: 3714 | G67: 1181 | H67: 2166 | I67: 128 | J67: 2 | K67: 0 | L67: 0 | M67: 3477 | N67: 22 | O67: 0 | P67: 3499 | Q67: 0.9545903258 | R67: 0.858094768
B68: ALCANOS DE COLOMBIA S.A. E.S.P. | C68: HUILA | D68: ALGECIRAS | E68: 4452 | F68: 3837 | G68: 1775 | H68: 1769 | I68: 77 | J68: 0 | K68: 0 | L68: 0 | M68: 3621 | N68: 22 | O68: 0 | P68: 3643 | Q68: 0.9950584007 | R68: 0.8133423181
B69: ALCANOS DE COLOMBIA S.A. E.S.P. | C69: HUILA | D69: BARAYA | E69: 1238 | F69: 1150 | G69: 746 | H69: 286 | I69: 45 | J69: 0 | K69: 0 | L69: 0 | M69: 1077 | N69: 9 | O69: 0 | P69: 1086 | Q69: 0.99273021 | R69: 0.8699515347
B70: ALCANOS DE COLOMBIA S.A. E.S.P. | C70: HUILA | D70: CAMPOALEGRE | E70: 8441 | F70: 7804 | G70: 4056 | H70: 3196 | I70: 495 | J70: 0 | K70: 0 | L70: 0 | M70: =+SUM(G70:L70) -> 7747 | N70: 38 | O70: 2 | P70: =+M70+N70+O70 -> 7787 | Q70: 0.99431347 | R70: 0.9177822533
B71: ALCANOS DE COLOMBIA S.A. E.S.P. | C71: HUILA | D71: GARZON | E71: 14089 | F71: 13377 | G71: 3952 | H71: 7170 | I71: 1908 | J71: 235 | K71: 1 | L71: 1 | M71: 13267 | N71: 80 | O71: 0 | P71: 13347 | Q71: 0.9939669246 | R71: 0.9416566115
B72: ALCANOS DE COLOMBIA S.A. E.S.P. | C72: HUILA | D72: GIGANTE | E72: 6322 | F72: 5886 | G72: 2230 | H72: 3487 | I72: 117 | J72: 2 | K72: 0 | L72: 0 | M72: 5836 | N72: 31 | O72: 0 | P72: 5867 | Q72: 0.9947801329 | R72: 0.9231255932
B73: ALCANOS DE COLOMBIA S.A. E.S.P. | C73: HUILA | D73: HOBO | E73: 2272 | F73: 1961 | G73: 956 | H73: 762 | I73: 2 | J73: 0 | K73: 0 | L73: 0 | M73: 1720 | N73: 8 | O73: 0 | P73: 1728 | Q73: 0.9955985915 | R73: 0.7570422535
B74: ALCANOS DE COLOMBIA S.A. E.S.P. | C74: HUILA | D74: LA PLATA | E74: 8963 | F74: 8041 | G74: 2550 | H74: 4300 | I74: 1092 | J74: 5 | K74: 0 | L74: 0 | M74: 7947 | N74: 95 | O74: 0 | P74: 8042 | Q74: 0.9890661609 | R74: 0.8866450965
B75: ALCANOS DE COLOMBIA S.A. E.S.P. | C75: HUILA | D75: NEIVA | E75: 125818 | F75: 110095 | G75: 28251 | H75: 56456 | I75: 13267 | J75: 7654 | K75: 1720 | L75: 112 | M75: 107460 | N75: 1362 | O75: 26 | P75: 108848 | Q75: 0.9884833649 | R75: 0.8540908296 | S75: Incluye Fortalecillas, San Francisco, Guacirco y El Caguán
B76: ALCANOS DE COLOMBIA S.A. E.S.P. | C76: HUILA | D76: PAICOL | E76: 1056 | F76: 909 | G76: 196 | H76: 609 | I76: 102 | J76: 0 | K76: 0 | L76: 0 | M76: 907 | N76: 12 | O76: 0 | P76: 919 | Q76: 0.9886363636 | R76: 0.8589015152
B77: ALCANOS DE COLOMBIA S.A. E.S.P. | C77: HUILA | D77: PALERMO | E77: 5629 | F77: 5147 | G77: 1724 | H77: 2686 | I77: 476 | J77: 4 | K77: 0 | L77: 0 | M77: 4890 | N77: 61 | O77: 1 | P77: 4952 | Q77: 0.9733522828 | R77: 0.86871558 | S77: Incluye El Juncal, Betania
B78: ALCANOS DE COLOMBIA S.A. E.S.P. | C78: HUILA | D78: RIVERA | E78: 6491 | F78: 6404 | G78: 1648 | H78: 3674 | I78: 452 | J78: 114 | K78: 1 | L78: 1 | M78: 5890 | N78: 83 | O78: 1 | P78: 5974 | Q78: 0.9865968264 | R78: 0.9074102604
B79: ALCANOS DE COLOMBIA S.A. E.S.P. | C79: HUILA | D79: TARQUI | E79: 3905 | F79: 3875 | G79: 2659 | H79: 712 | I79: 8 | J79: 1 | K79: 0 | L79: 0 | M79: 3380 | N79: 4 | O79: 0 | P79: 3384 | Q79: 0.9923175416 | R79: 0.8655569782
B80: ALCANOS DE COLOMBIA S.A. E.S.P. | C80: HUILA | D80: TELLO | E80: 2389 | F80: 2382 | G80: 1542 | H80: 594 | I80: 74 | J80: 0 | K80: 0 | L80: 0 | M80: 2210 | N80: 6 | O80: 0 | P80: 2216 | Q80: 0.9970699037 | R80: 0.9250732524
B81: ALCANOS DE COLOMBIA S.A. E.S.P. | C81: HUILA | D81: TERUEL | E81: 1531 | F81: 1515 | G81: 389 | H81: 803 | I81: 111 | J81: 0 | K81: 0 | L81: 0 | M81: 1303 | N81: 11 | O81: 0 | P81: 1314 | Q81: 0.9895493142 | R81: 0.851077727
B82: ALCANOS DE COLOMBIA S.A. E.S.P. | C82: HUILA | D82: TESALIA | E82: 2783 | F82: 2757 | G82: 1866 | H82: 620 | I82: 34 | J82: 1 | K82: 0 | L82: 0 | M82: 2521 | N82: 25 | O82: 0 | P82: 2546 | Q82: 0.9906575638 | R82: 0.9058569889 | S82: Incluye Pacarní
B83: ALCANOS DE COLOMBIA S.A. E.S.P. | C83: HUILA | D83: VILLAVIEJA | E83: 2119 | F83: 2097 | G83: 1263 | H83: 650 | I83: 1 | J83: 0 | K83: 0 | L83: 0 | M83: 1914 | N83: 12 | O83: 0 | P83: 1926 | Q83: 0.9896177442 | R83: 0.9032562529
B84: ALCANOS DE COLOMBIA S.A. E.S.P. | C84: HUILA | D84: YAGUARA | E84: 2196 | F84: 2145 | G84: 474 | H84: 1308 | I84: 169 | J84: 0 | K84: 0 | L84: 0 | M84: 1951 | N84: 28 | O84: 0 | P84: 1979 | Q84: 0.9767759563 | R84: 0.8884335155
B85: ALCANOS DE COLOMBIA S.A. E.S.P. | C85: NARIÑO | D85: PASTO | E85: 104398 | F85: 40419 | G85: 6601 | H85: 8769 | I85: 1349 | J85: 1 | K85: 0 | L85: 0 | M85: 16720 | N85: 27 | O85: 0 | P85: 16747 | Q85: 0.4133220943 | R85: 0.1601563248
B86: ALCANOS DE COLOMBIA S.A. E.S.P. | C86: TOLIMA | D86: ALVARADO | E86: 1301 | F86: 1129 | G86: 296 | H86: 805 | I86: 5 | J86: 0 | K86: 0 | L86: 0 | M86: 1106 | N86: 8 | O86: 1 | P86: 1115 | Q86: 0.9915449654 | R86: 0.8501152959
B87: ALCANOS DE COLOMBIA S.A. E.S.P. | C87: TOLIMA | D87: AMBALEMA | E87: 2227 | F87: 1880 | G87: 1092 | H87: 630 | I87: 75 | J87: 0 | K87: 0 | L87: 0 | M87: 1797 | N87: 7 | O87: 0 | P87: 1804 | Q87: 0.9434216435 | R87: 0.8069151325
B88: ALCANOS DE COLOMBIA S.A. E.S.P. | C88: TOLIMA | D88: ARMERO | E88: 3616 | F88: 3199 | G88: 1661 | H88: 1501 | I88: 12 | J88: 0 | K88: 0 | L88: 0 | M88: 3174 | N88: 22 | O88: 0 | P88: 3196 | Q88: 0.986449115 | R88: 0.8777654867
B89: ALCANOS DE COLOMBIA S.A. E.S.P. | C89: TOLIMA | D89: CAJAMARCA | E89: 3237 | F89: 2658 | G89: 352 | H89: 1714 | I89: 572 | J89: 0 | K89: 0 | L89: 0 | M89: 2638 | N89: 37 | O89: 0 | P89: 2675 | Q89: 0.9650911338 | R89: 0.8149521162
B90: ALCANOS DE COLOMBIA S.A. E.S.P. | C90: TOLIMA | D90: CARMEN DE APICALA | E90: 3609 | F90: 3064 | G90: 476 | H90: 1966 | I90: 463 | J90: 66 | K90: 32 | L90: 0 | M90: 3003 | N90: 51 | O90: 1 | P90: 3055 | Q90: 0.9855915766 | R90: 0.8320864505
B91: ALCANOS DE COLOMBIA S.A. E.S.P. | C91: TOLIMA | D91: CHAPARRAL | E91: 8553 | F91: 7307 | G91: 3213 | H91: 3084 | I91: 937 | J91: 3 | K91: 0 | L91: 0 | M91: 7237 | N91: 65 | O91: 1 | P91: 7303 | Q91: 0.9898281305 | R91: 0.8461358588
B92: ALCANOS DE COLOMBIA S.A. E.S.P. | C92: TOLIMA | D92: COELLO | E92: 1488 | F92: 1429 | G92: 436 | H92: 738 | I92: 35 | J92: 3 | K92: 0 | L92: 0 | M92: 1212 | N92: 5 | O92: 0 | P92: 1217 | Q92: 0.9912634409 | R92: 0.814516129 | S92: Incluye Gualanday
B93: ALCANOS DE COLOMBIA S.A. E.S.P. | C93: TOLIMA | D93: CUNDAY | E93: 1416 | F93: 844 | G93: 266 | H93: 457 | I93: 8 | J93: 0 | K93: 0 | L93: 0 | M93: 731 | N93: 7 | O93: 0 | P93: 738 | Q93: 0.7648305085 | R93: 0.5162429379
B94: ALCANOS DE COLOMBIA S.A. E.S.P. | C94: TOLIMA | D94: DOLORES | E94: 1688 | F94: 987 | G94: 262 | H94: 337 | I94: 23 | J94: 0 | K94: 0 | L94: 0 | M94: 622 | N94: 4 | O94: 0 | P94: 626 | Q94: 0.7482227488 | R94: 0.3684834123
B95: ALCANOS DE COLOMBIA S.A. E.S.P. | C95: TOLIMA | D95: ESPINAL | E95: 21214 | F95: 18361 | G95: 4327 | H95: 10048 | I95: 3269 | J95: 565 | K95: 1 | L95: 1 | M95: 18211 | N95: 172 | O95: 14 | P95: 18397 | Q95: 0.9709154332 | R95: 0.8584425379 | S95: Incluye a Chicoral
B96: ALCANOS DE COLOMBIA S.A. E.S.P. | C96: TOLIMA | D96: FLANDES | E96: 14273 | F96: 10279 | G96: 221 | H96: 3877 | I96: 3604 | J96: 3 | K96: 0 | L96: 0 | M96: 7705 | N96: 52 | O96: 1 | P96: 7758 | Q96: 0.8502066839 | R96: 0.5398304491
B97: ALCANOS DE COLOMBIA S.A. E.S.P. | C97: TOLIMA | D97: FRESNO | E97: 5074 | F97: 4934 | G97: 1346 | H97: 2637 | I97: 902 | J97: 1 | K97: 0 | L97: 0 | M97: 4886 | N97: 53 | O97: 0 | P97: 4939 | Q97: 0.9891604257 | R97: 0.9629483642
B98: ALCANOS DE COLOMBIA S.A. E.S.P. | C98: TOLIMA | D98: GUAMO | E98: 7726 | F98: 7275 | G98: 2795 | H98: 3763 | I98: 231 | J98: 10 | K98: 0 | L98: 0 | M98: 6799 | N98: 45 | O98: 1 | P98: 6845 | Q98: 0.9936577789 | R98: 0.880015532
B99: ALCANOS DE COLOMBIA S.A. E.S.P. | C99: TOLIMA | D99: HERVEO | E99: 1624 | F99: 1558 | G99: 405 | H99: 991 | I99: 8 | J99: 0 | K99: 0 | L99: 0 | M99: 1404 | N99: 11 | O99: 0 | P99: 1415 | Q99: 0.986453202 | R99: 0.8645320197
B100: ALCANOS DE COLOMBIA S.A. E.S.P. | C100: TOLIMA | D100: HONDA | E100: 8129 | F100: 1961 | G100: 1952 | H100: 3868 | I100: 612 | J100: 124 | K100: 1 | L100: 0 | M100: 6557 | N100: 75 | O100: 1 | P100: 6633 | Q100: 0.894082913 | R100: 0.8066182802
B101: ALCANOS DE COLOMBIA S.A. E.S.P. | C101: TOLIMA | D101: IBAGUE | E101: 146002 | F101: 143714 | G101: 24569 | H101: 64968 | I101: 37703 | J101: 12116 | K101: 2050 | L101: 355 | M101: 141761 | N101: 1717 | O101: 49 | P101: 143527 | Q101: 0.9875892111 | R101: 0.9709524527
B102: ALCANOS DE COLOMBIA S.A. E.S.P. | C102: TOLIMA | D102: ICONONZO | E102: 1394 | F102: 1206 | G102: 402 | H102: 778 | I102: 9 | J102: 0 | K102: 0 | L102: 0 | M102: 1189 | N102: 19 | O102: 0 | P102: 1208 | Q102: 0.9533715925 | R102: 0.8529411765
B103: ALCANOS DE COLOMBIA S.A. E.S.P. | C103: TOLIMA | D103: LERIDA | E103: 5681 | F103: 5401 | G103: 1665 | H103: 3597 | I103: 112 | J103: 0 | K103: 0 | L103: 0 | M103: 5374 | N103: 32 | O103: 1 | P103: 5407 | Q103: 0.9940151382 | R103: 0.9459602183 | S103: Incluye La Sierra
B104: ALCANOS DE COLOMBIA S.A. E.S.P. | C104: TOLIMA | D104: LIBANO | E104: 7704 | F104: 7462 | G104: 1002 | H104: 4265 | I104: 1843 | J104: 290 | K104: 0 | L104: 2 | M104: 7402 | N104: 93 | O104: 1 | P104: 7496 | Q104: 0.9876687435 | R104: 0.9607995846 | S104: Incluye Tierradentro
B105: ALCANOS DE COLOMBIA S.A. E.S.P. | C105: TOLIMA | D105: MARIQUITA | E105: 9401 | F105: 8953 | G105: 4191 | H105: 4108 | I105: 535 | J105: 44 | K105: 1 | L105: 0 | M105: 8879 | N105: 82 | O105: 2 | P105: 8963 | Q105: 0.990852037 | R105: 0.9444739921
B106: ALCANOS DE COLOMBIA S.A. E.S.P. | C106: TOLIMA | D106: MELGAR | E106: 9961 | F106: 9266 | G106: 1691 | H106: 4146 | I106: 2615 | J106: 238 | K106: 190 | L106: 5 | M106: 8885 | N106: 213 | O106: 0 | P106: 9098 | Q106: 0.9707860657 | R106: 0.891978717
B107: ALCANOS DE COLOMBIA S.A. E.S.P. | C107: TOLIMA | D107: MURILLO | E107: 795 | F107: 437 | G107: 191 | H107: 199 | I107: 12 | J107: 0 | K107: 0 | L107: 0 | M107: 402 | N107: 7 | O107: 0 | P107: 409 | Q107: 0.7899371069 | R107: 0.5056603774
B108: ALCANOS DE COLOMBIA S.A. E.S.P. | C108: TOLIMA | D108: NATAGAIMA | E108: 2971 | F108: 2529 | G108: 901 | H108: 1276 | I108: 216 | J108: 0 | K108: 0 | L108: 0 | M108: 2393 | N108: 6 | O108: 1 | P108: 2400 | Q108: 0.956916863 | R108: 0.8054527095
B109: ALCANOS DE COLOMBIA S.A. E.S.P. | C109: TOLIMA | D109: ORTEGA | E109: 2672 | F109: 2068 | G109: 526 | H109: 1234 | I109: 212 | J109: 0 | K109: 0 | L109: 0 | M109: 1972 | N109: 10 | O109: 0 | P109: 1982 | Q109: 0.9801646707 | R109: 0.7380239521
B110: ALCANOS DE COLOMBIA S.A. E.S.P. | C110: TOLIMA | D110: PIEDRAS | E110: 1469 | F110: 1384 | G110: 761 | H110: 594 | I110: 0 | J110: 0 | K110: 0 | L110: 0 | M110: 1355 | N110: 6 | O110: 0 | P110: 1361 | Q110: 0.9945541184 | R110: 0.9223961879 | S110: Inluye a Doima
B111: ALCANOS DE COLOMBIA S.A. E.S.P. | C111: TOLIMA | D111: PURIFICACION | E111: 6102 | F111: 6070 | G111: 3220 | H111: 2150 | I111: 139 | J111: 0 | K111: 0 | L111: 0 | M111: 5509 | N111: 30 | O111: 0 | P111: 5539 | Q111: 0.9947558178 | R111: 0.902818748
B112: ALCANOS DE COLOMBIA S.A. E.S.P. | C112: TOLIMA | D112: SALDAÑA | E112: 3587 | F112: 3550 | G112: 1206 | H112: 1731 | I112: 135 | J112: 5 | K112: 0 | L112: 0 | M112: 3077 | N112: 22 | O112: 0 | P112: 3099 | Q112: 0.9896849735 | R112: 0.8578199052
B113: ALCANOS DE COLOMBIA S.A. E.S.P. | C113: TOLIMA | D113: SAN ANTONIO | E113: 1581 | F113: 1503 | G113: 507 | H113: 601 | I113: 95 | J113: 0 | K113: 0 | L113: 0 | M113: 1203 | N113: 6 | O113: 0 | P113: 1209 | Q113: 0.9506641366 | R113: 0.7609108159
B114: ALCANOS DE COLOMBIA S.A. E.S.P. | C114: TOLIMA | D114: SAN LUIS | E114: 2702 | F114: 2685 | G114: 1182 | H114: 1419 | I114: 6 | J114: 0 | K114: 2 | L114: 0 | M114: 2609 | N114: 16 | O114: 0 | P114: 2625 | Q114: 0.9937083642 | R114: 0.9655810511
B115: ALCANOS DE COLOMBIA S.A. E.S.P. | C115: TOLIMA | D115: SANTA ISABEL | E115: 873 | F115: 813 | G115: 348 | H115: 298 | I115: 1 | J115: 0 | K115: 0 | L115: 0 | M115: 647 | N115: 6 | O115: 0 | P115: 653 | Q115: 0.9312714777 | R115: 0.7411225659
B116: ALCANOS DE COLOMBIA S.A. E.S.P. | C116: TOLIMA | D116: SUAREZ | E116: 607 | F116: 597 | G116: 181 | H116: 299 | I116: 0 | J116: 0 | K116: 0 | L116: 0 | M116: 480 | N116: 2 | O116: 0 | P116: 482 | Q116: 0.9835255354 | R116: 0.7907742998
B117: ALCANOS DE COLOMBIA S.A. E.S.P. | C117: TOLIMA | D117: VALLE DE SAN JUAN | E117: 1221 | F117: 1207 | G117: 516 | H117: 565 | I117: 0 | J117: 0 | K117: 0 | L117: 0 | M117: 1081 | N117: 7 | O117: 0 | P117: 1088 | Q117: 0.9885339885 | R117: 0.8853398853
B118: ALCANOS DE COLOMBIA S.A. E.S.P. | C118: TOLIMA | D118: VENADILLO | E118: 2595 | F118: 2567 | G118: 1216 | H118: 1229 | I118: 6 | J118: 0 | K118: 0 | L118: 0 | M118: 2451 | N118: 26 | O118: 0 | P118: 2477 | Q118: 0.9892100193 | R118: 0.9445086705
B119: ALCANOS DE COLOMBIA S.A. E.S.P. | C119: TOLIMA | D119: VILLARRICA | E119: 854 | F119: 633 | G119: 161 | H119: 133 | I119: 1 | J119: 0 | K119: 0 | L119: 0 | M119: 295 | N119: 3 | O119: 0 | P119: 298 | Q119: 0.7412177986 | R119: 0.3454332553
B120: SUBTOTAL | E120: =+SUM(E5:E119) -> 983134 | F120: =+SUM(F5:F119) -> 833614 | G120: 196106 | H120: 345423 | I120: 141382 | J120: 48338 | K120: 9565 | L120: 1308 | M120: 742122 | N120: 7501 | O120: 132 | P120: 749755 | Q120: =IFERROR(F120/E120,0) -> 0.8479149333 | R120: =+IFERROR(M120/E120,0) -> 0.7548533567
B121: EDALGAS S.A. E.S.P. | C121: TOLIMA | D121: ANZOATEGUI | E121: 651 | F121: 651 | G121: 269 | H121: 264 | I121: 2 | J121: 0 | K121: 0 | L121: 0 | M121: 535 | N121: 0 | O121: 0 | P121: =+M121+N121+O121 -> 535 | Q121: 1 | R121: 0.821812596 | S121: el Censo que tiene la empresa EDALGAS S.A y la Alcaldia Municipal de Anzoategui del castrato poblacional es de 651, diferente al reporte del DANE que es de 481
B122: EDALGAS S.A. E.S.P. | C122: TOLIMA | D122: ROVIRA | E122: 2771 | F122: 2650 | G122: 1626 | H122: 686 | I122: 87 | J122: 0 | K122: 0 | L122: 0 | M122: 2399 | N122: 7 | O122: 0 | P122: =+M122+N122+O122 -> 2406 | Q122: 0.9563334536 | R122: 0.8657524359
B123: SUBTOTAL | E123: =+SUM(E121:E122) -> 3422 | F123: =+SUM(F121:F122) -> 3301 | G123: 1895 | H123: 950 | I123: 89 | J123: 0 | K123: 0 | L123: 0 | M123: 2934 | N123: 7 | O123: 0 | P123: 2941 | Q123: =IFERROR(F123/E123,0) -> 0.9646405611 | R123: =+IFERROR(M123/E123,0) -> 0.8573933372
B124: EFIGAS GAS NATURAL S.A. E.S.P. | C124: CALDAS | D124: ANSERMA | E124: 13394 | F124: 7649 | G124: 884 | H124: 1610 | I124: 2109 | J124: 52 | K124: 0 | L124: 0 | M124: 4655 | N124: 36 | O124: 0 | P124: =+M124+N124+O124 -> 4691 | Q124: 0.5710766015 | R124: 0.3475436763 | S124: Catastro fuente Municipio actualización 2013
B125: EFIGAS GAS NATURAL S.A. E.S.P. | C125: CALDAS | D125: BELALCAZAR | E125: 3340 | F125: 1707 | G125: 341 | H125: 553 | I125: 246 | J125: 1 | K125: 0 | L125: 0 | M125: 1141 | N125: 11 | O125: 0 | P125: 1152 | Q125: 0.5110778443 | R125: 0.3416167665 | S125: Catastro fuente Municipio actualización 2010
B126: EFIGAS GAS NATURAL S.A. E.S.P. | C126: CALDAS | D126: CHINCHINA | E126: 11463 | F126: 14277 | G126: 1642 | H126: 5045 | I126: 2966 | J126: 1485 | K126: 119 | L126: 0 | M126: 11257 | N126: 176 | O126: 7 | P126: 11440 | Q126: 1.245485475 | R126: 0.9820291372 | S126: Catastro fuente Municipio
B127: EFIGAS GAS NATURAL S.A. E.S.P. | C127: CALDAS | D127: MANIZALES | E127: 100982 | F127: 125385 | G127: 8317 | H127: 24800 | I127: 37731 | J127: 14500 | K127: 4765 | L127: 8360 | M127: 98473 | N127: 2146 | O127: 90 | P127: 100709 | Q127: 1.241656929 | R127: 0.9751539878 | S127: Catastro fuente Municipio actualización 2014
B128: EFIGAS GAS NATURAL S.A. E.S.P. | C128: CALDAS | D128: NEIRA | E128: 7196 | F128: 4557 | G128: 505 | H128: 1591 | I128: 1708 | J128: 0 | K128: 0 | L128: 0 | M128: 3804 | N128: 80 | O128: 0 | P128: 3884 | Q128: 0.6332684825 | R128: 0.528627015 | S128: Catastro fuente Municipio actualización 2014
B129: EFIGAS GAS NATURAL S.A. E.S.P. | C129: CALDAS | D129: PALESTINA | E129: 3867 | F129: 4012 | G129: 834 | H129: 1042 | I129: 146 | J129: 42 | K129: 34 | L129: 34 | M129: 2132 | N129: 51 | O129: 0 | P129: 2183 | Q129: 1.037496768 | R129: 0.5513317817 | S129: Catastro fuente Municipio actualización 2015
B130: EFIGAS GAS NATURAL S.A. E.S.P. | C130: CALDAS | D130: RIOSUCIO | E130: 10026 | F130: 8787 | G130: 2538 | H130: 1486 | I130: 1930 | J130: 3 | K130: 0 | L130: 0 | M130: 5957 | N130: 59 | O130: 0 | P130: 6016 | Q130: 0.8764213046 | R130: 0.5941551965 | S130: Catastro fuente DANE 2005
B131: EFIGAS GAS NATURAL S.A. E.S.P. | C131: CALDAS | D131: RISARALDA | E131: 2446 | F131: 1662 | G131: 331 | H131: 638 | I131: 183 | J131: 0 | K131: 0 | L131: 0 | M131: 1152 | N131: 24 | O131: 0 | P131: 1176 | Q131: 0.6794766966 | R131: 0.4709730172 | S131: Catastro fuente Municipio actualización 1990
B132: EFIGAS GAS NATURAL S.A. E.S.P. | C132: CALDAS | D132: SAN JOSE | E132: 1252 | F132: 585 | G132: 99 | H132: 304 | I132: 2 | J132: 1 | K132: 0 | L132: 0 | M132: 406 | N132: 3 | O132: 0 | P132: 409 | Q132: 0.4672523962 | R132: 0.3242811502 | S132: Catastro fuente Municipio actualización 2008
B133: EFIGAS GAS NATURAL S.A. E.S.P. | C133: CALDAS | D133: SUPIA | E133: 9997 | F133: 4731 | G133: 182 | H133: 1896 | I133: 1019 | J133: 4 | K133: 0 | L133: 0 | M133: 3101 | N133: 25 | O133: 0 | P133: 3126 | Q133: 0.4732419726 | R133: 0.3101930579 | S133: Catastro fuente Municipio actualización 2008
B134: EFIGAS GAS NATURAL S.A. E.S.P. | C134: CALDAS | D134: VILLAMARIA | E134: 14098 | F134: 15445 | G134: 1949 | H134: 4726 | I134: 5727 | J134: 942 | K134: 5 | L134: 58 | M134: 13407 | N134: 175 | O134: 10 | P134: 13592 | Q134: 1.095545467 | R134: 0.9509859555 | S134: Catastro fuente Municipio actualización 2009
B135: EFIGAS GAS NATURAL S.A. E.S.P. | C135: CALDAS | D135: VITERBO | E135: 3018 | F135: 3998 | G135: 922 | H135: 1059 | I135: 938 | J135: 29 | K135: 2 | L135: 0 | M135: 2950 | N135: 24 | O135: 0 | P135: 2974 | Q135: 1.324718357 | R135: 0.9774685222 | S135: Catastro fuente Municipio actualización 2005
B136: EFIGAS GAS NATURAL S.A. E.S.P. | C136: QUINDIO | D136: ARMENIA | E136: 79277 | F136: 105043 | G136: 19014 | H136: 24791 | I136: 22525 | J136: 8727 | K136: 6847 | L136: 1227 | M136: =+SUM(G136:L136) -> 83131 | N136: 1394 | O136: 44 | P136: 84569 | Q136: 1.325012299 | R136: 1.048614352 | S136: Catastro fuente Municipio actualización 2013
B137: EFIGAS GAS NATURAL S.A. E.S.P. | C137: QUINDIO | D137: CALARCA | E137: 16639 | F137: 19971 | G137: 2215 | H137: 9946 | I137: 3700 | J137: 774 | K137: 57 | L137: 3 | M137: 16695 | N137: 275 | O137: 6 | P137: 16976 | Q137: 1.200252419 | R137: 1.003365587 | S137: Catastro fuente Municipio actualización 2013
B138: EFIGAS GAS NATURAL S.A. E.S.P. | C138: QUINDIO | D138: CIRCASIA | E138: 7608 | F138: 7719 | G138: 2197 | H138: 3007 | I138: 1053 | J138: 238 | K138: 76 | L138: 10 | M138: 6581 | N138: 89 | O138: 3 | P138: 6673 | Q138: 1.014589905 | R138: 0.8650105152 | S138: Catastro fuente Municipio actualización 2005
B139: EFIGAS GAS NATURAL S.A. E.S.P. | C139: QUINDIO | D139: FILANDIA | E139: 3636 | F139: 2671 | G139: 507 | H139: 1508 | I139: 374 | J139: 0 | K139: 0 | L139: 0 | M139: 2389 | N139: 55 | O139: 0 | P139: 2444 | Q139: 0.7345984598 | R139: 0.6570407041 | S139: Catastro fuente Municipio actualización 2012
B140: EFIGAS GAS NATURAL S.A. E.S.P. | C140: QUINDIO | D140: LA TEBAIDA | E140: 7219 | F140: 8847 | G140: 1742 | H140: 5510 | I140: 343 | J140: 25 | K140: 51 | L140: 11 | M140: 7682 | N140: 101 | O140: 7 | P140: 7790 | Q140: 1.225515999 | R140: 1.064136307 | S140: Catastro fuente Municipio actualización 2014
B141: EFIGAS GAS NATURAL S.A. E.S.P. | C141: QUINDIO | D141: MONTENEGRO | E141: 11600 | F141: 10364 | G141: 2881 | H141: 4947 | I141: 903 | J141: 20 | K141: 7 | L141: 7 | M141: 8765 | N141: 138 | O141: 2 | P141: 8905 | Q141: 0.8934482759 | R141: 0.7556034483 | S141: Catastro fuente Municipio actualización 2009
B142: EFIGAS GAS NATURAL S.A. E.S.P. | C142: QUINDIO | D142: QUIMBAYA | E142: 13613 | F142: 8346 | G142: 1042 | H142: 5040 | I142: 997 | J142: 25 | K142: 1 | L142: 0 | M142: 7105 | N142: 118 | O142: 0 | P142: 7223 | Q142: 0.6130904283 | R142: 0.5219275692 | S142: Catastro fuente Municipio actualización 2010
B143: EFIGAS GAS NATURAL S.A. E.S.P. | C143: QUINDIO | D143: SALENTO | E143: 2308 | F143: 1519 | G143: 198 | H143: 887 | I143: 168 | J143: 13 | K143: 0 | L143: 1 | M143: 1267 | N143: 60 | O143: 0 | P143: 1327 | Q143: 0.6581455806 | R143: 0.5489601386 | S143: Catastro fuente Municipio actualización2012
B144: EFIGAS GAS NATURAL S.A. E.S.P. | C144: RISARALDA | D144: APIA | E144: 4211 | F144: 2316 | G144: 205 | H144: 609 | I144: 535 | J144: 7 | K144: 0 | L144: 0 | M144: 1356 | N144: 13 | O144: 1 | P144: 1370 | Q144: 0.5499881263 | R144: 0.3220137735 | S144: Catastro fuente Municipio actualización 2005
B145: EFIGAS GAS NATURAL S.A. E.S.P. | C145: RISARALDA | D145: BALBOA | E145: 1675 | F145: 429 | G145: 58 | H145: 128 | I145: 183 | J145: 2 | K145: 0 | L145: 0 | M145: 371 | N145: 12 | O145: 0 | P145: 383 | Q145: 0.256119403 | R145: 0.2214925373 | S145: Catastro fuente Municipio actualización 2005
B146: EFIGAS GAS NATURAL S.A. E.S.P. | C146: RISARALDA | D146: BELEN DE UMBRIA | E146: 7444 | F146: 4248 | G146: 95 | H146: 1388 | I146: 971 | J146: 142 | K146: 0 | L146: 0 | M146: 2596 | N146: 26 | O146: 0 | P146: 2622 | Q146: 0.570660935 | R146: 0.348737238 | S146: Catastro fuente DANE 2005
B147: EFIGAS GAS NATURAL S.A. E.S.P. | C147: RISARALDA | D147: DOSQUEBRADAS | E147: 59891 | F147: 71743 | G147: 7658 | H147: 22690 | I147: 23391 | J147: 5487 | K147: 45 | L147: 5 | M147: 59276 | N147: 772 | O147: 43 | P147: 60091 | Q147: 1.197892839 | R147: 0.9897313453 | S147: Catastro fuente Municipio actualización 2011
B148: EFIGAS GAS NATURAL S.A. E.S.P. | C148: RISARALDA | D148: GUATICA | E148: 4338 | F148: 2369 | G148: 299 | H148: 949 | I148: 219 | J148: 0 | K148: 0 | L148: 0 | M148: 1467 | N148: 11 | O148: 1 | P148: 1479 | Q148: 0.5461041955 | R148: 0.3381742739 | S148: Catastro fuente Municipio
B149: EFIGAS GAS NATURAL S.A. E.S.P. | C149: RISARALDA | D149: LA CELIA | E149: 2068 | F149: 990 | G149: 199 | H149: 448 | I149: 248 | J149: 2 | K149: 0 | L149: 0 | M149: 897 | N149: 26 | O149: 0 | P149: 923 | Q149: 0.4787234043 | R149: 0.4337524178 | S149: Catastro fuente Municipio actualización 2005
B150: EFIGAS GAS NATURAL S.A. E.S.P. | C150: RISARALDA | D150: LA VIRGINIA | E150: 7447 | F150: 9196 | G150: 2359 | H150: 2224 | I150: 2852 | J150: 131 | K150: 0 | L150: 0 | M150: 7566 | N150: 142 | O150: 2 | P150: 7710 | Q150: 1.234859675 | R150: 1.015979589 | S150: Catastro fuente Municipio actualización 2013
B151: EFIGAS GAS NATURAL S.A. E.S.P. | C151: RISARALDA | D151: MARSELLA | E151: 4779 | F151: 3064 | G151: 512 | H151: 1477 | I151: 425 | J151: 7 | K151: 0 | L151: 0 | M151: 2421 | N151: 59 | O151: 0 | P151: 2480 | Q151: 0.6411383135 | R151: 0.5065913371 | S151: Catastro fuente Municipio actualización 2005
B152: EFIGAS GAS NATURAL S.A. E.S.P. | C152: RISARALDA | D152: PEREIRA | E152: 169242 | F152: 155993 | G152: 21505 | H152: 40143 | I152: 23726 | J152: 18018 | K152: 10074 | L152: 6102 | M152: 119568 | N152: 2022 | O152: 48 | P152: 121638 | Q152: 0.9217156498 | R152: 0.7064912965 | S152: Catastro fuente Municipio actualización 2014
B153: EFIGAS GAS NATURAL S.A. E.S.P. | C153: RISARALDA | D153: QUINCHIA | E153: 8074 | F153: 3106 | G153: 387 | H153: 542 | I153: 768 | J153: 8 | K153: 0 | L153: 0 | M153: 1705 | N153: 18 | O153: 0 | P153: 1723 | Q153: 0.3846916027 | R153: 0.2111716621 | S153: Catastro fuente Municipio actualización 2014
B154: EFIGAS GAS NATURAL S.A. E.S.P. | C154: RISARALDA | D154: SANTA ROSA DE CABAL | E154: 17131 | F154: 18177 | G154: 1399 | H154: 6739 | I154: 5689 | J154: 825 | K154: 146 | L154: 9 | M154: 14807 | N154: 280 | O154: 4 | P154: 15091 | Q154: 1.061058899 | R154: 0.8643395015 | S154: Catastro fuente Municipio actualización 2011
B155: EFIGAS GAS NATURAL S.A. E.S.P. | C155: RISARALDA | D155: SANTUARIO | E155: 3987 | F155: 2144 | G155: 176 | H155: 445 | I155: 533 | J155: 7 | K155: 0 | L155: 0 | M155: 1161 | N155: 17 | O155: 0 | P155: 1178 | Q155: 0.53774768 | R155: 0.2911963883 | S155: Catastro fuente Municipio actualización 2005
B156: SUBTOTAL | E156: =+SUM(E124:E155) -> 613266 | F156: 631050 | G156: 83192 | H156: 178168 | I156: 144308 | J156: 51517 | K156: 22229 | L156: 15827 | M156: 495241 | N156: 8438 | O156: 268 | P156: 503947 | Q156: =IFERROR(F156/E156,0) -> 1.028998836 | R156: =+IFERROR(M156/E156,0) -> 0.8075468068
B157: EMPRESA DE ENERGÍA DE CASANARE S.A. E.S.P. | C157: CASANARE | D157: AGUAZUL | E157: 9355.25 | F157: 6402 | G157: 279 | H157: 1989 | I157: 12 | J157: 7 | K157: 0 | L157: 0 | M157: =+SUM(G157:L157) -> 2287 | N157: 26 | O157: 0 | P157: =+M157+N157+O157 -> 2313 | Q157: 0.6843216376 | R157: 0.2444616659 | S157: En usuarios E4, se suman tambien los del sector Oficial.
B158: EMPRESA DE ENERGÍA DE CASANARE S.A. E.S.P. | C158: CASANARE | D158: HATO COROZAL | E158: 2982.5 | F158: 1724 | G158: 277 | H158: 776 | I158: 31 | J158: 0 | K158: 0 | L158: 0 | M158: 1084 | N158: 32 | O158: 0 | P158: 1116 | Q158: 0.5780385583 | R158: 0.3634534786
B159: EMPRESA DE ENERGÍA DE CASANARE S.A. E.S.P. | C159: CASANARE | D159: MANI | E159: 2784.75 | F159: 2785 | G159: 1065 | H159: 1705 | I159: 36 | J159: 3 | K159: 0 | L159: 0 | M159: 2809 | N159: 32 | O159: 0 | P159: 2841 | Q159: 1.000089775 | R159: 1.008708143 | S159: En usuarios E4, se suman tambien los del sector Oficial.
B160: EMPRESA DE ENERGÍA DE CASANARE S.A. E.S.P. | C160: CASANARE | D160: MONTERREY | E160: 3658.5 | F160: 643 | G160: 30 | H160: 276 | I160: 1 | J160: 0 | K160: 0 | L160: 0 | M160: 307 | N160: 8 | O160: 0 | P160: 315 | Q160: 0.1757550909 | R160: 0.08391417248
B161: EMPRESA DE ENERGÍA DE CASANARE S.A. E.S.P. | C161: CASANARE | D161: NUNCHIA | E161: 2197.25 | F161: 2024 | G161: 295 | H161: 1047 | I161: 4 | J161: 5 | K161: 0 | L161: 0 | M161: 1351 | N161: 12 | O161: 0 | P161: 1363 | Q161: 0.9211514393 | R161: 0.6148594834 | S161: En usuarios E4, se suman tambien los del sector Oficial.
B162: EMPRESA DE ENERGÍA DE CASANARE S.A. E.S.P. | C162: CASANARE | D162: OROCUE | E162: 2065.25 | F162: 1998 | G162: 81 | H162: 323 | I162: 0 | J162: 1 | K162: 0 | L162: 0 | M162: 405 | N162: 10 | O162: 1 | P162: 416 | Q162: 0.9674373563 | R162: 0.1961021668 | S162: En usuarios E4, se suman tambien los del sector Oficial.
B163: EMPRESA DE ENERGÍA DE CASANARE S.A. E.S.P. | C163: CASANARE | D163: PAZ DE ARIPORO | E163: 6668 | F163: 4775 | G163: 3054 | H163: 1779 | I163: 2 | J163: 12 | K163: 0 | L163: 0 | M163: 4847 | N163: 110 | O163: 1 | P163: 4958 | Q163: 0.7161067786 | R163: 0.7269046191 | S163: En usuarios E4, se suman tambien los del sector Oficial.
B164: EMPRESA DE ENERGÍA DE CASANARE S.A. E.S.P. | C164: CASANARE | D164: PORE | E164: 1980 | F164: 1565 | G164: 712 | H164: 1080 | I164: 20 | J164: 2 | K164: 0 | L164: 0 | M164: 1814 | N164: 36 | O164: 0 | P164: 1850 | Q164: 0.7904040404 | R164: 0.9161616162 | S164: En usuarios E4, se suman tambien los del sector Oficial.
B165: EMPRESA DE ENERGÍA DE CASANARE S.A. E.S.P. | C165: CASANARE | D165: SABANALARGA | E165: 759 | F165: 759 | G165: 84 | H165: 797 | I165: 39 | J165: 12 | K165: 0 | L165: 0 | M165: 932 | N165: 9 | O165: 0 | P165: 941 | Q165: 1 | R165: 1.227931489 | S165: En usuarios E4, se suman tambien los del sector Oficial.
B166: EMPRESA DE ENERGÍA DE CASANARE S.A. E.S.P. | C166: CASANARE | D166: SAN LUIS DE PALENQUE | E166: 1931.75 | F166: 1663 | G166: 255 | H166: 679 | I166: 38 | J166: 12 | K166: 0 | L166: 0 | M166: 984 | N166: 23 | O166: 0 | P166: 1007 | Q166: 0.8608774427 | R166: 0.5093826841 | S166: En usuarios E4, se suman tambien los del sector Oficial.
B167: EMPRESA DE ENERGÍA DE CASANARE S.A. E.S.P. | C167: CASANARE | D167: TAMARA | E167: 1761.5 | F167: 1762 | G167: 257 | H167: 260 | I167: 6 | J167: 3 | K167: 0 | L167: 0 | M167: 526 | N167: 7 | O167: 0 | P167: 533 | Q167: 1.000283849 | R167: 0.2986091399 | S167: En usuarios E4, se suman tambien los del sector Oficial.
B168: EMPRESA DE ENERGÍA DE CASANARE S.A. E.S.P. | C168: CASANARE | D168: TRINIDAD | E168: 3597 | F168: 2138 | G168: 898 | H168: 1157 | I168: 8 | J168: 19 | K168: 0 | L168: 0 | M168: 2082 | N168: 35 | O168: 0 | P168: 2117 | Q168: 0.5943842091 | R168: 0.5788156797 | S168: En usuarios E4, se suman tambien los del sector Oficial.
B169: EMPRESA DE ENERGÍA DE CASANARE S.A. E.S.P. | C169: CASANARE | D169: YOPAL | E169: 34121 | F169: 26520 | G169: 2533 | H169: 1912 | I169: 707 | J169: 213 | K169: 0 | L169: 0 | M169: 5365 | N169: 148 | O169: 5 | P169: 5518 | Q169: 0.7772339615 | R169: 0.1572345476 | S169: En usuarios E4, se suman tambien los del sector Oficial.
B170: SUBTOTAL | E170: =+SUM(E157:E169) -> 73861.75 | F170: =+SUM(F157:F169) -> 54758 | G170: 9820 | H170: 13780 | I170: 904 | J170: 289 | K170: 0 | L170: 0 | M170: 24793 | N170: 488 | O170: 7 | P170: 25288 | Q170: 0.7413580101 | R170: 0.3356676494
B171: EMPRESA INTEGRAL DE SERVICOS OP&S CONSTRUCCIONES S.A. E.S.P. | C171: TOLIMA | D171: PRADO | E171: 8761 | F171: 1550 | G171: 988 | H171: 560 | I171: 2 | J171: 3 | K171: 0 | L171: 0 | M171: =+SUM(G171:L171) -> 1553 | N171: 13 | O171: 0 | P171: =+SUM(M171:O171) -> 1566 | Q171: 0.1769204429 | R171: 0.1772628695
B172: EMPRESA INTEGRAL DE SERVICOS OP&S CONSTRUCCIONES S.A. E.S.P. | C172: TOLIMA | D172: PURIFICACION | E172: 27586 | F172: 1120 | G172: 1138 | H172: 38 | I172: 5 | J172: 1 | K172: 0 | L172: 0 | M172: =+SUM(G172:L172) -> 1182 | N172: 1 | O172: 0 | P172: =+SUM(M172:O172) -> 1183 | Q172: 0.0406003045 | R172: 0.04284782136
B173: SUBTOTAL | E173: =+SUM(E171:E172) -> 36347 | F173: =+SUM(F171:F172) -> 2670 | G173: 2126 | H173: 598 | I173: 7 | J173: 4 | K173: 0 | L173: 0 | M173: 2735 | N173: 14 | O173: 0 | P173: 2749 | Q173: 0.07345860731 | R173: 0.07524692547
B174: EMPRESA MUNICIPAL DE SERVICIOS PUBLICOS DE OROCUE SA ESP | C174: CASANARE | D174: OROCUE | E174: 1740 | F174: - | G174: 759 | H174: 809 | I174: 75 | J174: - | K174: - | L174: - | M174: 1643 | N174: 24 | O174: - | P174: 1667 | Q174: 0 | R174: 0.9442528736
B175: SUBTOTAL | E175: =+SUM(E174:E174) -> 1740 | F175: 0 | G175: 759 | H175: 809 | I175: 75 | J175: 0 | K175: 0 | L175: 0 | M175: 1643 | N175: 24 | O175: 0 | P175: 1667 | Q175: =IFERROR(F175/E175,0) -> 0 | R175: =+IFERROR(M175/E175,0) -> 0.9442528736
B176: EMPRESA MUNICIPAL DE SERVICIOS PUBLICOS DE PUERTO PARRA SA ESP | C176: SANTANDER | D176: PUERTO PARRA | E176: 1500 | F176: 200 | G176: 383 | H176: 368 | I176: - | J176: - | K176: - | L176: - | M176: =+SUM(G176:L176) -> 751 | N176: 20 | O176: 1 | P176: 772 | Q176: 0.1333333333 | R176: 0.5006666667
B177: SUBTOTAL | E177: =+SUM(E176:E176) -> 1500 | F177: 200 | G177: 383 | H177: 368 | I177: 0 | J177: 0 | K177: 0 | L177: 0 | M177: 751 | N177: 20 | O177: 1 | P177: 772 | Q177: =IFERROR(F177/E177,0) -> 0.1333333333 | R177: =+IFERROR(M177/E177,0) -> 0.5006666667
B178: EMPRESAS PÚBLICAS DE MEDELLÍN E.S.P. | C178: ANTIOQUIA | D178: ABEJORRAL | E178: 5213.513514 | F178: 2710 | G178: 363 | H178: 996 | I178: 99 | J178: 1 | K178: 0 | L178: 0 | M178: 1459 | N178: 14 | P178: =+SUM(M178:O178) -> 1473 | Q178: 0.5198030067 | R178: 0.279849663
B179: EMPRESAS PÚBLICAS DE MEDELLÍN E.S.P. | C179: ANTIOQUIA | D179: AMAGA | E179: 3906 | F179: 5367 | G179: 927 | H179: 3130 | I179: 214 | J179: 5 | K179: 0 | L179: 1 | M179: 4277 | N179: 24 | O179: 1 | P179: 4302 | Q179: 1.374039939 | R179: 1.094982079
B180: EMPRESAS PÚBLICAS DE MEDELLÍN E.S.P. | C180: ANTIOQUIA | D180: AMALFI | E180: 5969.72973 | F180: 4058 | G180: 575 | H180: 988 | I180: 767 | J180: 0 | K180: 0 | L180: 0 | M180: 2330 | P180: 2330 | Q180: 0.6797627671 | R180: 0.3903024267
B181: EMPRESAS PÚBLICAS DE MEDELLÍN E.S.P. | C181: ANTIOQUIA | D181: ANGELOPOLIS | E181: 5969.72973 | F181: 999 | G181: 73 | H181: 437 | I181: 92 | J181: 0 | K181: 0 | L181: 0 | M181: 602 | N181: 3 | P181: 605 | Q181: 0.1673442593 | R181: 0.1008420862
B182: EMPRESAS PÚBLICAS DE MEDELLÍN E.S.P. | C182: ANTIOQUIA | D182: APARTADO | E182: 48177.56757 | F182: 24052 | G182: 8253 | H182: 6451 | I182: 1907 | J182: 221 | K182: 0 | L182: 0 | M182: 16832 | N182: 34 | P182: 16866 | Q182: 0.4992364956 | R182: 0.3493742181
B183: EMPRESAS PÚBLICAS DE MEDELLÍN E.S.P. | C183: ANTIOQUIA | D183: ARBOLETES | E183: 10850.54054 | F183: 2526 | G183: 707 | H183: 892 | I183: 133 | J183: 2 | K183: 0 | L183: 0 | M183: 1734 | N183: 7 | P183: 1741 | Q183: 0.232799462 | R183: 0.1598077067
B184: EMPRESAS PÚBLICAS DE MEDELLÍN E.S.P. | C184: ANTIOQUIA | D184: BARBOSA | E184: 13527.02703 | F184: 7354 | G184: 599 | H184: 3839 | I184: 784 | J184: 0 | K184: 0 | L184: 2 | M184: 5224 | N184: 97 | O184: 5 | P184: 5326 | Q184: 0.5436523477 | R184: 0.3861898102
B185: EMPRESAS PÚBLICAS DE MEDELLÍN E.S.P. | C185: ANTIOQUIA | D185: BELLO | E185: 123191.0811 | F185: 132335 | G185: 17364 | H185: 38015 | I185: 43438 | J185: 7121 | K185: 6 | L185: 10 | M185: 105954 | N185: 907 | O185: 54 | P185: 106915 | Q185: 1.074225495 | R185: 0.8600784981
B186: EMPRESAS PÚBLICAS DE MEDELLÍN E.S.P. | C186: ANTIOQUIA | D186: BELMIRA | E186: 1398 | F186: 552 | G186: 24 | H186: 275 | I186: 45 | J186: 0 | K186: 0 | L186: 0 | M186: 344 | P186: 344 | Q186: 0.3948497854 | R186: 0.2460658083
B187: EMPRESAS PÚBLICAS DE MEDELLÍN E.S.P. | C187: ANTIOQUIA | D187: BETANIA | E187: 2509.72973 | F187: 1185 | G187: 95 | H187: 679 | I187: 99 | J187: 0 | K187: 0 | L187: 0 | M187: 873 | N187: 3 | P187: 876 | Q187: 0.472162395 | R187: 0.3478462201
B188: EMPRESAS PÚBLICAS DE MEDELLÍN E.S.P. | C188: ANTIOQUIA | D188: BETULIA | E188: 4741.081081 | F188: 1287 | G188: 312 | H188: 550 | I188: 209 | J188: 2 | K188: 0 | L188: 0 | M188: 1073 | N188: 11 | P188: 1084 | Q188: 0.2714570744 | R188: 0.2263196899
B189: EMPRESAS PÚBLICAS DE MEDELLÍN E.S.P. | C189: ANTIOQUIA | D189: CALDAS | E189: 21041.62162 | F189: 19800 | G189: 661 | H189: 10012 | I189: 4443 | J189: 11 | K189: 1 | L189: 1 | M189: 15129 | N189: 236 | O189: 12 | P189: 15377 | Q189: 0.9409921134 | R189: 0.7190035194
B190: EMPRESAS PÚBLICAS DE MEDELLÍN E.S.P. | C190: ANTIOQUIA | D190: CAÑASGORDAS | E190: 1587 | F190: 1449 | G190: 70 | H190: 1029 | I190: 43 | J190: 0 | K190: 0 | L190: 0 | M190: 1142 | N190: 3 | P190: 1145 | Q190: 0.9130434783 | R190: 0.7195967234
B191: EMPRESAS PÚBLICAS DE MEDELLÍN E.S.P. | C191: ANTIOQUIA | D191: CARACOLI | E191: 1377 | F191: 847 | G191: 135 | H191: 465 | I191: 22 | J191: 2 | K191: 0 | L191: 0 | M191: 624 | P191: 624 | Q191: 0.6151053014 | R191: 0.4531590414
B192: EMPRESAS PÚBLICAS DE MEDELLÍN E.S.P. | C192: ANTIOQUIA | D192: CARAMANTA | E192: 885 | F192: 885 | G192: 101 | H192: 147 | I192: 213 | J192: 0 | K192: 0 | L192: 0 | M192: 461 | P192: 461 | Q192: 1 | R192: 0.5209039548
B193: EMPRESAS PÚBLICAS DE MEDELLÍN E.S.P. | C193: ANTIOQUIA | D193: CAREPA | E193: 15077.83784 | F193: 8022 | G193: 2062 | H193: 3522 | I193: 438 | J193: 5 | K193: 0 | L193: 0 | M193: 6027 | N193: 11 | P193: 6038 | Q193: 0.5320391482 | R193: 0.3997257475
B194: EMPRESAS PÚBLICAS DE MEDELLÍN E.S.P. | C194: ANTIOQUIA | D194: CAROLINA | E194: 1028 | F194: 1235 | G194: 188 | H194: 738 | I194: 12 | J194: 0 | K194: 0 | L194: 0 | M194: 938 | N194: 3 | P194: 941 | Q194: 1.201361868 | R194: 0.9124513619
B195: EMPRESAS PÚBLICAS DE MEDELLÍN E.S.P. | C195: ANTIOQUIA | D195: CHIGORODO | E195: 20595.13514 | F195: 12382 | G195: 4853 | H195: 4263 | I195: 206 | J195: 7 | K195: 0 | L195: 0 | M195: 9329 | N195: 16 | P195: 9345 | Q195: 0.601209942 | R195: 0.4529710506
B196: EMPRESAS PÚBLICAS DE MEDELLÍN E.S.P. | C196: ANTIOQUIA | D196: CISNEROS | E196: 2448.108108 | F196: 1950 | G196: 303 | H196: 1292 | I196: 308 | J196: 7 | K196: 0 | L196: 0 | M196: 1910 | N196: 3 | P196: 1913 | Q196: 0.7965334511 | R196: 0.7801943034
B197: EMPRESAS PÚBLICAS DE MEDELLÍN E.S.P. | C197: ANTIOQUIA | D197: CIUDAD BOLIVAR | E197: 34038 | F197: 4980 | G197: 611 | H197: 1251 | I197: 1172 | J197: 1 | K197: 0 | L197: 0 | M197: 3035 | N197: 25 | P197: 3060 | Q197: 0.1463070686 | R197: 0.08916505083
B198: EMPRESAS PÚBLICAS DE MEDELLÍN E.S.P. | C198: ANTIOQUIA | D198: COCORNA | E198: 3773 | F198: 2561 | G198: 113 | H198: 845 | I198: 497 | J198: 1 | K198: 0 | L198: 0 | M198: 1456 | N198: 7 | P198: 1463 | Q198: 0.6787702094 | R198: 0.3858998145
B199: EMPRESAS PÚBLICAS DE MEDELLÍN E.S.P. | C199: ANTIOQUIA | D199: CONCORDIA | E199: 5581.891892 | F199: 2111 | G199: 169 | H199: 873 | I199: 533 | J199: 7 | K199: 0 | L199: 0 | M199: 1582 | N199: 8 | P199: 1590 | Q199: 0.3781871883 | R199: 0.2834164528
B200: EMPRESAS PÚBLICAS DE MEDELLÍN E.S.P. | C200: ANTIOQUIA | D200: COPACABANA | E200: 18965.13514 | F200: 21468 | G200: 649 | H200: 9968 | I200: 5801 | J200: 24 | K200: 12 | L200: 25 | M200: 16479 | N200: 191 | O200: 28 | P200: 16698 | Q200: 1.131971897 | R200: 0.8689102336
B201: EMPRESAS PÚBLICAS DE MEDELLÍN E.S.P. | C201: ANTIOQUIA | D201: DON MATIAS | E201: 6011.621622 | F201: 4014 | G201: 3 | H201: 1933 | I201: 881 | J201: 50 | K201: 0 | L201: 0 | M201: 2867 | N201: 59 | P201: 2926 | Q201: 0.6677066942 | R201: 0.4769095895
B202: EMPRESAS PÚBLICAS DE MEDELLÍN E.S.P. | C202: ANTIOQUIA | D202: ENTRERRIOS | E202: 4931 | F202: 1832 | G202: 7 | H202: 199 | I202: 998 | J202: 213 | K202: 4 | L202: 0 | M202: 1421 | N202: 28 | P202: 1449 | Q202: 0.3715270736 | R202: 0.2881768404
... 585 more rows
